ORGANISATION NAME,EFEFCTIVE DATE,DIRECTORATE,SUPPLIER NAME,DATE PAID,AMOUNT (�),PURPOSE,TRANSACTION No.
ROCHDALE BOROUGH COUNCIL,22/09/2020,PROPERTY AND HIGHWAYS,INTEGRATED WATER SERVICES LIMITED,22/09/2020,3466.85 ,PROPERTY - WORKS ELEMENT,V001430315
ROCHDALE BOROUGH COUNCIL,22/09/2020,PROPERTY AND HIGHWAYS,INTEGRATED WATER SERVICES LIMITED,22/09/2020,2509.80 ,PROPERTY - WORKS ELEMENT,V001430315
ROCHDALE BOROUGH COUNCIL,01/09/2020,CHILDREN�S SOCIAL CARE,CRESTA WORLD TRAVEL LIMITED,01/09/2020,-96.40 ,STAFF TRAVELLING EXPENSES,V001533937
ROCHDALE BOROUGH COUNCIL,16/09/2020,PROPERTY AND HIGHWAYS,HOWDENS JOINERY CO LIMITED,16/09/2020,-78.77 ,PROPERTY - WORKS ELEMENT,V001563715
ROCHDALE BOROUGH COUNCIL,16/09/2020,EARLY HELP AND SCHOOLS,HOWDENS JOINERY CO LIMITED,16/09/2020,-213.74 ,REPAIRS & ALTS OF BUILDINGS,V001563718
ROCHDALE BOROUGH COUNCIL,16/09/2020,PROPERTY AND HIGHWAYS,HOWDENS JOINERY CO LIMITED,16/09/2020,5.52 ,PROPERTY - WORKS ELEMENT,V001563720
ROCHDALE BOROUGH COUNCIL,16/09/2020,EARLY HELP AND SCHOOLS,HOWDENS JOINERY CO LIMITED,16/09/2020,-67.20 ,REPAIRS & ALTS OF BUILDINGS,V001563750
ROCHDALE BOROUGH COUNCIL,01/09/2020,CHILDREN�S SOCIAL CARE,CRESTA WORLD TRAVEL LIMITED,01/09/2020,5.00 ,EXTERNAL HIRE,V001567689
ROCHDALE BOROUGH COUNCIL,03/09/2020,NEIGHBOURHOODS AND ENVIRONMENT,MHR,03/09/2020,19089.55 ,SOFTWARE,V001568154
ROCHDALE BOROUGH COUNCIL,03/09/2020,RESOURCES,MHR,03/09/2020,3221.60 ,SOFTWARE,V001568155
ROCHDALE BOROUGH COUNCIL,01/09/2020,CHILDREN�S SOCIAL CARE,CRESTA WORLD TRAVEL LIMITED,01/09/2020,156.87 ,STAFF TRAVELLING EXPENSES,V001571999
ROCHDALE BOROUGH COUNCIL,01/09/2020,RESOURCES,CRESTA WORLD TRAVEL LIMITED,01/09/2020,-26.60 ,PUBLIC TRANSPORT,V001572001
ROCHDALE BOROUGH COUNCIL,01/09/2020,RESOURCES,CRESTA WORLD TRAVEL LIMITED,01/09/2020,26.60 ,PUBLIC TRANSPORT,V001572002
ROCHDALE BOROUGH COUNCIL,01/09/2020,COMMISSIONING AND STATUTORY,CRESTA WORLD TRAVEL LIMITED,01/09/2020,10.00 ,STAFF TRAVELLING EXPENSES,V001572004
ROCHDALE BOROUGH COUNCIL,01/09/2020,CHILDREN�S SOCIAL CARE,CRESTA WORLD TRAVEL LIMITED,01/09/2020,95.10 ,PUBLIC TRANSPORT,V001572026
ROCHDALE BOROUGH COUNCIL,01/09/2020,CHILDREN�S SOCIAL CARE,CRESTA WORLD TRAVEL LIMITED,01/09/2020,107.70 ,STAFF TRAVELLING EXPENSES,V001572046
ROCHDALE BOROUGH COUNCIL,01/09/2020,CHILDREN�S SOCIAL CARE,CRESTA WORLD TRAVEL LIMITED,01/09/2020,40.00 ,STAFF TRAVELLING EXPENSES,V001572048
ROCHDALE BOROUGH COUNCIL,01/09/2020,CHILDREN�S SOCIAL CARE,CRESTA WORLD TRAVEL LIMITED,01/09/2020,145.80 ,TRAINING,V001572049
ROCHDALE BOROUGH COUNCIL,23/09/2020,CHILDREN�S SOCIAL CARE,BACK CARE SOLUTIONS LIMITED,23/09/2020,416.00 ,FURNITURE - GENERAL,V001572893
ROCHDALE BOROUGH COUNCIL,16/09/2020,PROPERTY AND HIGHWAYS,HOWDENS JOINERY CO LIMITED,16/09/2020,3.51 ,PROPERTY - WORKS ELEMENT,V001573335
ROCHDALE BOROUGH COUNCIL,11/09/2020,ECONOMY DIRECTORATE,ADT FIRE & SECURITY PLC,11/09/2020,-397.00 ,MAINTENANCE,V001573765
ROCHDALE BOROUGH COUNCIL,08/09/2020,PUBLIC HEALTH,NHS HEYWOOD MIDDLETON AND ROCHDALE CCG,08/09/2020,1804.08 ,NAT INS TRAVEL,V001573853
ROCHDALE BOROUGH COUNCIL,08/09/2020,PUBLIC HEALTH,NHS HEYWOOD MIDDLETON AND ROCHDALE CCG,08/09/2020,1532.86 ,NAT INS SALARIES,V001573853
ROCHDALE BOROUGH COUNCIL,08/09/2020,PUBLIC HEALTH,NHS HEYWOOD MIDDLETON AND ROCHDALE CCG,08/09/2020,12545.74 ,BASIC SALARIES,V001573853
ROCHDALE BOROUGH COUNCIL,16/09/2020,PROPERTY AND HIGHWAYS,HOWDENS JOINERY CO LIMITED,16/09/2020,42.34 ,PROPERTY - WORKS ELEMENT,V001574448
ROCHDALE BOROUGH COUNCIL,01/09/2020,CHILDREN�S SOCIAL CARE,CRESTA WORLD TRAVEL LIMITED,01/09/2020,-145.80 ,TRAINING,V001574564
ROCHDALE BOROUGH COUNCIL,01/09/2020,CHILDREN�S SOCIAL CARE,CRESTA WORLD TRAVEL LIMITED,01/09/2020,-140.80 ,TRAINING,V001574569
ROCHDALE BOROUGH COUNCIL,01/09/2020,CHILDREN�S SOCIAL CARE,CRESTA WORLD TRAVEL LIMITED,01/09/2020,-145.80 ,TRAINING,V001575961
ROCHDALE BOROUGH COUNCIL,01/09/2020,CHILDREN�S SOCIAL CARE,CRESTA WORLD TRAVEL LIMITED,01/09/2020,145.80 ,TRAINING,V001575962
ROCHDALE BOROUGH COUNCIL,16/09/2020,PROPERTY AND HIGHWAYS,HOWDENS JOINERY CO LIMITED,16/09/2020,3.47 ,PROPERTY - WORKS ELEMENT,V001576064
ROCHDALE BOROUGH COUNCIL,23/09/2020,NEIGHBOURHOODS AND ENVIRONMENT,PARTSPLUS,23/09/2020,-103.53 ,VEHICLE MAINTENANCE,V001578431
ROCHDALE BOROUGH COUNCIL,23/09/2020,NEIGHBOURHOODS AND ENVIRONMENT,PARTSPLUS,23/09/2020,-60.00 ,VEHICLE MAINTENANCE,V001578432
ROCHDALE BOROUGH COUNCIL,29/09/2020,CHILDREN�S SOCIAL CARE,MILLENNIUM TRANSLATIONS LTD,29/09/2020,44.00 ,TRANSLATION & INTERPRETATION,V001580941
ROCHDALE BOROUGH COUNCIL,29/09/2020,CHILDREN�S SOCIAL CARE,MILLENNIUM TRANSLATIONS LTD,29/09/2020,48.00 ,TRANSLATION & INTERPRETATION,V001580942
ROCHDALE BOROUGH COUNCIL,29/09/2020,CHILDREN�S SOCIAL CARE,MILLENNIUM TRANSLATIONS LTD,29/09/2020,55.10 ,TRANSLATION & INTERPRETATION,V001580943
ROCHDALE BOROUGH COUNCIL,29/09/2020,CHILDREN�S SOCIAL CARE,MILLENNIUM TRANSLATIONS LTD,29/09/2020,48.00 ,TRANSLATION & INTERPRETATION,V001580952
ROCHDALE BOROUGH COUNCIL,29/09/2020,CHILDREN�S SOCIAL CARE,MILLENNIUM TRANSLATIONS LTD,29/09/2020,48.00 ,TRANSLATION & INTERPRETATION,V001581101
ROCHDALE BOROUGH COUNCIL,23/09/2020,CHILDREN�S SOCIAL CARE,MILLENNIUM TRANSLATIONS LTD,23/09/2020,48.00 ,TRANSLATION & INTERPRETATION,V001581108
ROCHDALE BOROUGH COUNCIL,29/09/2020,CHILDREN�S SOCIAL CARE,MILLENNIUM TRANSLATIONS LTD,29/09/2020,86.40 ,TRANSLATION & INTERPRETATION,V001582276
ROCHDALE BOROUGH COUNCIL,29/09/2020,CHILDREN�S SOCIAL CARE,MILLENNIUM TRANSLATIONS LTD,29/09/2020,76.40 ,TRANSLATION & INTERPRETATION,V001582277
ROCHDALE BOROUGH COUNCIL,14/09/2020,CHILDREN�S SOCIAL CARE,FLYING COLOURS,14/09/2020,4185.00 ,FOSTER PARENTS BASIC ALLOWANCE,V001582322
ROCHDALE BOROUGH COUNCIL,10/09/2020,CHILDREN�S SOCIAL CARE,HALLIWELL HOMES LTD,10/09/2020,21235.00 ,EBD (EMOT & BEHAV DIFF) PLACEMENTS,V001582325
ROCHDALE BOROUGH COUNCIL,01/09/2020,COMMISSIONING AND STATUTORY,CRESTA WORLD TRAVEL LIMITED,01/09/2020,-93.10 ,STAFF TRAVELLING EXPENSES,V001582998
ROCHDALE BOROUGH COUNCIL,25/09/2020,PROPERTY AND HIGHWAYS,NPOWER LIMITED,25/09/2020,-44988.58 ,ELECTRICITY,V001583670
ROCHDALE BOROUGH COUNCIL,29/09/2020,CHILDREN�S SOCIAL CARE,MILLENNIUM TRANSLATIONS LTD,29/09/2020,76.40 ,TRANSLATION & INTERPRETATION,V001583682
ROCHDALE BOROUGH COUNCIL,29/09/2020,CHILDREN�S SOCIAL CARE,MILLENNIUM TRANSLATIONS LTD,29/09/2020,48.00 ,TRANSLATION & INTERPRETATION,V001583683
ROCHDALE BOROUGH COUNCIL,29/09/2020,CHILDREN�S SOCIAL CARE,MILLENNIUM TRANSLATIONS LTD,29/09/2020,48.00 ,TRANSLATION & INTERPRETATION,V001583685
ROCHDALE BOROUGH COUNCIL,16/09/2020,PROPERTY AND HIGHWAYS,HOWDENS JOINERY CO LIMITED,16/09/2020,26.84 ,PROPERTY - WORKS ELEMENT,V001583724
ROCHDALE BOROUGH COUNCIL,10/09/2020,NEIGHBOURHOODS AND ENVIRONMENT,SOFTCAT LTD,10/09/2020,18.56 ,EQUIPMENT - GENERAL,V001583989
ROCHDALE BOROUGH COUNCIL,10/09/2020,NEIGHBOURHOODS AND ENVIRONMENT,SOFTCAT LTD,10/09/2020,49.88 ,EQUIPMENT - GENERAL,V001583989
ROCHDALE BOROUGH COUNCIL,10/09/2020,NEIGHBOURHOODS AND ENVIRONMENT,SOFTCAT LTD,10/09/2020,7.50 ,EQUIPMENT - GENERAL,V001583989
ROCHDALE BOROUGH COUNCIL,11/09/2020,CHILDREN�S SOCIAL CARE,FOSTERING SOLUTIONS LTD,11/09/2020,2218.67 ,FOSTER PARENTS BASIC ALLOWANCE,V001584007
ROCHDALE BOROUGH COUNCIL,09/09/2020,CHILDREN�S SOCIAL CARE,MILLENNIUM TRANSLATIONS LTD,09/09/2020,48.00 ,TRANSLATION & INTERPRETATION,V001584105
ROCHDALE BOROUGH COUNCIL,23/09/2020,PUBLIC HEALTH,EARLY BREAK,23/09/2020,50213.00 ,ACTIVITIES,V001584136
ROCHDALE BOROUGH COUNCIL,03/09/2020,NEIGHBOURHOODS AND ENVIRONMENT,MHR,03/09/2020,-1535.92 ,SOFTWARE,V001584151
ROCHDALE BOROUGH COUNCIL,03/09/2020,RESOURCES,MHR,03/09/2020,-2377.21 ,SOFTWARE,V001584152
ROCHDALE BOROUGH COUNCIL,03/09/2020,NEIGHBOURHOODS AND ENVIRONMENT,MHR,03/09/2020,-269.81 ,SOFTWARE,V001584153
ROCHDALE BOROUGH COUNCIL,03/09/2020,RESOURCES,MHR,03/09/2020,-3221.60 ,SOFTWARE,V001584154
ROCHDALE BOROUGH COUNCIL,03/09/2020,NEIGHBOURHOODS AND ENVIRONMENT,MHR,03/09/2020,-19089.55 ,SOFTWARE,V001584155
ROCHDALE BOROUGH COUNCIL,03/09/2020,NEIGHBOURHOODS AND ENVIRONMENT,MHR,03/09/2020,-605.03 ,SOFTWARE,V001584156
ROCHDALE BOROUGH COUNCIL,03/09/2020,RESOURCES,MHR,03/09/2020,-3960.00 ,SOFTWARE,V001584157
ROCHDALE BOROUGH COUNCIL,03/09/2020,RESOURCES,MHR,03/09/2020,-271.23 ,SOFTWARE,V001584158
ROCHDALE BOROUGH COUNCIL,30/09/2020,CHILDREN�S SOCIAL CARE,MILLENNIUM TRANSLATIONS LTD,30/09/2020,48.00 ,TRANSLATION & INTERPRETATION,V001585959
ROCHDALE BOROUGH COUNCIL,29/09/2020,CHILDREN�S SOCIAL CARE,MILLENNIUM TRANSLATIONS LTD,29/09/2020,87.40 ,TRANSLATION & INTERPRETATION,V001585960
ROCHDALE BOROUGH COUNCIL,30/09/2020,CHILDREN�S SOCIAL CARE,MILLENNIUM TRANSLATIONS LTD,30/09/2020,68.00 ,TRANSLATION & INTERPRETATION,V001585961
ROCHDALE BOROUGH COUNCIL,28/09/2020,ECONOMY DIRECTORATE,ADT FIRE & SECURITY PLC,28/09/2020,-342.00 ,MAINTENANCE,V001585973
ROCHDALE BOROUGH COUNCIL,29/09/2020,CHILDREN�S SOCIAL CARE,MILLENNIUM TRANSLATIONS LTD,29/09/2020,65.10 ,TRANSLATION & INTERPRETATION,V001586015
ROCHDALE BOROUGH COUNCIL,29/09/2020,CHILDREN�S SOCIAL CARE,MILLENNIUM TRANSLATIONS LTD,29/09/2020,65.10 ,TRANSLATION & INTERPRETATION,V001586039
ROCHDALE BOROUGH COUNCIL,15/09/2020,EARLY HELP AND SCHOOLS,MILLENNIUM TRANSLATIONS LTD,15/09/2020,48.00 ,TRANSLATION & INTERPRETATION,V001586049
ROCHDALE BOROUGH COUNCIL,28/09/2020,CHILDREN�S SOCIAL CARE,STEPPING STONE PROJECTS,28/09/2020,1394.40 ,YOUNG PEOPLES RENTS,V001586358
ROCHDALE BOROUGH COUNCIL,29/09/2020,CHILDREN�S SOCIAL CARE,MILLENNIUM TRANSLATIONS LTD,29/09/2020,48.00 ,TRANSLATION & INTERPRETATION,V001586371
ROCHDALE BOROUGH COUNCIL,04/09/2020,NEIGHBOURHOODS AND ENVIRONMENT,LK CONSULT LTD,04/09/2020,1800.00 ,MINOR BUILDING WORKS,V001586424
ROCHDALE BOROUGH COUNCIL,04/09/2020,NEIGHBOURHOODS AND ENVIRONMENT,LK CONSULT LTD,04/09/2020,250.00 ,MINOR BUILDING WORKS,V001586424
ROCHDALE BOROUGH COUNCIL,29/09/2020,CHILDREN�S SOCIAL CARE,MILLENNIUM TRANSLATIONS LTD,29/09/2020,48.00 ,TRANSLATION & INTERPRETATION,V001588486
ROCHDALE BOROUGH COUNCIL,29/09/2020,CHILDREN�S SOCIAL CARE,MILLENNIUM TRANSLATIONS LTD,29/09/2020,60.10 ,TRANSLATION & INTERPRETATION,V001588487
ROCHDALE BOROUGH COUNCIL,15/09/2020,PROPERTY AND HIGHWAYS,ROTA ROD LIMITED,15/09/2020,250.00 ,REPAIRS & ALTS OF BUILDINGS,V001588489
ROCHDALE BOROUGH COUNCIL,28/09/2020,CHILDREN�S SOCIAL CARE,PEOPLE WHO FOSTER,28/09/2020,3487.50 ,FOSTER PARENTS BASIC ALLOWANCE,V001588552
ROCHDALE BOROUGH COUNCIL,23/09/2020,NEIGHBOURHOODS AND ENVIRONMENT,ORDNANCE SURVEY LTD,23/09/2020,1500.00 ,SOFTWARE,V001588886
ROCHDALE BOROUGH COUNCIL,17/09/2020,NEIGHBOURHOODS AND ENVIRONMENT,CSB SUPPLIES,17/09/2020,19.00 ,EQUIPMENT - GENERAL,V001588890
ROCHDALE BOROUGH COUNCIL,17/09/2020,NEIGHBOURHOODS AND ENVIRONMENT,CSB SUPPLIES,17/09/2020,124.75 ,EQUIPMENT - GENERAL,V001588890
ROCHDALE BOROUGH COUNCIL,25/09/2020,PUBLIC HEALTH,MANCHESTER UNIVERSITY NHS FOUNDATION TRUST MFT,25/09/2020,7431.00 ,PH OTHER CONTRACTS,V001589039
ROCHDALE BOROUGH COUNCIL,29/09/2020,CHILDREN�S SOCIAL CARE,MILLENNIUM TRANSLATIONS LTD,29/09/2020,76.40 ,TRANSLATION & INTERPRETATION,V001593312
ROCHDALE BOROUGH COUNCIL,25/09/2020,PROPERTY AND HIGHWAYS,R & M ROOFING & BUILDING SUPPLIES LTD,25/09/2020,5.90 ,PROPERTY - WORKS ELEMENT,V001593344
ROCHDALE BOROUGH COUNCIL,25/09/2020,ADULT CARE LCO FUNCTIONS,REDACTED - PERSONAL DATA,25/09/2020,-563.57 ,DIRECT PAYMENTS,V001593538
ROCHDALE BOROUGH COUNCIL,25/09/2020,ADULT CARE LCO FUNCTIONS,REDACTED - PERSONAL DATA,25/09/2020,-1578.00 ,DIRECT PAYMENTS,V001593539
ROCHDALE BOROUGH COUNCIL,25/09/2020,ADULT CARE LCO FUNCTIONS,REDACTED - PERSONAL DATA,25/09/2020,-1578.00 ,DIRECT PAYMENTS,V001593540
ROCHDALE BOROUGH COUNCIL,25/09/2020,ADULT CARE LCO FUNCTIONS,REDACTED - PERSONAL DATA,25/09/2020,1503.40 ,DIRECT PAYMENTS,V001593541
ROCHDALE BOROUGH COUNCIL,23/09/2020,PROPERTY AND HIGHWAYS,ARCO GROUP LIMITED,23/09/2020,93.05 ,"CLOTHES, UNIFORM AND LAUNDRY",V001594781
ROCHDALE BOROUGH COUNCIL,23/09/2020,PROPERTY AND HIGHWAYS,ARCO GROUP LIMITED,23/09/2020,93.05 ,"CLOTHES, UNIFORM AND LAUNDRY",V001594781
ROCHDALE BOROUGH COUNCIL,23/09/2020,PROPERTY AND HIGHWAYS,ARCO GROUP LIMITED,23/09/2020,93.05 ,"CLOTHES, UNIFORM AND LAUNDRY",V001594781
ROCHDALE BOROUGH COUNCIL,09/09/2020,CHILDREN�S SOCIAL CARE,MILLENNIUM TRANSLATIONS LTD,09/09/2020,52.00 ,TRANSLATION & INTERPRETATION,V001594784
ROCHDALE BOROUGH COUNCIL,02/09/2020,ECONOMY DIRECTORATE,J C MILLS & SON LIMITED,02/09/2020,1353.07 ,CENTRAL HEATING,V001599446
ROCHDALE BOROUGH COUNCIL,21/09/2020,NEIGHBOURHOODS AND ENVIRONMENT,SOLOPROTECT LTD,21/09/2020,309.28 ,SECURITY,V001599447
ROCHDALE BOROUGH COUNCIL,01/09/2020,PROPERTY AND HIGHWAYS,ROCHDALE GLASS AND GLAZING CO LTD,01/09/2020,32.00 ,PROPERTY - WORKS ELEMENT,V001599453
ROCHDALE BOROUGH COUNCIL,28/09/2020,ECONOMY DIRECTORATE,EDF ENERGY 1 LIMITED,28/09/2020,981.01 ,ELECTRICITY,V001599469
ROCHDALE BOROUGH COUNCIL,16/09/2020,EARLY HELP AND SCHOOLS,HOWDENS JOINERY CO LIMITED,16/09/2020,2868.81 ,REPAIRS & ALTS OF BUILDINGS,V001599479
ROCHDALE BOROUGH COUNCIL,16/09/2020,EARLY HELP AND SCHOOLS,HOWDENS JOINERY CO LIMITED,16/09/2020,75.08 ,REPAIRS & ALTS OF BUILDINGS,V001599479
ROCHDALE BOROUGH COUNCIL,28/09/2020,PROPERTY AND HIGHWAYS,ABC INDUSTRIAL DOORS LTD,28/09/2020,95.50 ,ELECTRICAL,V001600572
ROCHDALE BOROUGH COUNCIL,08/09/2020,NEIGHBOURHOODS AND ENVIRONMENT,CORPORATE DIRECT EUROPE LIMITED,08/09/2020,1000.00 ,TRANSACTIONS-EXPENDITURE,V001601618
ROCHDALE BOROUGH COUNCIL,08/09/2020,NEIGHBOURHOODS AND ENVIRONMENT,CORPORATE DIRECT EUROPE LIMITED,08/09/2020,2625.00 ,TRANSACTIONS-EXPENDITURE,V001601618
ROCHDALE BOROUGH COUNCIL,18/09/2020,EARLY HELP AND SCHOOLS,HOWDENS JOINERY CO LIMITED,18/09/2020,350.48 ,REPAIRS & ALTS OF BUILDINGS,V001601637
ROCHDALE BOROUGH COUNCIL,04/09/2020,ECONOMY DIRECTORATE,WSP LTD UK,04/09/2020,3500.00 ,ACTIVITIES,V001601638
ROCHDALE BOROUGH COUNCIL,17/09/2020,CHILDREN�S SOCIAL CARE,EXCEL FOSTERING,17/09/2020,5535.67 ,FOSTER PARENTS BASIC ALLOWANCE,V001601664
ROCHDALE BOROUGH COUNCIL,02/09/2020,ECONOMY DIRECTORATE,J C MILLS & SON LIMITED,02/09/2020,2364.99 ,CENTRAL HEATING,V001601677
ROCHDALE BOROUGH COUNCIL,16/09/2020,RESOURCES,CRITIQOM LIMITED,16/09/2020,323.91 ,PRINTING,V001601685
ROCHDALE BOROUGH COUNCIL,08/09/2020,RESOURCES,CRITIQOM LIMITED,08/09/2020,49.35 ,PRINTING,V001601698
ROCHDALE BOROUGH COUNCIL,28/09/2020,PROPERTY AND HIGHWAYS,W J LEWIS BUILDERS MERCHANTS LIMITED,28/09/2020,24.34 ,PROPERTY - WORKS ELEMENT,V001601721
ROCHDALE BOROUGH COUNCIL,18/09/2020,CHILDREN�S SOCIAL CARE,PARADIGM PROFESSIONAL CONSULTANCY LTD,18/09/2020,708.00 ,AGENCY STAFF,V001602417
ROCHDALE BOROUGH COUNCIL,08/09/2020,ECONOMY DIRECTORATE,ABC INDUSTRIAL DOORS LTD,08/09/2020,150.50 ,ELECTRICAL,V001602484
ROCHDALE BOROUGH COUNCIL,08/09/2020,ECONOMY DIRECTORATE,LANCASHIRE LOCK AND SAFE COMPANY LIMITED,08/09/2020,85.00 ,REPAIRS & ALTS OF BUILDINGS,V001602488
ROCHDALE BOROUGH COUNCIL,11/09/2020,RESOURCES,VALTECH LTD,11/09/2020,456.75 ,EXTERNAL CONTRACTED PRINTING,V001602490
ROCHDALE BOROUGH COUNCIL,11/09/2020,ECONOMY DIRECTORATE,ADT FIRE & SECURITY PLC,11/09/2020,36.60 ,SECURITY,V001602494
ROCHDALE BOROUGH COUNCIL,04/09/2020,PROPERTY AND HIGHWAYS,CALEDONIAN LIFTS MANCHESTER LTD,04/09/2020,35.00 ,PROPERTY - WORKS ELEMENT,V001602509
ROCHDALE BOROUGH COUNCIL,28/09/2020,NEIGHBOURHOODS AND ENVIRONMENT,PATTERSONS BRISTOL LTD,28/09/2020,-55.96 ,CONSUMABLES,V001602566
ROCHDALE BOROUGH COUNCIL,28/09/2020,NEIGHBOURHOODS AND ENVIRONMENT,PATTERSONS BRISTOL LTD,28/09/2020,-3.64 ,CLEANING MATERIALS,V001602566
ROCHDALE BOROUGH COUNCIL,28/09/2020,NEIGHBOURHOODS AND ENVIRONMENT,PATTERSONS BRISTOL LTD,28/09/2020,-7.08 ,CLEANING EQUIPMENT,V001602566
ROCHDALE BOROUGH COUNCIL,28/09/2020,NEIGHBOURHOODS AND ENVIRONMENT,PATTERSONS BRISTOL LTD,28/09/2020,-7.08 ,CLEANING EQUIPMENT,V001602566
ROCHDALE BOROUGH COUNCIL,28/09/2020,NEIGHBOURHOODS AND ENVIRONMENT,PATTERSONS BRISTOL LTD,28/09/2020,-6.30 ,CLEANING MATERIALS,V001602566
ROCHDALE BOROUGH COUNCIL,28/09/2020,NEIGHBOURHOODS AND ENVIRONMENT,PATTERSONS BRISTOL LTD,28/09/2020,-3.85 ,CLEANING EQUIPMENT,V001602566
ROCHDALE BOROUGH COUNCIL,01/09/2020,PROPERTY AND HIGHWAYS,FRANK KEY TOOL HIRE LTD,01/09/2020,90.00 ,PROPERTY - WORKS ELEMENT,V001602588
ROCHDALE BOROUGH COUNCIL,08/09/2020,ECONOMY DIRECTORATE,GTM ELECTRICAL SERVICES LIMITED,08/09/2020,80.00 ,ELECTRICAL,V001602634
ROCHDALE BOROUGH COUNCIL,22/09/2020,CHILDREN�S SOCIAL CARE,FLYING COLOURS,22/09/2020,4185.00 ,FOSTER PARENTS BASIC ALLOWANCE,V001602637
ROCHDALE BOROUGH COUNCIL,01/09/2020,ECONOMY DIRECTORATE,POOLE DICK ASSOCIATES,01/09/2020,300.00 ,PROFESSIONAL FEES,V001602677
ROCHDALE BOROUGH COUNCIL,14/09/2020,ECONOMY DIRECTORATE,IRWELL STREET METALS,14/09/2020,6.33 ,REFUSE DISPOSAL,V001602679
ROCHDALE BOROUGH COUNCIL,24/09/2020,NEIGHBOURHOODS AND ENVIRONMENT,TRAVIS PERKINS TRADING CO LTD,24/09/2020,319.00 ,EQUIPMENT - GENERAL,V001602763
ROCHDALE BOROUGH COUNCIL,08/09/2020,CHILDREN�S SOCIAL CARE,HAMPTONS RESOURCING LTD,08/09/2020,1790.02 ,AGENCY STAFF,V001602767
ROCHDALE BOROUGH COUNCIL,08/09/2020,CHILDREN�S SOCIAL CARE,HAMPTONS RESOURCING LTD,08/09/2020,581.26 ,AGENCY STAFF,V001602767
ROCHDALE BOROUGH COUNCIL,16/09/2020,NEIGHBOURHOODS AND ENVIRONMENT,ALLSTAR BUSINESS SOLUTIONS LTD,16/09/2020,30.15 ,FUEL,V001603028
ROCHDALE BOROUGH COUNCIL,16/09/2020,NEIGHBOURHOODS AND ENVIRONMENT,ALLSTAR BUSINESS SOLUTIONS LTD,16/09/2020,78.85 ,FUEL,V001603028
ROCHDALE BOROUGH COUNCIL,16/09/2020,NEIGHBOURHOODS AND ENVIRONMENT,ALLSTAR BUSINESS SOLUTIONS LTD,16/09/2020,898.95 ,FUEL,V001603028
ROCHDALE BOROUGH COUNCIL,16/09/2020,NEIGHBOURHOODS AND ENVIRONMENT,ALLSTAR BUSINESS SOLUTIONS LTD,16/09/2020,307.41 ,FUEL,V001603028
ROCHDALE BOROUGH COUNCIL,16/09/2020,NEIGHBOURHOODS AND ENVIRONMENT,ALLSTAR BUSINESS SOLUTIONS LTD,16/09/2020,19.28 ,FUEL,V001603028
ROCHDALE BOROUGH COUNCIL,16/09/2020,NEIGHBOURHOODS AND ENVIRONMENT,ALLSTAR BUSINESS SOLUTIONS LTD,16/09/2020,73.95 ,FUEL,V001603028
ROCHDALE BOROUGH COUNCIL,16/09/2020,NEIGHBOURHOODS AND ENVIRONMENT,ALLSTAR BUSINESS SOLUTIONS LTD,16/09/2020,61.03 ,FUEL,V001603028
ROCHDALE BOROUGH COUNCIL,16/09/2020,PROPERTY AND HIGHWAYS,ALLSTAR BUSINESS SOLUTIONS LTD,16/09/2020,97.35 ,FUEL,V001603028
ROCHDALE BOROUGH COUNCIL,16/09/2020,CHILDREN�S SOCIAL CARE,ALLSTAR BUSINESS SOLUTIONS LTD,16/09/2020,40.32 ,FUEL,V001603028
ROCHDALE BOROUGH COUNCIL,08/09/2020,NEIGHBOURHOODS AND ENVIRONMENT,GRAVITAS RECRUITMENT GROUP,08/09/2020,1150.00 ,AGENCY STAFF,V001603057
ROCHDALE BOROUGH COUNCIL,16/09/2020,NEIGHBOURHOODS AND ENVIRONMENT,EXCLUSEC,16/09/2020,6526.08 ,SECURITY,V001603061
ROCHDALE BOROUGH COUNCIL,07/09/2020,CHILDREN�S SOCIAL CARE,COMPASS CHILDRENS HOMES LTD,07/09/2020,23117.01 ,EBD (EMOT & BEHAV DIFF) PLACEMENTS,V001603064
ROCHDALE BOROUGH COUNCIL,21/09/2020,PROPERTY AND HIGHWAYS,ROCHDALE GLASS AND GLAZING CO LTD,21/09/2020,34.00 ,PROPERTY - WORKS ELEMENT,V001603119
ROCHDALE BOROUGH COUNCIL,11/09/2020,CHILDREN�S SOCIAL CARE,COMPASS FOSTERING NORTH LTD,11/09/2020,3647.68 ,FOSTER PARENTS BASIC ALLOWANCE,V001603170
ROCHDALE BOROUGH COUNCIL,11/09/2020,PROPERTY AND HIGHWAYS,REACH PUBLISHING SERVICES LTD,11/09/2020,52.92 ,CHARGES-COMMITAL,V001603172
ROCHDALE BOROUGH COUNCIL,11/09/2020,PROPERTY AND HIGHWAYS,REACH PUBLISHING SERVICES LTD,11/09/2020,70.93 ,CHARGES-COMMITAL,V001603177
ROCHDALE BOROUGH COUNCIL,14/09/2020,PROPERTY AND HIGHWAYS,REACH PUBLISHING SERVICES LTD,14/09/2020,60.80 ,ADVERTISING,V001603180
ROCHDALE BOROUGH COUNCIL,11/09/2020,PROPERTY AND HIGHWAYS,REACH PUBLISHING SERVICES LTD,11/09/2020,70.93 ,CHARGES-COMMITAL,V001603181
ROCHDALE BOROUGH COUNCIL,14/09/2020,PROPERTY AND HIGHWAYS,REACH PUBLISHING SERVICES LTD,14/09/2020,60.80 ,CHARGES-COMMITAL,V001603198
ROCHDALE BOROUGH COUNCIL,11/09/2020,PROPERTY AND HIGHWAYS,REACH PUBLISHING SERVICES LTD,11/09/2020,70.56 ,CHARGES-COMMITAL,V001603199
ROCHDALE BOROUGH COUNCIL,02/09/2020,PROPERTY AND HIGHWAYS,ABBEY ARCHITECTURAL IRONMONGERY CO LTD,02/09/2020,3.99 ,PROPERTY - WORKS ELEMENT,V001604619
ROCHDALE BOROUGH COUNCIL,02/09/2020,PROPERTY AND HIGHWAYS,ABBEY ARCHITECTURAL IRONMONGERY CO LTD,02/09/2020,21.89 ,PROPERTY - WORKS ELEMENT,V001604620
ROCHDALE BOROUGH COUNCIL,04/09/2020,CHILDREN�S SOCIAL CARE,CRESTA WORLD TRAVEL LIMITED,04/09/2020,16.50 ,PUBLIC TRANSPORT,V001604626
ROCHDALE BOROUGH COUNCIL,04/09/2020,CHILDREN�S SOCIAL CARE,CRESTA WORLD TRAVEL LIMITED,04/09/2020,3.00 ,PUBLIC TRANSPORT,V001604626
ROCHDALE BOROUGH COUNCIL,01/09/2020,PROPERTY AND HIGHWAYS,FRANK KEY TOOL HIRE LTD,01/09/2020,90.00 ,PROPERTY - WORKS ELEMENT,V001604627
ROCHDALE BOROUGH COUNCIL,07/09/2020,PROPERTY AND HIGHWAYS,W J LEWIS BUILDERS MERCHANTS LIMITED,07/09/2020,9.95 ,PROPERTY - WORKS ELEMENT,V001604633
ROCHDALE BOROUGH COUNCIL,07/09/2020,NEIGHBOURHOODS AND ENVIRONMENT,ROCHDALE TOWN TAXIS LTD,07/09/2020,12.00 ,TAXI HIRE,V001604652
ROCHDALE BOROUGH COUNCIL,07/09/2020,NEIGHBOURHOODS AND ENVIRONMENT,ROCHDALE TOWN TAXIS LTD,07/09/2020,12.00 ,TAXI HIRE,V001604652
ROCHDALE BOROUGH COUNCIL,07/09/2020,NEIGHBOURHOODS AND ENVIRONMENT,ROCHDALE TOWN TAXIS LTD,07/09/2020,12.00 ,TAXI HIRE,V001604652
ROCHDALE BOROUGH COUNCIL,07/09/2020,NEIGHBOURHOODS AND ENVIRONMENT,ROCHDALE TOWN TAXIS LTD,07/09/2020,12.00 ,TAXI HIRE,V001604654
ROCHDALE BOROUGH COUNCIL,07/09/2020,NEIGHBOURHOODS AND ENVIRONMENT,ROCHDALE TOWN TAXIS LTD,07/09/2020,12.00 ,TAXI HIRE,V001604654
ROCHDALE BOROUGH COUNCIL,07/09/2020,NEIGHBOURHOODS AND ENVIRONMENT,ROCHDALE TOWN TAXIS LTD,07/09/2020,12.00 ,TAXI HIRE,V001604654
ROCHDALE BOROUGH COUNCIL,07/09/2020,NEIGHBOURHOODS AND ENVIRONMENT,ROCHDALE TOWN TAXIS LTD,07/09/2020,170.00 ,TAXI HIRE,V001604655
ROCHDALE BOROUGH COUNCIL,07/09/2020,NEIGHBOURHOODS AND ENVIRONMENT,ROCHDALE TOWN TAXIS LTD,07/09/2020,170.00 ,TAXI HIRE,V001604655
ROCHDALE BOROUGH COUNCIL,07/09/2020,NEIGHBOURHOODS AND ENVIRONMENT,ROCHDALE TOWN TAXIS LTD,07/09/2020,170.00 ,TAXI HIRE,V001604655
ROCHDALE BOROUGH COUNCIL,24/09/2020,RESOURCES,JACOBS,24/09/2020,0.00 ,INPUT VAT -  ADJUSTMENTS,V001604657
ROCHDALE BOROUGH COUNCIL,21/09/2020,CHILDREN�S SOCIAL CARE,PARADIGM PROFESSIONAL CONSULTANCY LTD,21/09/2020,1387.50 ,AGENCY STAFF,V001604934
ROCHDALE BOROUGH COUNCIL,07/09/2020,ECONOMY DIRECTORATE,G2 RECRUITMENT SOLUTIONS LTD,07/09/2020,1487.50 ,AGENCY STAFF,V001604936
ROCHDALE BOROUGH COUNCIL,08/09/2020,PROPERTY AND HIGHWAYS,STRATA RENEWABLES LTD,08/09/2020,2415.00 ,MINOR BUILDING WORKS,V001604942
ROCHDALE BOROUGH COUNCIL,02/09/2020,CHILDREN�S SOCIAL CARE,CRESTA WORLD TRAVEL LIMITED,02/09/2020,16.50 ,PUBLIC TRANSPORT,V001604945
ROCHDALE BOROUGH COUNCIL,02/09/2020,CHILDREN�S SOCIAL CARE,CRESTA WORLD TRAVEL LIMITED,02/09/2020,3.00 ,PUBLIC TRANSPORT,V001604945
ROCHDALE BOROUGH COUNCIL,07/09/2020,RESOURCES,FORBES SOLICITORS,07/09/2020,200.00 ,INPUT VAT -  ADJUSTMENTS,V001604987
ROCHDALE BOROUGH COUNCIL,29/09/2020,CHILDREN�S SOCIAL CARE,MILLENNIUM TRANSLATIONS LTD,29/09/2020,96.00 ,TRANSLATION & INTERPRETATION,V001604999
ROCHDALE BOROUGH COUNCIL,09/09/2020,EARLY HELP AND SCHOOLS,TOMAX BUILDING SERVICES LTD,09/09/2020,7006.79 ,MINOR BUILDING WORKS,V001605000
ROCHDALE BOROUGH COUNCIL,01/09/2020,PROPERTY AND HIGHWAYS,DDH FABRICATIONS LTD,01/09/2020,410.00 ,PROPERTY - WORKS ELEMENT,V001605002
ROCHDALE BOROUGH COUNCIL,01/09/2020,PROPERTY AND HIGHWAYS,ELECTRIC CENTER,01/09/2020,274.66 ,PROPERTY - WORKS ELEMENT,V001605010
ROCHDALE BOROUGH COUNCIL,01/09/2020,PROPERTY AND HIGHWAYS,ELECTRIC CENTER,01/09/2020,41.40 ,ELECTRICAL,V001605011
ROCHDALE BOROUGH COUNCIL,14/09/2020,ECONOMY DIRECTORATE,IRWELL STREET METALS,14/09/2020,94.54 ,REFUSE DISPOSAL,V001605017
ROCHDALE BOROUGH COUNCIL,09/09/2020,NEIGHBOURHOODS AND ENVIRONMENT,J A CRYER EXCAVATION & GROUNDWORK CONTRACTORS LTD,09/09/2020,4800.00 ,ENVIRONMENTAL WORKS LANDSCAPE,V001605021
ROCHDALE BOROUGH COUNCIL,02/09/2020,PROPERTY AND HIGHWAYS,FRANK KEY TOOL HIRE LTD,02/09/2020,44.40 ,PROPERTY - WORKS ELEMENT,V001605022
ROCHDALE BOROUGH COUNCIL,01/09/2020,NEIGHBOURHOODS AND ENVIRONMENT,AQUACOOL LTD,01/09/2020,233.00 ,EXPENSES - GENERAL,V001605028
ROCHDALE BOROUGH COUNCIL,28/09/2020,PROPERTY AND HIGHWAYS,ELECTRIC CENTER,28/09/2020,47.83 ,PROPERTY - WORKS ELEMENT,V001605031
ROCHDALE BOROUGH COUNCIL,22/09/2020,CHILDREN�S SOCIAL CARE,COMPASS FOSTERING NORTH LTD,22/09/2020,3699.54 ,FOSTER PARENTS BASIC ALLOWANCE,V001605045
ROCHDALE BOROUGH COUNCIL,01/09/2020,PUBLIC HEALTH,ACTION TOGETHER,01/09/2020,22916.66 ,PH OTHER CONTRACTS,V001605050
ROCHDALE BOROUGH COUNCIL,17/09/2020,PUBLIC HEALTH,GREATER MANCHESTER MENTAL HEALTH NHS,17/09/2020,5520.00 ,CONTRACTED SERVICES,V001605067
ROCHDALE BOROUGH COUNCIL,17/09/2020,NEIGHBOURHOODS AND ENVIRONMENT,ABC INDUSTRIAL DOORS LTD,17/09/2020,95.50 ,ELECTRICAL,V001605070
ROCHDALE BOROUGH COUNCIL,04/09/2020,ECONOMY DIRECTORATE,ABC INDUSTRIAL DOORS LTD,04/09/2020,95.50 ,ELECTRICAL,V001605079
ROCHDALE BOROUGH COUNCIL,17/09/2020,EARLY HELP AND SCHOOLS,ABC INDUSTRIAL DOORS LTD,17/09/2020,95.50 ,ELECTRICAL,V001605081
ROCHDALE BOROUGH COUNCIL,02/09/2020,NEIGHBOURHOODS AND ENVIRONMENT,ROTA ROD LIMITED,02/09/2020,120.00 ,REPAIRS & ALTS OF BUILDINGS,V001605088
ROCHDALE BOROUGH COUNCIL,17/09/2020,ECONOMY DIRECTORATE,BROWNS LADDERS AND CEILINGS LIMITED,17/09/2020,77.62 ,EXPENSES - GENERAL,V001605089
ROCHDALE BOROUGH COUNCIL,17/09/2020,ECONOMY DIRECTORATE,BROWNS LADDERS AND CEILINGS LIMITED,17/09/2020,77.62 ,EXPENSES - GENERAL,V001605089
ROCHDALE BOROUGH COUNCIL,02/09/2020,PROPERTY AND HIGHWAYS,ABBEY ARCHITECTURAL IRONMONGERY CO LTD,02/09/2020,20.75 ,BUILDING MATERIALS,V001605094
ROCHDALE BOROUGH COUNCIL,23/09/2020,ECONOMY DIRECTORATE,ADT FIRE & SECURITY PLC,23/09/2020,709.05 ,SECURITY,V001605098
ROCHDALE BOROUGH COUNCIL,03/09/2020,PROPERTY AND HIGHWAYS,WOLSELEY UK LIMITED,03/09/2020,3.53 ,BUILDING MATERIALS,V001605100
ROCHDALE BOROUGH COUNCIL,02/09/2020,PROPERTY AND HIGHWAYS,WOLSELEY UK LIMITED,02/09/2020,7.96 ,BUILDING MATERIALS,V001605101
ROCHDALE BOROUGH COUNCIL,02/09/2020,PROPERTY AND HIGHWAYS,ROCHDALE GLASS AND GLAZING CO LTD,02/09/2020,14.00 ,PROPERTY - WORKS ELEMENT,V001605102
ROCHDALE BOROUGH COUNCIL,02/09/2020,PROPERTY AND HIGHWAYS,ROCHDALE GLASS AND GLAZING CO LTD,02/09/2020,18.00 ,PROPERTY - WORKS ELEMENT,V001605103
ROCHDALE BOROUGH COUNCIL,28/09/2020,ECONOMY DIRECTORATE,GENR8 ROCHDALE LTD,28/09/2020,18000.00 ,CONSULTANTS FEES,V001605108
ROCHDALE BOROUGH COUNCIL,28/09/2020,ECONOMY DIRECTORATE,EDF ENERGY 1 LIMITED,28/09/2020,849.28 ,ELECTRICITY,V001605123
ROCHDALE BOROUGH COUNCIL,28/09/2020,ECONOMY DIRECTORATE,EDF ENERGY 1 LIMITED,28/09/2020,9.58 ,ELECTRICITY,V001605123
ROCHDALE BOROUGH COUNCIL,09/09/2020,CHILDREN�S SOCIAL CARE,MILLENNIUM TRANSLATIONS LTD,09/09/2020,76.40 ,TRANSLATION & INTERPRETATION,V001605126
ROCHDALE BOROUGH COUNCIL,01/09/2020,PROPERTY AND HIGHWAYS,ELECTRIC CENTER,01/09/2020,25.74 ,ELECTRICAL,V001605129
ROCHDALE BOROUGH COUNCIL,01/09/2020,PROPERTY AND HIGHWAYS,ELECTRIC CENTER,01/09/2020,90.31 ,PROPERTY - WORKS ELEMENT,V001605130
ROCHDALE BOROUGH COUNCIL,09/09/2020,NEIGHBOURHOODS AND ENVIRONMENT,J A CRYER EXCAVATION & GROUNDWORK CONTRACTORS LTD,09/09/2020,5000.00 ,ENVIRONMENTAL WORKS LANDSCAPE,V001605133
ROCHDALE BOROUGH COUNCIL,01/09/2020,PROPERTY AND HIGHWAYS,FRANK KEY TOOL HIRE LTD,01/09/2020,21.00 ,PROPERTY - WORKS ELEMENT,V001605135
ROCHDALE BOROUGH COUNCIL,01/09/2020,CHILDREN�S SOCIAL CARE,CRESTA WORLD TRAVEL LIMITED,01/09/2020,19.50 ,EXTERNAL HIRE,V001605136
ROCHDALE BOROUGH COUNCIL,07/09/2020,RESOURCES,CRITIQOM LIMITED,07/09/2020,4049.39 ,POSTAGE,V001605168
ROCHDALE BOROUGH COUNCIL,17/09/2020,RESOURCES,CRITIQOM LIMITED,17/09/2020,1050.94 ,PRINTING & STATIONERY,V001605169
ROCHDALE BOROUGH COUNCIL,01/09/2020,PROPERTY AND HIGHWAYS,WOLSELEY UK LIMITED,01/09/2020,59.15 ,BUILDING MATERIALS,V001605174
ROCHDALE BOROUGH COUNCIL,11/09/2020,ECONOMY DIRECTORATE,ADT FIRE & SECURITY PLC,11/09/2020,192.00 ,SECURITY,V001605175
ROCHDALE BOROUGH COUNCIL,01/09/2020,PROPERTY AND HIGHWAYS,WOLSELEY UK LIMITED,01/09/2020,2.88 ,BUILDING MATERIALS,V001605176
ROCHDALE BOROUGH COUNCIL,01/09/2020,PROPERTY AND HIGHWAYS,WOLSELEY UK LIMITED,01/09/2020,38.89 ,BUILDING MATERIALS,V001605177
ROCHDALE BOROUGH COUNCIL,03/09/2020,PROPERTY AND HIGHWAYS,WOLSELEY UK LIMITED,03/09/2020,4.80 ,BUILDING MATERIALS,V001605178
ROCHDALE BOROUGH COUNCIL,01/09/2020,PROPERTY AND HIGHWAYS,WOLSELEY UK LIMITED,01/09/2020,90.66 ,BUILDING MATERIALS,V001605180
ROCHDALE BOROUGH COUNCIL,01/09/2020,PROPERTY AND HIGHWAYS,WOLSELEY UK LIMITED,01/09/2020,158.51 ,BUILDING MATERIALS,V001605181
ROCHDALE BOROUGH COUNCIL,03/09/2020,PROPERTY AND HIGHWAYS,WOLSELEY UK LIMITED,03/09/2020,90.40 ,BUILDING MATERIALS,V001605184
ROCHDALE BOROUGH COUNCIL,01/09/2020,PROPERTY AND HIGHWAYS,WOLSELEY UK LIMITED,01/09/2020,217.76 ,BUILDING MATERIALS,V001605185
ROCHDALE BOROUGH COUNCIL,01/09/2020,PROPERTY AND HIGHWAYS,WOLSELEY UK LIMITED,01/09/2020,14.08 ,BUILDING MATERIALS,V001605186
ROCHDALE BOROUGH COUNCIL,01/09/2020,PROPERTY AND HIGHWAYS,WOLSELEY UK LIMITED,01/09/2020,94.93 ,BUILDING MATERIALS,V001605187
ROCHDALE BOROUGH COUNCIL,01/09/2020,PROPERTY AND HIGHWAYS,WOLSELEY UK LIMITED,01/09/2020,31.05 ,BUILDING MATERIALS,V001605188
ROCHDALE BOROUGH COUNCIL,01/09/2020,PROPERTY AND HIGHWAYS,WOLSELEY UK LIMITED,01/09/2020,60.15 ,BUILDING MATERIALS,V001605189
ROCHDALE BOROUGH COUNCIL,01/09/2020,PROPERTY AND HIGHWAYS,WOLSELEY UK LIMITED,01/09/2020,18.16 ,BUILDING MATERIALS,V001605191
ROCHDALE BOROUGH COUNCIL,01/09/2020,PROPERTY AND HIGHWAYS,WOLSELEY UK LIMITED,01/09/2020,9.76 ,BUILDING MATERIALS,V001605192
ROCHDALE BOROUGH COUNCIL,03/09/2020,PROPERTY AND HIGHWAYS,WOLSELEY UK LIMITED,03/09/2020,87.00 ,BUILDING MATERIALS,V001605193
ROCHDALE BOROUGH COUNCIL,01/09/2020,PROPERTY AND HIGHWAYS,WOLSELEY UK LIMITED,01/09/2020,25.25 ,BUILDING MATERIALS,V001605194
ROCHDALE BOROUGH COUNCIL,03/09/2020,PROPERTY AND HIGHWAYS,WOLSELEY UK LIMITED,03/09/2020,4.76 ,BUILDING MATERIALS,V001605197
ROCHDALE BOROUGH COUNCIL,10/09/2020,NEIGHBOURHOODS AND ENVIRONMENT,G AND A TAYLOR HOTELS LTD,10/09/2020,2243.72 ,ACCOMMODATION,V001605199
ROCHDALE BOROUGH COUNCIL,10/09/2020,NEIGHBOURHOODS AND ENVIRONMENT,G AND A TAYLOR HOTELS LTD,10/09/2020,46.30 ,ACCOMMODATION,V001605199
ROCHDALE BOROUGH COUNCIL,10/09/2020,NEIGHBOURHOODS AND ENVIRONMENT,G AND A TAYLOR HOTELS LTD,10/09/2020,877.98 ,ACCOMMODATION,V001605199
ROCHDALE BOROUGH COUNCIL,04/09/2020,PROPERTY AND HIGHWAYS,ABBEY ARCHITECTURAL IRONMONGERY CO LTD,04/09/2020,73.50 ,PROPERTY - WORKS ELEMENT,V001605208
ROCHDALE BOROUGH COUNCIL,01/09/2020,PROPERTY AND HIGHWAYS,REXEL UK LIMITED,01/09/2020,462.78 ,PROPERTY - WORKS ELEMENT,V001605210
ROCHDALE BOROUGH COUNCIL,04/09/2020,PROPERTY AND HIGHWAYS,AECOM LIMITED,04/09/2020,7060.50 ,ROADWORKS,V001605214
ROCHDALE BOROUGH COUNCIL,01/09/2020,PROPERTY AND HIGHWAYS,WOLSELEY UK LIMITED,01/09/2020,28.28 ,BUILDING MATERIALS,V001605228
ROCHDALE BOROUGH COUNCIL,01/09/2020,PROPERTY AND HIGHWAYS,WOLSELEY UK LIMITED,01/09/2020,4.37 ,BUILDING MATERIALS,V001605229
ROCHDALE BOROUGH COUNCIL,01/09/2020,PROPERTY AND HIGHWAYS,WOLSELEY UK LIMITED,01/09/2020,15.99 ,BUILDING MATERIALS,V001605230
ROCHDALE BOROUGH COUNCIL,03/09/2020,PROPERTY AND HIGHWAYS,WOLSELEY UK LIMITED,03/09/2020,45.04 ,BUILDING MATERIALS,V001605231
ROCHDALE BOROUGH COUNCIL,01/09/2020,PROPERTY AND HIGHWAYS,WOLSELEY UK LIMITED,01/09/2020,16.66 ,BUILDING MATERIALS,V001605232
ROCHDALE BOROUGH COUNCIL,17/09/2020,CHILDREN�S SOCIAL CARE,SHIELD SUPPORT HUB LTD,17/09/2020,5714.28 ,YOUNG PEOPLES RENTS,V001605247
ROCHDALE BOROUGH COUNCIL,17/09/2020,CHILDREN�S SOCIAL CARE,SHIELD SUPPORT HUB LTD,17/09/2020,294.50 ,YOUNGE PERSONS ALLOWANCE,V001605247
ROCHDALE BOROUGH COUNCIL,25/09/2020,PROPERTY AND HIGHWAYS,PARR ROCHDALE LIMITED,25/09/2020,30.88 ,PROPERTY - WORKS ELEMENT,V001605249
ROCHDALE BOROUGH COUNCIL,17/09/2020,ADULT CARE LCO FUNCTIONS,JENKINSON OFFICE SUPPLIES,17/09/2020,595.80 ,MINOR BUILDING WORKS,V001605268
ROCHDALE BOROUGH COUNCIL,17/09/2020,CHILDREN�S SOCIAL CARE,CFS CARE LTD,17/09/2020,185.71 ,FOSTER PARENTS BASIC ALLOWANCE,V001605269
ROCHDALE BOROUGH COUNCIL,04/09/2020,NEIGHBOURHOODS AND ENVIRONMENT,RUSHTONS DEVELOPMENTS LTD,04/09/2020,14360.00 ,PROPERTY REFURBISHMENT (HOUSING),V001605270
ROCHDALE BOROUGH COUNCIL,03/09/2020,NEIGHBOURHOODS AND ENVIRONMENT,LANES GROUP PLC,03/09/2020,210.00 ,MAINTENANCE,V001605272
ROCHDALE BOROUGH COUNCIL,03/09/2020,NEIGHBOURHOODS AND ENVIRONMENT,LANES GROUP PLC,03/09/2020,330.00 ,MAINTENANCE,V001605272
ROCHDALE BOROUGH COUNCIL,03/09/2020,NEIGHBOURHOODS AND ENVIRONMENT,LANES GROUP PLC,03/09/2020,1062.50 ,MAINTENANCE,V001605273
ROCHDALE BOROUGH COUNCIL,17/09/2020,CHILDREN�S SOCIAL CARE,ROCHDALE HOUSING INITIATIVE,17/09/2020,650.00 ,YOUNG PEOPLES RENTS,V001605274
ROCHDALE BOROUGH COUNCIL,17/09/2020,CHILDREN�S SOCIAL CARE,ROCHDALE HOUSING INITIATIVE,17/09/2020,650.00 ,YOUNG PEOPLES RENTS,V001605274
ROCHDALE BOROUGH COUNCIL,08/09/2020,CHILDREN�S SOCIAL CARE,STEPPING STONE PROJECTS,08/09/2020,245.60 ,YOUNGE PERSONS ALLOWANCE,V001605286
ROCHDALE BOROUGH COUNCIL,17/09/2020,CHILDREN�S SOCIAL CARE,STEPPING STONE PROJECTS,17/09/2020,1524.68 ,YOUNG PEOPLES RENTS,V001605287
ROCHDALE BOROUGH COUNCIL,22/09/2020,CHILDREN�S SOCIAL CARE,STEPPING STONE PROJECTS,22/09/2020,1599.60 ,YOUNG PEOPLES RENTS,V001605291
ROCHDALE BOROUGH COUNCIL,08/09/2020,CHILDREN�S SOCIAL CARE,STEPPING STONE PROJECTS,08/09/2020,245.60 ,YOUNGE PERSONS ALLOWANCE,V001605292
ROCHDALE BOROUGH COUNCIL,11/09/2020,CHILDREN�S SOCIAL CARE,STEP AHEAD,11/09/2020,57.90 ,YOUNGE PERSONS ALLOWANCE,V001605295
ROCHDALE BOROUGH COUNCIL,11/09/2020,CHILDREN�S SOCIAL CARE,STEP AHEAD,11/09/2020,1200.00 ,YOUNG PEOPLES RENTS,V001605296
ROCHDALE BOROUGH COUNCIL,17/09/2020,NEIGHBOURHOODS AND ENVIRONMENT,GROUNDWORK LANDSCAPES LIMITED,17/09/2020,950.00 ,MAINTENANCE,V001605303
ROCHDALE BOROUGH COUNCIL,10/09/2020,NEIGHBOURHOODS AND ENVIRONMENT,G AND A TAYLOR HOTELS LTD,10/09/2020,1668.54 ,ACCOMMODATION,V001605307
ROCHDALE BOROUGH COUNCIL,10/09/2020,NEIGHBOURHOODS AND ENVIRONMENT,G AND A TAYLOR HOTELS LTD,10/09/2020,46.30 ,ACCOMMODATION,V001605307
ROCHDALE BOROUGH COUNCIL,10/09/2020,NEIGHBOURHOODS AND ENVIRONMENT,G AND A TAYLOR HOTELS LTD,10/09/2020,877.98 ,ACCOMMODATION,V001605307
ROCHDALE BOROUGH COUNCIL,24/09/2020,NEIGHBOURHOODS AND ENVIRONMENT,G AND A TAYLOR HOTELS LTD,24/09/2020,132.04 ,ACCOMMODATION,V001605308
ROCHDALE BOROUGH COUNCIL,15/09/2020,CHILDREN�S SOCIAL CARE,PARADIGM PROFESSIONAL CONSULTANCY LTD,15/09/2020,1387.50 ,AGENCY STAFF,V001605794
ROCHDALE BOROUGH COUNCIL,21/09/2020,CHILDREN�S SOCIAL CARE,PARADIGM PROFESSIONAL CONSULTANCY LTD,21/09/2020,1225.00 ,AGENCY STAFF,V001605795
ROCHDALE BOROUGH COUNCIL,21/09/2020,CHILDREN�S SOCIAL CARE,PARADIGM PROFESSIONAL CONSULTANCY LTD,21/09/2020,162.50 ,AGENCY STAFF,V001605795
ROCHDALE BOROUGH COUNCIL,08/09/2020,CHILDREN�S SOCIAL CARE,PARADIGM PROFESSIONAL CONSULTANCY LTD,08/09/2020,1396.95 ,AGENCY STAFF,V001605797
ROCHDALE BOROUGH COUNCIL,08/09/2020,CHILDREN�S SOCIAL CARE,PARADIGM PROFESSIONAL CONSULTANCY LTD,08/09/2020,1413.15 ,AGENCY STAFF,V001605798
ROCHDALE BOROUGH COUNCIL,08/09/2020,CHILDREN�S SOCIAL CARE,PARADIGM PROFESSIONAL CONSULTANCY LTD,08/09/2020,1396.50 ,AGENCY STAFF,V001605799
ROCHDALE BOROUGH COUNCIL,08/09/2020,CHILDREN�S SOCIAL CARE,PARADIGM PROFESSIONAL CONSULTANCY LTD,08/09/2020,445.50 ,AGENCY STAFF,V001605800
ROCHDALE BOROUGH COUNCIL,08/09/2020,CHILDREN�S SOCIAL CARE,PARADIGM PROFESSIONAL CONSULTANCY LTD,08/09/2020,1387.50 ,AGENCY STAFF,V001605801
ROCHDALE BOROUGH COUNCIL,18/09/2020,CHILDREN�S SOCIAL CARE,PARADIGM PROFESSIONAL CONSULTANCY LTD,18/09/2020,1266.00 ,AGENCY STAFF,V001605802
ROCHDALE BOROUGH COUNCIL,03/09/2020,CHILDREN�S SOCIAL CARE,PARADIGM PROFESSIONAL CONSULTANCY LTD,03/09/2020,1387.50 ,AGENCY STAFF,V001605803
ROCHDALE BOROUGH COUNCIL,28/09/2020,CHILDREN�S SOCIAL CARE,PARADIGM PROFESSIONAL CONSULTANCY LTD,28/09/2020,558.00 ,AGENCY STAFF,V001605804
ROCHDALE BOROUGH COUNCIL,07/09/2020,ADULT CARE LCO FUNCTIONS,NORTHERN HEALTHCARE,07/09/2020,1634.52 ,PERSONAL BUDGETS - MANAGED,V001606341
ROCHDALE BOROUGH COUNCIL,07/09/2020,ADULT CARE LCO FUNCTIONS,NORTHERN HEALTHCARE,07/09/2020,2179.36 ,PERSONAL BUDGETS - MANAGED,V001606342
ROCHDALE BOROUGH COUNCIL,25/09/2020,CHILDREN�S SOCIAL CARE,REGIONAL FOSTER PLACEMENTS LIMITED,25/09/2020,3449.99 ,FOSTER PARENTS BASIC ALLOWANCE,V001606376
ROCHDALE BOROUGH COUNCIL,24/09/2020,PROPERTY AND HIGHWAYS,WILDE CONSULTING ENGINEERS,24/09/2020,4986.00 ,ROADWORKS,V001606377
ROCHDALE BOROUGH COUNCIL,01/09/2020,CHILDREN�S SOCIAL CARE,CRESTA WORLD TRAVEL LIMITED,01/09/2020,16.50 ,PUBLIC TRANSPORT,V001606378
ROCHDALE BOROUGH COUNCIL,01/09/2020,CHILDREN�S SOCIAL CARE,CRESTA WORLD TRAVEL LIMITED,01/09/2020,3.00 ,PUBLIC TRANSPORT,V001606378
ROCHDALE BOROUGH COUNCIL,08/09/2020,NEIGHBOURHOODS AND ENVIRONMENT,HRR SOLUTIONS,08/09/2020,57.25 ,MINOR BUILDING WORKS,V001606385
ROCHDALE BOROUGH COUNCIL,08/09/2020,NEIGHBOURHOODS AND ENVIRONMENT,HRR SOLUTIONS,08/09/2020,60.00 ,MINOR BUILDING WORKS,V001606385
ROCHDALE BOROUGH COUNCIL,08/09/2020,NEIGHBOURHOODS AND ENVIRONMENT,HRR SOLUTIONS,08/09/2020,57.25 ,MINOR BUILDING WORKS,V001606386
ROCHDALE BOROUGH COUNCIL,08/09/2020,NEIGHBOURHOODS AND ENVIRONMENT,HRR SOLUTIONS,08/09/2020,60.00 ,MINOR BUILDING WORKS,V001606386
ROCHDALE BOROUGH COUNCIL,01/09/2020,NEIGHBOURHOODS AND ENVIRONMENT,SECURITY PLUS LIMITED,01/09/2020,36.63 ,SECURITY,V001606391
ROCHDALE BOROUGH COUNCIL,25/09/2020,CHILDREN�S SOCIAL CARE,NEXT STAGE A WAY FORWARD YOUTH DEVELOPMENT LTD,25/09/2020,4805.00 ,YOUNG PEOPLES RENTS,V001606392
ROCHDALE BOROUGH COUNCIL,23/09/2020,NEIGHBOURHOODS AND ENVIRONMENT,AQUACOOL LTD,23/09/2020,40.00 ,EQUIPMENT - GENERAL,V001606411
ROCHDALE BOROUGH COUNCIL,25/09/2020,CHILDREN�S SOCIAL CARE,CFS CARE LTD,25/09/2020,5314.29 ,YOUNG PEOPLES RENTS,V001606416
ROCHDALE BOROUGH COUNCIL,25/09/2020,CHILDREN�S SOCIAL CARE,CFS CARE LTD,25/09/2020,235.60 ,YOUNGE PERSONS ALLOWANCE,V001606416
ROCHDALE BOROUGH COUNCIL,11/09/2020,EARLY HELP AND SCHOOLS,ASSOCIATED CLEANING CONTRACTORS,11/09/2020,41.38 ,WINDOW CLEANING AND EQUIPMENT,V001606420
ROCHDALE BOROUGH COUNCIL,17/09/2020,PROPERTY AND HIGHWAYS,ABC INDUSTRIAL DOORS LTD,17/09/2020,206.00 ,ELECTRICAL,V001606446
ROCHDALE BOROUGH COUNCIL,18/09/2020,NEIGHBOURHOODS AND ENVIRONMENT,ABC INDUSTRIAL DOORS LTD,18/09/2020,150.50 ,ELECTRICAL,V001606448
ROCHDALE BOROUGH COUNCIL,11/09/2020,ADULT CARE LCO FUNCTIONS,CHILD ACTION NORTHWEST,11/09/2020,243.97 ,FEES / COMMISSION,V001606452
ROCHDALE BOROUGH COUNCIL,11/09/2020,ADULT CARE LCO FUNCTIONS,CHILD ACTION NORTHWEST,11/09/2020,121.99 ,FEES / COMMISSION,V001606452
ROCHDALE BOROUGH COUNCIL,11/09/2020,ADULT CARE LCO FUNCTIONS,CHILD ACTION NORTHWEST,11/09/2020,121.99 ,FEES / COMMISSION,V001606452
ROCHDALE BOROUGH COUNCIL,11/09/2020,ADULT CARE LCO FUNCTIONS,CHILD ACTION NORTHWEST,11/09/2020,121.99 ,FEES / COMMISSION,V001606452
ROCHDALE BOROUGH COUNCIL,11/09/2020,CHILDREN�S SOCIAL CARE,CAPSTONE FOSTER CARE,11/09/2020,2940.78 ,FOSTER PARENTS BASIC ALLOWANCE,V001606454
ROCHDALE BOROUGH COUNCIL,18/09/2020,CHILDREN�S SOCIAL CARE,CAPSTONE FOSTER CARE,18/09/2020,1012.65 ,FOSTER PARENTS BASIC ALLOWANCE,V001606455
ROCHDALE BOROUGH COUNCIL,28/09/2020,NEIGHBOURHOODS AND ENVIRONMENT,ELLIOTT BUSINESS EQUIPMENT AND SCALES LTD,28/09/2020,393.00 ,EQUIPMENT - GENERAL,V001606457
ROCHDALE BOROUGH COUNCIL,14/09/2020,CHILDREN�S SOCIAL CARE,PARADIGM PROFESSIONAL CONSULTANCY LTD,14/09/2020,1387.50 ,AGENCY STAFF,V001606475
ROCHDALE BOROUGH COUNCIL,24/09/2020,NEIGHBOURHOODS AND ENVIRONMENT,GRAVITAS RECRUITMENT GROUP,24/09/2020,2250.00 ,CAPITAL - STAFFING AGENCY PAYMENTS,V001606489
ROCHDALE BOROUGH COUNCIL,16/09/2020,PROPERTY AND HIGHWAYS,HOWDENS JOINERY CO LIMITED,16/09/2020,26.84 ,PROPERTY - WORKS ELEMENT,V001606493
ROCHDALE BOROUGH COUNCIL,07/09/2020,CHILDREN�S SOCIAL CARE,ROC NORTHWEST LTD,07/09/2020,14945.90 ,EBD (EMOT & BEHAV DIFF) PLACEMENTS,V001606499
ROCHDALE BOROUGH COUNCIL,10/09/2020,ECONOMY DIRECTORATE,ABC INDUSTRIAL DOORS LTD,10/09/2020,695.00 ,ELECTRICAL,V001606593
ROCHDALE BOROUGH COUNCIL,11/09/2020,CHILDREN�S SOCIAL CARE,INSPIRE COMMUNITY SERVICES LTD,11/09/2020,2522.70 ,YOUNG PEOPLES RENTS,V001606594
ROCHDALE BOROUGH COUNCIL,01/09/2020,PROPERTY AND HIGHWAYS,PARR ROCHDALE LIMITED,01/09/2020,15.92 ,BUILDING MATERIALS,V001606596
ROCHDALE BOROUGH COUNCIL,18/09/2020,PROPERTY AND HIGHWAYS,PARR ROCHDALE LIMITED,18/09/2020,34.32 ,BUILDING MATERIALS,V001606598
ROCHDALE BOROUGH COUNCIL,01/09/2020,PROPERTY AND HIGHWAYS,PARR ROCHDALE LIMITED,01/09/2020,11.20 ,BUILDING MATERIALS,V001606599
ROCHDALE BOROUGH COUNCIL,11/09/2020,ECONOMY DIRECTORATE,AQUACOOL LTD,11/09/2020,24.00 ,CATERING - GENERAL,V001606600
ROCHDALE BOROUGH COUNCIL,21/09/2020,ECONOMY DIRECTORATE,ARROW BUSINESS COMMUNICATIONS LTD,21/09/2020,854.70 ,TELEPHONE EXPENDITURE,V001606605
ROCHDALE BOROUGH COUNCIL,03/09/2020,ECONOMY DIRECTORATE,ARROW BUSINESS COMMUNICATIONS LTD,03/09/2020,862.60 ,TELEPHONE EXPENDITURE,V001606606
ROCHDALE BOROUGH COUNCIL,21/09/2020,ECONOMY DIRECTORATE,ARROW BUSINESS COMMUNICATIONS LTD,21/09/2020,585.06 ,TELEPHONE EXPENDITURE,V001606607
ROCHDALE BOROUGH COUNCIL,28/09/2020,ECONOMY DIRECTORATE,EDF ENERGY 1 LIMITED,28/09/2020,1446.83 ,ELECTRICITY,V001606608
ROCHDALE BOROUGH COUNCIL,28/09/2020,ECONOMY DIRECTORATE,EDF ENERGY 1 LIMITED,28/09/2020,6.01 ,ELECTRICITY,V001606608
ROCHDALE BOROUGH COUNCIL,11/09/2020,PROPERTY AND HIGHWAYS,CONDUENT PARKING ENFORCEMENT SOL LTD,11/09/2020,1598.24 ,FEES / COMMISSION,V001606609
ROCHDALE BOROUGH COUNCIL,11/09/2020,CHILDREN�S SOCIAL CARE,FOSTER CARES LTD,11/09/2020,870.00 ,FOSTER PARENTS BASIC ALLOWANCE,V001606610
ROCHDALE BOROUGH COUNCIL,07/09/2020,CHILDREN�S SOCIAL CARE,YOUNG FOUNDATIONS LTD,07/09/2020,41141.43 ,EBD (EMOT & BEHAV DIFF) PLACEMENTS,V001606611
ROCHDALE BOROUGH COUNCIL,07/09/2020,CHILDREN�S SOCIAL CARE,BRANAS ISAF LTD,07/09/2020,27457.14 ,EBD (EMOT & BEHAV DIFF) PLACEMENTS,V001606613
ROCHDALE BOROUGH COUNCIL,16/09/2020,CHILDREN�S SOCIAL CARE,CRESTA WORLD TRAVEL LIMITED,16/09/2020,3.00 ,PUBLIC TRANSPORT,V001606614
ROCHDALE BOROUGH COUNCIL,16/09/2020,CHILDREN�S SOCIAL CARE,CRESTA WORLD TRAVEL LIMITED,16/09/2020,16.50 ,PUBLIC TRANSPORT,V001606614
ROCHDALE BOROUGH COUNCIL,21/09/2020,CHILDREN�S SOCIAL CARE,PARADIGM PROFESSIONAL CONSULTANCY LTD,21/09/2020,1509.00 ,AGENCY STAFF,V001606682
ROCHDALE BOROUGH COUNCIL,01/09/2020,CHILDREN�S SOCIAL CARE,CRESTA WORLD TRAVEL LIMITED,01/09/2020,16.50 ,PUBLIC TRANSPORT,V001606693
ROCHDALE BOROUGH COUNCIL,01/09/2020,CHILDREN�S SOCIAL CARE,CRESTA WORLD TRAVEL LIMITED,01/09/2020,3.00 ,PUBLIC TRANSPORT,V001606693
ROCHDALE BOROUGH COUNCIL,21/09/2020,CHILDREN�S SOCIAL CARE,PARADIGM PROFESSIONAL CONSULTANCY LTD,21/09/2020,1387.50 ,AGENCY STAFF,V001606777
ROCHDALE BOROUGH COUNCIL,28/09/2020,CHILDREN�S SOCIAL CARE,PARADIGM PROFESSIONAL CONSULTANCY LTD,28/09/2020,1387.50 ,AGENCY STAFF,V001606784
ROCHDALE BOROUGH COUNCIL,28/09/2020,CHILDREN�S SOCIAL CARE,PARADIGM PROFESSIONAL CONSULTANCY LTD,28/09/2020,402.35 ,AGENCY STAFF,V001606786
ROCHDALE BOROUGH COUNCIL,28/09/2020,CHILDREN�S SOCIAL CARE,PARADIGM PROFESSIONAL CONSULTANCY LTD,28/09/2020,998.20 ,AGENCY STAFF,V001606786
ROCHDALE BOROUGH COUNCIL,21/09/2020,CHILDREN�S SOCIAL CARE,PARADIGM PROFESSIONAL CONSULTANCY LTD,21/09/2020,1416.30 ,AGENCY STAFF,V001606787
ROCHDALE BOROUGH COUNCIL,21/09/2020,CHILDREN�S SOCIAL CARE,PARADIGM PROFESSIONAL CONSULTANCY LTD,21/09/2020,1425.75 ,AGENCY STAFF,V001606788
ROCHDALE BOROUGH COUNCIL,16/09/2020,CHILDREN�S SOCIAL CARE,CRESTA WORLD TRAVEL LIMITED,16/09/2020,3.00 ,PUBLIC TRANSPORT,V001606789
ROCHDALE BOROUGH COUNCIL,16/09/2020,CHILDREN�S SOCIAL CARE,CRESTA WORLD TRAVEL LIMITED,16/09/2020,16.50 ,PUBLIC TRANSPORT,V001606789
ROCHDALE BOROUGH COUNCIL,16/09/2020,CHILDREN�S SOCIAL CARE,CRESTA WORLD TRAVEL LIMITED,16/09/2020,3.00 ,PUBLIC TRANSPORT,V001606790
ROCHDALE BOROUGH COUNCIL,16/09/2020,CHILDREN�S SOCIAL CARE,CRESTA WORLD TRAVEL LIMITED,16/09/2020,16.50 ,PUBLIC TRANSPORT,V001606790
ROCHDALE BOROUGH COUNCIL,11/09/2020,CHILDREN�S SOCIAL CARE,NEXT STAGE A WAY FORWARD YOUTH DEVELOPMENT LTD,11/09/2020,256.41 ,YOUNGE PERSONS ALLOWANCE,V001606793
ROCHDALE BOROUGH COUNCIL,01/09/2020,CHILDREN�S SOCIAL CARE,CRESTA WORLD TRAVEL LIMITED,01/09/2020,16.50 ,PUBLIC TRANSPORT,V001606795
ROCHDALE BOROUGH COUNCIL,01/09/2020,CHILDREN�S SOCIAL CARE,CRESTA WORLD TRAVEL LIMITED,01/09/2020,16.50 ,PUBLIC TRANSPORT,V001606796
ROCHDALE BOROUGH COUNCIL,01/09/2020,CHILDREN�S SOCIAL CARE,CRESTA WORLD TRAVEL LIMITED,01/09/2020,3.00 ,PUBLIC TRANSPORT,V001606796
ROCHDALE BOROUGH COUNCIL,16/09/2020,CHILDREN�S SOCIAL CARE,CRESTA WORLD TRAVEL LIMITED,16/09/2020,3.00 ,PUBLIC TRANSPORT,V001606797
ROCHDALE BOROUGH COUNCIL,16/09/2020,CHILDREN�S SOCIAL CARE,CRESTA WORLD TRAVEL LIMITED,16/09/2020,16.50 ,PUBLIC TRANSPORT,V001606797
ROCHDALE BOROUGH COUNCIL,23/09/2020,EARLY HELP AND SCHOOLS,HBL ASSOCIATES LTD,23/09/2020,1210.00 ,CONSULTANTS FEES,V001606798
ROCHDALE BOROUGH COUNCIL,22/09/2020,ECONOMY DIRECTORATE,FISHERS CLEANING SERVICES LIMITED,22/09/2020,588.00 ,CLEANING AND DOMESTIC SUPPLIES,V001606801
ROCHDALE BOROUGH COUNCIL,17/09/2020,ECONOMY DIRECTORATE,FISHERS CLEANING SERVICES LIMITED,17/09/2020,198.00 ,CLEANING AND DOMESTIC SUPPLIES,V001606807
ROCHDALE BOROUGH COUNCIL,01/09/2020,PROPERTY AND HIGHWAYS,ELECTRIC CENTER,01/09/2020,12.25 ,PROPERTY - WORKS ELEMENT,V001606813
ROCHDALE BOROUGH COUNCIL,01/09/2020,PROPERTY AND HIGHWAYS,ELECTRIC CENTER,01/09/2020,13.93 ,PROPERTY - WORKS ELEMENT,V001606814
ROCHDALE BOROUGH COUNCIL,11/09/2020,ADULT CARE LCO FUNCTIONS,B AND M WASTE SERVICES,11/09/2020,38.56 ,REFUSE DISPOSAL,V001606815
ROCHDALE BOROUGH COUNCIL,11/09/2020,ECONOMY DIRECTORATE,ALPHA PEST CONTROL,11/09/2020,62.28 ,SPECIFIED MAINTENANCE,V001606819
ROCHDALE BOROUGH COUNCIL,11/09/2020,PROPERTY AND HIGHWAYS,CONDUENT PARKING ENFORCEMENT SOL LTD,11/09/2020,930.88 ,FEES / COMMISSION,V001606822
ROCHDALE BOROUGH COUNCIL,08/09/2020,NEIGHBOURHOODS AND ENVIRONMENT,TLC GARDEN SERVICES,08/09/2020,165.00 ,ENVIRONMENTAL WORKS LANDSCAPE,V001606824
ROCHDALE BOROUGH COUNCIL,01/09/2020,PROPERTY AND HIGHWAYS,DDH FABRICATIONS LTD,01/09/2020,380.00 ,PROPERTY - WORKS ELEMENT,V001606828
ROCHDALE BOROUGH COUNCIL,01/09/2020,PROPERTY AND HIGHWAYS,DDH FABRICATIONS LTD,01/09/2020,320.00 ,PROPERTY - WORKS ELEMENT,V001606833
ROCHDALE BOROUGH COUNCIL,01/09/2020,NEIGHBOURHOODS AND ENVIRONMENT,BETHELL CONSTRUCTION LTD,01/09/2020,62700.01 ,MINOR BUILDING WORKS,V001606839
ROCHDALE BOROUGH COUNCIL,14/09/2020,CHILDREN�S SOCIAL CARE,PARADIGM PROFESSIONAL CONSULTANCY LTD,14/09/2020,778.50 ,AGENCY STAFF,V001606841
ROCHDALE BOROUGH COUNCIL,11/09/2020,ECONOMY DIRECTORATE,ADT FIRE & SECURITY PLC,11/09/2020,57.37 ,SECURITY,V001606854
ROCHDALE BOROUGH COUNCIL,28/09/2020,CHILDREN�S SOCIAL CARE,LIFETIME OPPORTUNITIES,28/09/2020,15000.00 ,EBD (EMOT & BEHAV DIFF) PLACEMENTS,V001606875
ROCHDALE BOROUGH COUNCIL,18/09/2020,EARLY HELP AND SCHOOLS,PRESTIGE NURSING AND CARE,18/09/2020,245.70 ,HOME CARE - CHILDRENS SERVICES,V001606877
ROCHDALE BOROUGH COUNCIL,21/09/2020,CHILDREN�S SOCIAL CARE,LIFETIME OPPORTUNITIES,21/09/2020,13250.00 ,EBD (EMOT & BEHAV DIFF) PLACEMENTS,V001606900
ROCHDALE BOROUGH COUNCIL,02/09/2020,NEIGHBOURHOODS AND ENVIRONMENT,ROCHDALE TOWN TAXIS LTD,02/09/2020,6.80 ,TAXI HIRE,V001606901
ROCHDALE BOROUGH COUNCIL,02/09/2020,NEIGHBOURHOODS AND ENVIRONMENT,ROCHDALE TOWN TAXIS LTD,02/09/2020,6.80 ,TAXI HIRE,V001606901
ROCHDALE BOROUGH COUNCIL,02/09/2020,NEIGHBOURHOODS AND ENVIRONMENT,ROCHDALE TOWN TAXIS LTD,02/09/2020,6.80 ,TAXI HIRE,V001606901
ROCHDALE BOROUGH COUNCIL,18/09/2020,PUBLIC HEALTH,TURNING POINT,18/09/2020,2796.00 ,CONTRACTED SERVICES,V001606913
ROCHDALE BOROUGH COUNCIL,18/09/2020,PUBLIC HEALTH,TURNING POINT,18/09/2020,1398.00 ,CONTRACTED SERVICES,V001606915
ROCHDALE BOROUGH COUNCIL,01/09/2020,PROPERTY AND HIGHWAYS,HOWARTH TIMBER AND BUILDING SUPPLIES LTD,01/09/2020,91.08 ,PROPERTY - WORKS ELEMENT,V001606923
ROCHDALE BOROUGH COUNCIL,01/09/2020,PROPERTY AND HIGHWAYS,HOWARTH TIMBER AND BUILDING SUPPLIES LTD,01/09/2020,210.97 ,PROPERTY - WORKS ELEMENT,V001606924
ROCHDALE BOROUGH COUNCIL,01/09/2020,PROPERTY AND HIGHWAYS,HOWARTH TIMBER AND BUILDING SUPPLIES LTD,01/09/2020,29.81 ,PROPERTY - WORKS ELEMENT,V001606925
ROCHDALE BOROUGH COUNCIL,14/09/2020,PROPERTY AND HIGHWAYS,REACH PUBLISHING SERVICES LTD,14/09/2020,61.74 ,ADVERTISING,V001606926
ROCHDALE BOROUGH COUNCIL,25/09/2020,NEIGHBOURHOODS AND ENVIRONMENT,DAISY CORPORATE SERVICES TRADING LTD,25/09/2020,3716.29 ,MOBILE PHONE,V001606928
ROCHDALE BOROUGH COUNCIL,11/09/2020,NEIGHBOURHOODS AND ENVIRONMENT,DAISY CORPORATE SERVICES TRADING LTD,11/09/2020,9181.50 ,TRANSACTIONS-EXPENDITURE,V001606929
ROCHDALE BOROUGH COUNCIL,01/09/2020,PROPERTY AND HIGHWAYS,VINK UK LIMITED,01/09/2020,28.93 ,PROPERTY - WORKS ELEMENT,V001606941
ROCHDALE BOROUGH COUNCIL,04/09/2020,PROPERTY AND HIGHWAYS,VINK UK LIMITED,04/09/2020,32.04 ,PROPERTY - WORKS ELEMENT,V001606942
ROCHDALE BOROUGH COUNCIL,28/09/2020,CHILDREN�S SOCIAL CARE,CHANGES SUPPORT LTD,28/09/2020,1400.00 ,YOUNG PEOPLES RENTS,V001606943
ROCHDALE BOROUGH COUNCIL,01/09/2020,PROPERTY AND HIGHWAYS,ELECTRIC CENTER,01/09/2020,16.32 ,PROPERTY - WORKS ELEMENT,V001606945
ROCHDALE BOROUGH COUNCIL,23/09/2020,NEIGHBOURHOODS AND ENVIRONMENT,CARRICK SIGNS LTD,23/09/2020,595.00 ,PRINTING,V001606948
ROCHDALE BOROUGH COUNCIL,07/09/2020,PROPERTY AND HIGHWAYS,NORTHGATE VEHICLE HIRE LIMITED,07/09/2020,166.55 ,VEHICLE MAINTENANCE,V001606952
ROCHDALE BOROUGH COUNCIL,17/09/2020,NEIGHBOURHOODS AND ENVIRONMENT,ASSOCIATION  PUBLIC SERVICE EXCELLENCE,17/09/2020,4484.00 ,EQUIPMENT - GENERAL,V001607053
ROCHDALE BOROUGH COUNCIL,17/09/2020,NEIGHBOURHOODS AND ENVIRONMENT,ASSOCIATION  PUBLIC SERVICE EXCELLENCE,17/09/2020,400.00 ,EQUIPMENT - GENERAL,V001607053
ROCHDALE BOROUGH COUNCIL,11/09/2020,NEIGHBOURHOODS AND ENVIRONMENT,ZEN INTERNET LIMITED,11/09/2020,1600.00 ,COMMUNICATION AND COMPUTING - GENERAL,V001607066
ROCHDALE BOROUGH COUNCIL,01/09/2020,NEIGHBOURHOODS AND ENVIRONMENT,STYLE MAGAZINE,01/09/2020,350.00 ,ADVERTISING,V001607095
ROCHDALE BOROUGH COUNCIL,07/09/2020,PROPERTY AND HIGHWAYS,DDH FABRICATIONS LTD,07/09/2020,1400.00 ,PROPERTY - WORKS ELEMENT,V001607097
ROCHDALE BOROUGH COUNCIL,03/09/2020,RESOURCES,MHR,03/09/2020,898.98 ,SOFTWARE,V001607098
ROCHDALE BOROUGH COUNCIL,18/09/2020,COMMISSIONING AND STATUTORY,REDACTED - PERSONAL DATA,18/09/2020,173.37 ,EXPENSES - GENERAL,V001607125
ROCHDALE BOROUGH COUNCIL,01/09/2020,EARLY HELP AND SCHOOLS,FRS ROOFING SERVICES LIMITED,01/09/2020,5107.00 ,MINOR BUILDING WORKS,V001607128
ROCHDALE BOROUGH COUNCIL,22/09/2020,EARLY HELP AND SCHOOLS,BAKER ROSS LTD,22/09/2020,34.00 ,EQUIPMENT - GENERAL,V001607129
ROCHDALE BOROUGH COUNCIL,22/09/2020,EARLY HELP AND SCHOOLS,BAKER ROSS LTD,22/09/2020,62.40 ,EQUIPMENT - GENERAL,V001607129
ROCHDALE BOROUGH COUNCIL,22/09/2020,EARLY HELP AND SCHOOLS,BAKER ROSS LTD,22/09/2020,29.83 ,EQUIPMENT - GENERAL,V001607129
ROCHDALE BOROUGH COUNCIL,24/09/2020,EARLY HELP AND SCHOOLS,F S MOULT AND SON,24/09/2020,430.00 ,REPAIRS & ALTS OF BUILDINGS,V001607132
ROCHDALE BOROUGH COUNCIL,24/09/2020,EARLY HELP AND SCHOOLS,F S MOULT AND SON,24/09/2020,400.00 ,REPAIRS & ALTS OF BUILDINGS,V001607134
ROCHDALE BOROUGH COUNCIL,24/09/2020,EARLY HELP AND SCHOOLS,F S MOULT AND SON,24/09/2020,400.00 ,REPAIRS & ALTS OF BUILDINGS,V001607136
ROCHDALE BOROUGH COUNCIL,08/09/2020,ECONOMY DIRECTORATE,F S MOULT AND SON,08/09/2020,360.00 ,REPAIRS & ALTS OF BUILDINGS,V001607137
ROCHDALE BOROUGH COUNCIL,17/09/2020,ADULT CARE LCO FUNCTIONS,MWUK LTD,17/09/2020,11.19 ,"CLOTHES, UNIFORM AND LAUNDRY",V001607152
ROCHDALE BOROUGH COUNCIL,17/09/2020,ADULT CARE LCO FUNCTIONS,MWUK LTD,17/09/2020,17.49 ,"CLOTHES, UNIFORM AND LAUNDRY",V001607153
ROCHDALE BOROUGH COUNCIL,17/09/2020,ADULT CARE LCO FUNCTIONS,MWUK LTD,17/09/2020,17.49 ,"CLOTHES, UNIFORM AND LAUNDRY",V001607153
ROCHDALE BOROUGH COUNCIL,17/09/2020,CHILDREN�S SOCIAL CARE,SWIIS FOSTER CARE LIMITED,17/09/2020,817.04 ,FOSTER PARENTS BASIC ALLOWANCE,V001607154
ROCHDALE BOROUGH COUNCIL,17/09/2020,CHILDREN�S SOCIAL CARE,SWIIS FOSTER CARE LIMITED,17/09/2020,837.97 ,FOSTER PARENTS BASIC ALLOWANCE,V001607155
ROCHDALE BOROUGH COUNCIL,17/09/2020,ADULT CARE LCO FUNCTIONS,MWUK LTD,17/09/2020,13.74 ,"CLOTHES, UNIFORM AND LAUNDRY",V001607156
ROCHDALE BOROUGH COUNCIL,11/09/2020,PROPERTY AND HIGHWAYS,REACH PUBLISHING SERVICES LTD,11/09/2020,84.42 ,CHARGES-COMMITAL,V001607168
ROCHDALE BOROUGH COUNCIL,02/09/2020,PROPERTY AND HIGHWAYS,CALEDONIAN LIFTS MANCHESTER LTD,02/09/2020,75.00 ,PROPERTY - WORKS ELEMENT,V001607171
ROCHDALE BOROUGH COUNCIL,18/09/2020,EARLY HELP AND SCHOOLS,PRESTIGE NURSING AND CARE,18/09/2020,253.66 ,HOME CARE - CHILDRENS SERVICES,V001607185
ROCHDALE BOROUGH COUNCIL,17/09/2020,NEIGHBOURHOODS AND ENVIRONMENT,BRITISH TELECOMMUNICATIONS PLC,17/09/2020,11354.49 ,COMMUNICATION AND COMPUTING - GENERAL,V001607197
ROCHDALE BOROUGH COUNCIL,17/09/2020,NEIGHBOURHOODS AND ENVIRONMENT,BRITISH TELECOMMUNICATIONS PLC,17/09/2020,11354.49 ,COMMUNICATION AND COMPUTING - GENERAL,V001607197
ROCHDALE BOROUGH COUNCIL,17/09/2020,NEIGHBOURHOODS AND ENVIRONMENT,BRITISH TELECOMMUNICATIONS PLC,17/09/2020,11354.49 ,COMMUNICATION AND COMPUTING - GENERAL,V001607197
ROCHDALE BOROUGH COUNCIL,18/09/2020,CHILDREN�S SOCIAL CARE,MONTROSE LIVING,18/09/2020,260.84 ,YOUNGE PERSONS ALLOWANCE,V001607203
ROCHDALE BOROUGH COUNCIL,18/09/2020,CHILDREN�S SOCIAL CARE,MONTROSE LIVING,18/09/2020,4317.86 ,YOUNG PEOPLES RENTS,V001607203
ROCHDALE BOROUGH COUNCIL,01/09/2020,NEIGHBOURHOODS AND ENVIRONMENT,CICELEY COMMERCIALS LIMITED,01/09/2020,30838.50 ,PURCHASE OF VEHICLES,V001607206
ROCHDALE BOROUGH COUNCIL,01/09/2020,NEIGHBOURHOODS AND ENVIRONMENT,CICELEY COMMERCIALS LIMITED,01/09/2020,320.00 ,PURCHASE OF VEHICLES,V001607206
ROCHDALE BOROUGH COUNCIL,22/09/2020,ADULT CARE LCO FUNCTIONS,BANNER GROUP LIMITED,22/09/2020,22.56 ,PRINTING & STATIONERY,V001607227
ROCHDALE BOROUGH COUNCIL,10/09/2020,CHILDREN�S SOCIAL CARE,INTACT PROJECTS LTD,10/09/2020,1590.00 ,YOUNG PEOPLES RENTS,V001607230
ROCHDALE BOROUGH COUNCIL,10/09/2020,CHILDREN�S SOCIAL CARE,INTACT PROJECTS LTD,10/09/2020,1590.00 ,YOUNG PEOPLES RENTS,V001607238
ROCHDALE BOROUGH COUNCIL,18/09/2020,NEIGHBOURHOODS AND ENVIRONMENT,TLC GARDEN SERVICES,18/09/2020,250.00 ,ENVIRONMENTAL WORKS LANDSCAPE,V001607239
ROCHDALE BOROUGH COUNCIL,08/09/2020,PROPERTY AND HIGHWAYS,FRANK KEY TOOL HIRE LTD,08/09/2020,21.00 ,PROPERTY - WORKS ELEMENT,V001607369
ROCHDALE BOROUGH COUNCIL,08/09/2020,NEIGHBOURHOODS AND ENVIRONMENT,INTEGRATED WATER SERVICES LIMITED,08/09/2020,93.60 ,REPAIRS & ALTS OF BUILDINGS,V001607370
ROCHDALE BOROUGH COUNCIL,01/09/2020,PROPERTY AND HIGHWAYS,HOWARTH TIMBER AND BUILDING SUPPLIES LTD,01/09/2020,2.80 ,PROPERTY - WORKS ELEMENT,V001607371
ROCHDALE BOROUGH COUNCIL,07/09/2020,PROPERTY AND HIGHWAYS,DDH FABRICATIONS LTD,07/09/2020,110.00 ,PROPERTY - WORKS ELEMENT,V001607374
ROCHDALE BOROUGH COUNCIL,18/09/2020,RESOURCES,CIVICA UK LIMITED,18/09/2020,1450.00 ,IT MAINTENANCE,V001607375
ROCHDALE BOROUGH COUNCIL,02/09/2020,PROPERTY AND HIGHWAYS,ELECTRIC CENTER,02/09/2020,11.04 ,PROPERTY - WORKS ELEMENT,V001607376
ROCHDALE BOROUGH COUNCIL,17/09/2020,CHILDREN�S SOCIAL CARE,TIMEOUT CHILDRENS HOMES LTD,17/09/2020,19600.00 ,EBD (EMOT & BEHAV DIFF) PLACEMENTS,V001607535
ROCHDALE BOROUGH COUNCIL,15/09/2020,EARLY HELP AND SCHOOLS,SMS COACHING LTD,15/09/2020,9400.00 ,OTHER LA`S - SEN PROVISION,V001607536
ROCHDALE BOROUGH COUNCIL,15/09/2020,EARLY HELP AND SCHOOLS,SMS COACHING LTD,15/09/2020,1600.00 ,OTHER LA`S - SEN PROVISION,V001607536
ROCHDALE BOROUGH COUNCIL,18/09/2020,NEIGHBOURHOODS AND ENVIRONMENT,INTEGRATED WATER SERVICES LIMITED,18/09/2020,374.24 ,REPAIRS & ALTS OF BUILDINGS,V001607537
ROCHDALE BOROUGH COUNCIL,03/09/2020,NEIGHBOURHOODS AND ENVIRONMENT,BRAKE BROS LTD,03/09/2020,2746.77 ,PROVISIONS,V001607540
ROCHDALE BOROUGH COUNCIL,03/09/2020,NEIGHBOURHOODS AND ENVIRONMENT,BRAKE BROS LTD,03/09/2020,165.86 ,PROVISIONS,V001607540
ROCHDALE BOROUGH COUNCIL,03/09/2020,NEIGHBOURHOODS AND ENVIRONMENT,BRAKE BROS LTD,03/09/2020,2512.14 ,PROVISIONS,V001607541
ROCHDALE BOROUGH COUNCIL,03/09/2020,NEIGHBOURHOODS AND ENVIRONMENT,BRAKE BROS LTD,03/09/2020,133.48 ,PROVISIONS,V001607541
ROCHDALE BOROUGH COUNCIL,03/09/2020,NEIGHBOURHOODS AND ENVIRONMENT,BRAKE BROS LTD,03/09/2020,3377.09 ,PROVISIONS,V001607542
ROCHDALE BOROUGH COUNCIL,03/09/2020,NEIGHBOURHOODS AND ENVIRONMENT,BRAKE BROS LTD,03/09/2020,144.99 ,PROVISIONS,V001607542
ROCHDALE BOROUGH COUNCIL,03/09/2020,NEIGHBOURHOODS AND ENVIRONMENT,BRAKE BROS LTD,03/09/2020,5959.92 ,PROVISIONS,V001607543
ROCHDALE BOROUGH COUNCIL,03/09/2020,NEIGHBOURHOODS AND ENVIRONMENT,BRAKE BROS LTD,03/09/2020,366.12 ,PROVISIONS,V001607543
ROCHDALE BOROUGH COUNCIL,08/09/2020,CHILDREN�S SOCIAL CARE,PARADIGM PROFESSIONAL CONSULTANCY LTD,08/09/2020,1387.50 ,AGENCY STAFF,V001607546
ROCHDALE BOROUGH COUNCIL,29/09/2020,CHILDREN�S SOCIAL CARE,PARADIGM PROFESSIONAL CONSULTANCY LTD,29/09/2020,1509.00 ,AGENCY STAFF,V001607550
ROCHDALE BOROUGH COUNCIL,03/09/2020,CHILDREN�S SOCIAL CARE,PARADIGM PROFESSIONAL CONSULTANCY LTD,03/09/2020,1409.55 ,AGENCY STAFF,V001607552
ROCHDALE BOROUGH COUNCIL,01/09/2020,ECONOMY DIRECTORATE,IRWELL STREET METALS,01/09/2020,152.06 ,REFUSE DISPOSAL,V001607554
ROCHDALE BOROUGH COUNCIL,03/09/2020,CHILDREN�S SOCIAL CARE,PARADIGM PROFESSIONAL CONSULTANCY LTD,03/09/2020,1408.65 ,AGENCY STAFF,V001607555
ROCHDALE BOROUGH COUNCIL,03/09/2020,CHILDREN�S SOCIAL CARE,PARADIGM PROFESSIONAL CONSULTANCY LTD,03/09/2020,353.55 ,AGENCY STAFF,V001607556
ROCHDALE BOROUGH COUNCIL,01/09/2020,ECONOMY DIRECTORATE,IRWELL STREET METALS,01/09/2020,172.82 ,REFUSE DISPOSAL,V001607558
ROCHDALE BOROUGH COUNCIL,02/09/2020,PROPERTY AND HIGHWAYS,ABBEY ARCHITECTURAL IRONMONGERY CO LTD,02/09/2020,52.12 ,PROPERTY - WORKS ELEMENT,V001607564
ROCHDALE BOROUGH COUNCIL,07/09/2020,PROPERTY AND HIGHWAYS,W J LEWIS BUILDERS MERCHANTS LIMITED,07/09/2020,5.90 ,PROPERTY - WORKS ELEMENT,V001607565
ROCHDALE BOROUGH COUNCIL,04/09/2020,PROPERTY AND HIGHWAYS,ABBEY ARCHITECTURAL IRONMONGERY CO LTD,04/09/2020,24.08 ,PROPERTY - WORKS ELEMENT,V001607566
ROCHDALE BOROUGH COUNCIL,25/09/2020,PROPERTY AND HIGHWAYS,W J LEWIS BUILDERS MERCHANTS LIMITED,25/09/2020,40.49 ,PROPERTY - WORKS ELEMENT,V001607567
ROCHDALE BOROUGH COUNCIL,03/09/2020,NEIGHBOURHOODS AND ENVIRONMENT,BRAKE BROS LTD,03/09/2020,4440.31 ,PROVISIONS,V001607577
ROCHDALE BOROUGH COUNCIL,03/09/2020,NEIGHBOURHOODS AND ENVIRONMENT,BRAKE BROS LTD,03/09/2020,232.56 ,PROVISIONS,V001607577
ROCHDALE BOROUGH COUNCIL,11/09/2020,NEIGHBOURHOODS AND ENVIRONMENT,DAISY CORPORATE SERVICES TRADING LTD,11/09/2020,456.40 ,TRANSACTIONS-EXPENDITURE,V001607600
ROCHDALE BOROUGH COUNCIL,02/09/2020,PROPERTY AND HIGHWAYS,ELECTRIC CENTER,02/09/2020,3.21 ,PROPERTY - WORKS ELEMENT,V001607608
ROCHDALE BOROUGH COUNCIL,21/09/2020,CHILDREN�S SOCIAL CARE,PARADIGM PROFESSIONAL CONSULTANCY LTD,21/09/2020,1387.50 ,AGENCY STAFF,V001607610
ROCHDALE BOROUGH COUNCIL,02/09/2020,ECONOMY DIRECTORATE,REDACTED - PERSONAL DATA,02/09/2020,3285.50 ,MINOR BUILDING WORKS,V001607614
ROCHDALE BOROUGH COUNCIL,02/09/2020,PROPERTY AND HIGHWAYS,ELECTRIC CENTER,02/09/2020,3.62 ,PROPERTY - WORKS ELEMENT,V001607615
ROCHDALE BOROUGH COUNCIL,25/09/2020,ADULT CARE LCO FUNCTIONS,LINKABILITY,25/09/2020,-116.84 ,HOME CARE - ADULT SERVICES,V001607630
ROCHDALE BOROUGH COUNCIL,25/09/2020,ADULT CARE LCO FUNCTIONS,LINKABILITY,25/09/2020,-119.76 ,HOME CARE - ADULT SERVICES,V001607631
ROCHDALE BOROUGH COUNCIL,25/09/2020,ADULT CARE LCO FUNCTIONS,LINKABILITY,25/09/2020,-119.76 ,HOME CARE - ADULT SERVICES,V001607632
ROCHDALE BOROUGH COUNCIL,25/09/2020,ADULT CARE LCO FUNCTIONS,LINKABILITY,25/09/2020,17.11 ,HOME CARE - ADULT SERVICES,V001607650
ROCHDALE BOROUGH COUNCIL,25/09/2020,ADULT CARE LCO FUNCTIONS,LINKABILITY,25/09/2020,21.46 ,HOME CARE - ADULT SERVICES,V001607715
ROCHDALE BOROUGH COUNCIL,25/09/2020,ADULT CARE LCO FUNCTIONS,LINKABILITY,25/09/2020,-82.34 ,HOME CARE - ADULT SERVICES,V001607716
ROCHDALE BOROUGH COUNCIL,25/09/2020,ADULT CARE LCO FUNCTIONS,LINKABILITY,25/09/2020,44.91 ,HOME CARE - ADULT SERVICES,V001607717
ROCHDALE BOROUGH COUNCIL,25/09/2020,ADULT CARE LCO FUNCTIONS,LINKABILITY,25/09/2020,-44.91 ,HOME CARE - ADULT SERVICES,V001607718
ROCHDALE BOROUGH COUNCIL,25/09/2020,ADULT CARE LCO FUNCTIONS,LINKABILITY,25/09/2020,546.41 ,HOME CARE - ADULT SERVICES,V001607719
ROCHDALE BOROUGH COUNCIL,25/09/2020,ADULT CARE LCO FUNCTIONS,LINKABILITY,25/09/2020,-650.47 ,HOME CARE - ADULT SERVICES,V001607723
ROCHDALE BOROUGH COUNCIL,25/09/2020,ADULT CARE LCO FUNCTIONS,LINKABILITY,25/09/2020,-838.32 ,HOME CARE - ADULT SERVICES,V001607724
ROCHDALE BOROUGH COUNCIL,25/09/2020,ADULT CARE LCO FUNCTIONS,LINKABILITY,25/09/2020,-449.10 ,HOME CARE - ADULT SERVICES,V001607725
ROCHDALE BOROUGH COUNCIL,25/09/2020,ADULT CARE LCO FUNCTIONS,LINKABILITY,25/09/2020,359.28 ,HOME CARE - ADULT SERVICES,V001607726
ROCHDALE BOROUGH COUNCIL,25/09/2020,ADULT CARE LCO FUNCTIONS,LINKABILITY,25/09/2020,-1306.52 ,HOME CARE - ADULT SERVICES,V001607729
ROCHDALE BOROUGH COUNCIL,25/09/2020,ADULT CARE LCO FUNCTIONS,LINKABILITY,25/09/2020,7.12 ,HOME CARE - ADULT SERVICES,V001607730
ROCHDALE BOROUGH COUNCIL,25/09/2020,ADULT CARE LCO FUNCTIONS,LINKABILITY,25/09/2020,-29.94 ,HOME CARE - ADULT SERVICES,V001607731
ROCHDALE BOROUGH COUNCIL,25/09/2020,ADULT CARE LCO FUNCTIONS,LINKABILITY,25/09/2020,-22.46 ,HOME CARE - ADULT SERVICES,V001607732
ROCHDALE BOROUGH COUNCIL,25/09/2020,ADULT CARE LCO FUNCTIONS,LINKABILITY,25/09/2020,1699.10 ,HOME CARE - ADULT SERVICES,V001607733
ROCHDALE BOROUGH COUNCIL,25/09/2020,ADULT CARE LCO FUNCTIONS,LINKABILITY,25/09/2020,-100.41 ,HOME CARE - ADULT SERVICES,V001607735
ROCHDALE BOROUGH COUNCIL,25/09/2020,ADULT CARE LCO FUNCTIONS,LINKABILITY,25/09/2020,-44.91 ,HOME CARE - ADULT SERVICES,V001607736
ROCHDALE BOROUGH COUNCIL,25/09/2020,ADULT CARE LCO FUNCTIONS,LINKABILITY,25/09/2020,-97.31 ,HOME CARE - ADULT SERVICES,V001607737
ROCHDALE BOROUGH COUNCIL,25/09/2020,ADULT CARE LCO FUNCTIONS,LINKABILITY,25/09/2020,1706.58 ,HOME CARE - ADULT SERVICES,V001607738
ROCHDALE BOROUGH COUNCIL,25/09/2020,ADULT CARE LCO FUNCTIONS,LINKABILITY,25/09/2020,1639.22 ,HOME CARE - ADULT SERVICES,V001607739
ROCHDALE BOROUGH COUNCIL,25/09/2020,ADULT CARE LCO FUNCTIONS,LINKABILITY,25/09/2020,-306.25 ,HOME CARE - ADULT SERVICES,V001607771
ROCHDALE BOROUGH COUNCIL,25/09/2020,ADULT CARE LCO FUNCTIONS,LINKABILITY,25/09/2020,-64.64 ,HOME CARE - ADULT SERVICES,V001607772
ROCHDALE BOROUGH COUNCIL,25/09/2020,ADULT CARE LCO FUNCTIONS,LINKABILITY,25/09/2020,-670.64 ,HOME CARE - ADULT SERVICES,V001607773
ROCHDALE BOROUGH COUNCIL,25/09/2020,ADULT CARE LCO FUNCTIONS,LINKABILITY,25/09/2020,1591.76 ,HOME CARE - ADULT SERVICES,V001607774
ROCHDALE BOROUGH COUNCIL,25/09/2020,ADULT CARE LCO FUNCTIONS,LINKABILITY,25/09/2020,-331.55 ,HOME CARE - ADULT SERVICES,V001607778
ROCHDALE BOROUGH COUNCIL,25/09/2020,ADULT CARE LCO FUNCTIONS,LINKABILITY,25/09/2020,2133.12 ,HOME CARE - ADULT SERVICES,V001607779
ROCHDALE BOROUGH COUNCIL,25/09/2020,ADULT CARE LCO FUNCTIONS,LINKABILITY,25/09/2020,-1572.50 ,HOME CARE - ADULT SERVICES,V001607907
ROCHDALE BOROUGH COUNCIL,25/09/2020,ADULT CARE LCO FUNCTIONS,LINKABILITY,25/09/2020,-1856.28 ,HOME CARE - ADULT SERVICES,V001607908
ROCHDALE BOROUGH COUNCIL,25/09/2020,ADULT CARE LCO FUNCTIONS,LINKABILITY,25/09/2020,-1294.91 ,HOME CARE - ADULT SERVICES,V001607909
ROCHDALE BOROUGH COUNCIL,25/09/2020,ADULT CARE LCO FUNCTIONS,LINKABILITY,25/09/2020,520.21 ,HOME CARE - ADULT SERVICES,V001607910
ROCHDALE BOROUGH COUNCIL,25/09/2020,ADULT CARE LCO FUNCTIONS,LINKABILITY,25/09/2020,1100.30 ,HOME CARE - ADULT SERVICES,V001607911
ROCHDALE BOROUGH COUNCIL,25/09/2020,ADULT CARE LCO FUNCTIONS,LINKABILITY,25/09/2020,-790.86 ,HOME CARE - ADULT SERVICES,V001608067
ROCHDALE BOROUGH COUNCIL,25/09/2020,ADULT CARE LCO FUNCTIONS,LINKABILITY,25/09/2020,-1017.96 ,HOME CARE - ADULT SERVICES,V001608068
ROCHDALE BOROUGH COUNCIL,25/09/2020,ADULT CARE LCO FUNCTIONS,LINKABILITY,25/09/2020,-583.83 ,HOME CARE - ADULT SERVICES,V001608069
ROCHDALE BOROUGH COUNCIL,25/09/2020,ADULT CARE LCO FUNCTIONS,LINKABILITY,25/09/2020,449.10 ,HOME CARE - ADULT SERVICES,V001608070
ROCHDALE BOROUGH COUNCIL,25/09/2020,ADULT CARE LCO FUNCTIONS,LINKABILITY,25/09/2020,-976.52 ,HOME CARE - ADULT SERVICES,V001608112
ROCHDALE BOROUGH COUNCIL,25/09/2020,ADULT CARE LCO FUNCTIONS,LINKABILITY,25/09/2020,-1549.40 ,HOME CARE - ADULT SERVICES,V001608113
ROCHDALE BOROUGH COUNCIL,25/09/2020,ADULT CARE LCO FUNCTIONS,LINKABILITY,25/09/2020,-1414.67 ,HOME CARE - ADULT SERVICES,V001608114
ROCHDALE BOROUGH COUNCIL,25/09/2020,ADULT CARE LCO FUNCTIONS,LINKABILITY,25/09/2020,148.50 ,HOME CARE - ADULT SERVICES,V001608115
ROCHDALE BOROUGH COUNCIL,25/09/2020,ADULT CARE LCO FUNCTIONS,LINKABILITY,25/09/2020,1171.40 ,HOME CARE - ADULT SERVICES,V001608116
ROCHDALE BOROUGH COUNCIL,11/09/2020,CHILDREN�S SOCIAL CARE,CAPSTONE FOSTER CARE,11/09/2020,6598.66 ,FOSTER PARENTS BASIC ALLOWANCE,V001608156
ROCHDALE BOROUGH COUNCIL,11/09/2020,CHILDREN�S SOCIAL CARE,CAPSTONE FOSTER CARE,11/09/2020,4288.23 ,FOSTER PARENTS BASIC ALLOWANCE,V001608175
ROCHDALE BOROUGH COUNCIL,11/09/2020,CHILDREN�S SOCIAL CARE,CAPSTONE FOSTER CARE,11/09/2020,6598.66 ,FOSTER PARENTS BASIC ALLOWANCE,V001608191
ROCHDALE BOROUGH COUNCIL,11/09/2020,CHILDREN�S SOCIAL CARE,CAPSTONE FOSTER CARE,11/09/2020,6598.66 ,FOSTER PARENTS BASIC ALLOWANCE,V001608213
ROCHDALE BOROUGH COUNCIL,11/09/2020,CHILDREN�S SOCIAL CARE,CAPSTONE FOSTER CARE,11/09/2020,3765.48 ,FOSTER PARENTS BASIC ALLOWANCE,V001608228
ROCHDALE BOROUGH COUNCIL,11/09/2020,CHILDREN�S SOCIAL CARE,CAPSTONE FOSTER CARE,11/09/2020,3924.02 ,FOSTER PARENTS BASIC ALLOWANCE,V001608248
ROCHDALE BOROUGH COUNCIL,11/09/2020,CHILDREN�S SOCIAL CARE,CAPSTONE FOSTER CARE,11/09/2020,3283.83 ,FOSTER PARENTS BASIC ALLOWANCE,V001608265
ROCHDALE BOROUGH COUNCIL,11/09/2020,CHILDREN�S SOCIAL CARE,CAPSTONE FOSTER CARE,11/09/2020,3727.82 ,FOSTER PARENTS BASIC ALLOWANCE,V001608281
ROCHDALE BOROUGH COUNCIL,11/09/2020,CHILDREN�S SOCIAL CARE,CAPSTONE FOSTER CARE,11/09/2020,3727.82 ,FOSTER PARENTS BASIC ALLOWANCE,V001608326
ROCHDALE BOROUGH COUNCIL,11/09/2020,CHILDREN�S SOCIAL CARE,CAPSTONE FOSTER CARE,11/09/2020,3924.02 ,FOSTER PARENTS BASIC ALLOWANCE,V001608358
ROCHDALE BOROUGH COUNCIL,11/09/2020,CHILDREN�S SOCIAL CARE,CAPSTONE FOSTER CARE,11/09/2020,3365.55 ,FOSTER PARENTS BASIC ALLOWANCE,V001608379
ROCHDALE BOROUGH COUNCIL,11/09/2020,CHILDREN�S SOCIAL CARE,CAPSTONE FOSTER CARE,11/09/2020,3765.48 ,FOSTER PARENTS BASIC ALLOWANCE,V001608396
ROCHDALE BOROUGH COUNCIL,11/09/2020,CHILDREN�S SOCIAL CARE,CAPSTONE FOSTER CARE,11/09/2020,3365.84 ,FOSTER PARENTS BASIC ALLOWANCE,V001608414
ROCHDALE BOROUGH COUNCIL,11/09/2020,CHILDREN�S SOCIAL CARE,CAPSTONE FOSTER CARE,11/09/2020,3105.58 ,FOSTER PARENTS BASIC ALLOWANCE,V001608437
ROCHDALE BOROUGH COUNCIL,11/09/2020,CHILDREN�S SOCIAL CARE,CAPSTONE FOSTER CARE,11/09/2020,3262.03 ,FOSTER PARENTS BASIC ALLOWANCE,V001608452
ROCHDALE BOROUGH COUNCIL,11/09/2020,CHILDREN�S SOCIAL CARE,CAPSTONE FOSTER CARE,11/09/2020,3727.83 ,FOSTER PARENTS BASIC ALLOWANCE,V001608472
ROCHDALE BOROUGH COUNCIL,11/09/2020,CHILDREN�S SOCIAL CARE,CAPSTONE FOSTER CARE,11/09/2020,3288.13 ,FOSTER PARENTS BASIC ALLOWANCE,V001608490
ROCHDALE BOROUGH COUNCIL,11/09/2020,CHILDREN�S SOCIAL CARE,FOSTER CARE ASSOCIATES LIMITED,11/09/2020,3414.65 ,FOSTER PARENTS BASIC ALLOWANCE,V001608925
ROCHDALE BOROUGH COUNCIL,11/09/2020,CHILDREN�S SOCIAL CARE,FOSTER CARE ASSOCIATES LIMITED,11/09/2020,3414.65 ,FOSTER PARENTS BASIC ALLOWANCE,V001608925
ROCHDALE BOROUGH COUNCIL,03/09/2020,NEIGHBOURHOODS AND ENVIRONMENT,BRAKE BROS LTD,03/09/2020,1496.27 ,PROVISIONS,V001608926
ROCHDALE BOROUGH COUNCIL,03/09/2020,NEIGHBOURHOODS AND ENVIRONMENT,BRAKE BROS LTD,03/09/2020,137.28 ,PROVISIONS,V001608926
ROCHDALE BOROUGH COUNCIL,03/09/2020,NEIGHBOURHOODS AND ENVIRONMENT,BRAKE BROS LTD,03/09/2020,782.17 ,PROVISIONS,V001608927
ROCHDALE BOROUGH COUNCIL,11/09/2020,CHILDREN�S SOCIAL CARE,FOSTER CARE ASSOCIATES LIMITED,11/09/2020,3936.38 ,FOSTER PARENTS BASIC ALLOWANCE,V001608928
ROCHDALE BOROUGH COUNCIL,11/09/2020,CHILDREN�S SOCIAL CARE,FOSTER CARE ASSOCIATES LIMITED,11/09/2020,3936.38 ,FOSTER PARENTS BASIC ALLOWANCE,V001608928
ROCHDALE BOROUGH COUNCIL,03/09/2020,NEIGHBOURHOODS AND ENVIRONMENT,BRAKE BROS LTD,03/09/2020,4262.24 ,PROVISIONS,V001608929
ROCHDALE BOROUGH COUNCIL,03/09/2020,NEIGHBOURHOODS AND ENVIRONMENT,BRAKE BROS LTD,03/09/2020,118.46 ,PROVISIONS,V001608929
ROCHDALE BOROUGH COUNCIL,16/09/2020,CHILDREN�S SOCIAL CARE,ACTIVE CARE SOLUTIONS,16/09/2020,3433.56 ,FOSTER PARENTS BASIC ALLOWANCE,V001608930
ROCHDALE BOROUGH COUNCIL,16/09/2020,CHILDREN�S SOCIAL CARE,ACTIVE CARE SOLUTIONS,16/09/2020,3917.47 ,FOSTER PARENTS BASIC ALLOWANCE,V001608931
ROCHDALE BOROUGH COUNCIL,11/09/2020,CHILDREN�S SOCIAL CARE,FOSTER CARE ASSOCIATES LIMITED,11/09/2020,5799.30 ,FOSTER PARENTS BASIC ALLOWANCE,V001608932
ROCHDALE BOROUGH COUNCIL,11/09/2020,CHILDREN�S SOCIAL CARE,FOSTER CARE ASSOCIATES LIMITED,11/09/2020,5799.30 ,FOSTER PARENTS BASIC ALLOWANCE,V001608932
ROCHDALE BOROUGH COUNCIL,11/09/2020,CHILDREN�S SOCIAL CARE,ORACLE CARE LTD,11/09/2020,21257.14 ,EBD (EMOT & BEHAV DIFF) PLACEMENTS,V001608933
ROCHDALE BOROUGH COUNCIL,03/09/2020,CHILDREN�S SOCIAL CARE,SWIIS FOSTER CARE LIMITED,03/09/2020,817.04 ,FOSTER PARENTS BASIC ALLOWANCE,V001610035
ROCHDALE BOROUGH COUNCIL,03/09/2020,CHILDREN�S SOCIAL CARE,SWIIS FOSTER CARE LIMITED,03/09/2020,837.97 ,FOSTER PARENTS BASIC ALLOWANCE,V001610036
ROCHDALE BOROUGH COUNCIL,11/09/2020,PROPERTY AND HIGHWAYS,REACH PUBLISHING SERVICES LTD,11/09/2020,60.80 ,CHARGES-COMMITAL,V001610038
ROCHDALE BOROUGH COUNCIL,07/09/2020,PROPERTY AND HIGHWAYS,W J LEWIS BUILDERS MERCHANTS LIMITED,07/09/2020,25.01 ,PROPERTY - WORKS ELEMENT,V001610042
ROCHDALE BOROUGH COUNCIL,01/09/2020,NEIGHBOURHOODS AND ENVIRONMENT,HENDHAM HOTEL LTD,01/09/2020,399.00 ,ACCOMMODATION,V001610043
ROCHDALE BOROUGH COUNCIL,02/09/2020,PROPERTY AND HIGHWAYS,ABBEY ARCHITECTURAL IRONMONGERY CO LTD,02/09/2020,21.16 ,PROPERTY - WORKS ELEMENT,V001610044
ROCHDALE BOROUGH COUNCIL,04/09/2020,PROPERTY AND HIGHWAYS,ABBEY ARCHITECTURAL IRONMONGERY CO LTD,04/09/2020,51.30 ,PROPERTY - WORKS ELEMENT,V001610045
ROCHDALE BOROUGH COUNCIL,07/09/2020,CHILDREN�S SOCIAL CARE,INDEPENDENT TOGETHER LTD,07/09/2020,221.43 ,YOUNG PEOPLES RENTS,V001610048
ROCHDALE BOROUGH COUNCIL,07/09/2020,CHILDREN�S SOCIAL CARE,MEADOWS CARE LIMITED,07/09/2020,18157.14 ,EBD (EMOT & BEHAV DIFF) PLACEMENTS,V001610050
ROCHDALE BOROUGH COUNCIL,07/09/2020,CHILDREN�S SOCIAL CARE,PEOPLE WHO FOSTER,07/09/2020,3487.50 ,FOSTER PARENTS BASIC ALLOWANCE,V001610051
ROCHDALE BOROUGH COUNCIL,18/09/2020,CHILDREN�S SOCIAL CARE,PEOPLE WHO FOSTER,18/09/2020,4123.00 ,FOSTER PARENTS BASIC ALLOWANCE,V001610052
ROCHDALE BOROUGH COUNCIL,07/09/2020,CHILDREN�S SOCIAL CARE,MEADOWS CARE LIMITED,07/09/2020,18157.14 ,EBD (EMOT & BEHAV DIFF) PLACEMENTS,V001610054
ROCHDALE BOROUGH COUNCIL,07/09/2020,CHILDREN�S SOCIAL CARE,MEADOWS CARE LIMITED,07/09/2020,17271.43 ,EBD (EMOT & BEHAV DIFF) PLACEMENTS,V001610055
ROCHDALE BOROUGH COUNCIL,07/09/2020,CHILDREN�S SOCIAL CARE,MEADOWS CARE LIMITED,07/09/2020,18157.14 ,EBD (EMOT & BEHAV DIFF) PLACEMENTS,V001610056
ROCHDALE BOROUGH COUNCIL,07/09/2020,CHILDREN�S SOCIAL CARE,SANDCASTLE CARE LTD,07/09/2020,15942.86 ,EBD (EMOT & BEHAV DIFF) PLACEMENTS,V001610057
ROCHDALE BOROUGH COUNCIL,07/09/2020,CHILDREN�S SOCIAL CARE,SANDCASTLE CARE LTD,07/09/2020,14392.86 ,EBD (EMOT & BEHAV DIFF) PLACEMENTS,V001610058
ROCHDALE BOROUGH COUNCIL,07/09/2020,CHILDREN�S SOCIAL CARE,SANDCASTLE CARE LTD,07/09/2020,15057.14 ,EBD (EMOT & BEHAV DIFF) PLACEMENTS,V001610059
ROCHDALE BOROUGH COUNCIL,07/09/2020,CHILDREN�S SOCIAL CARE,SANDCASTLE CARE LTD,07/09/2020,26350.00 ,EBD (EMOT & BEHAV DIFF) PLACEMENTS,V001610062
ROCHDALE BOROUGH COUNCIL,30/09/2020,CHILDREN�S SOCIAL CARE,MILLENNIUM TRANSLATIONS LTD,30/09/2020,13.60 ,TRANSLATION & INTERPRETATION,V001610065
ROCHDALE BOROUGH COUNCIL,03/09/2020,NEIGHBOURHOODS AND ENVIRONMENT,BRAKE BROS LTD,03/09/2020,2699.36 ,PROVISIONS,V001610068
ROCHDALE BOROUGH COUNCIL,03/09/2020,NEIGHBOURHOODS AND ENVIRONMENT,BRAKE BROS LTD,03/09/2020,42.03 ,PROVISIONS,V001610068
ROCHDALE BOROUGH COUNCIL,03/09/2020,NEIGHBOURHOODS AND ENVIRONMENT,BRAKE BROS LTD,03/09/2020,4150.65 ,PROVISIONS,V001610070
ROCHDALE BOROUGH COUNCIL,03/09/2020,NEIGHBOURHOODS AND ENVIRONMENT,BRAKE BROS LTD,03/09/2020,209.75 ,PROVISIONS,V001610070
ROCHDALE BOROUGH COUNCIL,02/09/2020,NEIGHBOURHOODS AND ENVIRONMENT,BRAKE BROS LTD,02/09/2020,1452.60 ,PROVISIONS,V001610071
ROCHDALE BOROUGH COUNCIL,02/09/2020,NEIGHBOURHOODS AND ENVIRONMENT,BRAKE BROS LTD,02/09/2020,87.65 ,PROVISIONS,V001610071
ROCHDALE BOROUGH COUNCIL,03/09/2020,NEIGHBOURHOODS AND ENVIRONMENT,BRAKE BROS LTD,03/09/2020,599.00 ,PROVISIONS,V001610072
ROCHDALE BOROUGH COUNCIL,03/09/2020,NEIGHBOURHOODS AND ENVIRONMENT,BRAKE BROS LTD,03/09/2020,442.96 ,PROVISIONS,V001610073
ROCHDALE BOROUGH COUNCIL,03/09/2020,NEIGHBOURHOODS AND ENVIRONMENT,BRAKE BROS LTD,03/09/2020,4495.94 ,PROVISIONS,V001610074
ROCHDALE BOROUGH COUNCIL,03/09/2020,NEIGHBOURHOODS AND ENVIRONMENT,BRAKE BROS LTD,03/09/2020,49.50 ,PROVISIONS,V001610074
ROCHDALE BOROUGH COUNCIL,02/09/2020,NEIGHBOURHOODS AND ENVIRONMENT,BRAKE BROS LTD,02/09/2020,6436.52 ,PROVISIONS,V001610075
ROCHDALE BOROUGH COUNCIL,02/09/2020,NEIGHBOURHOODS AND ENVIRONMENT,BRAKE BROS LTD,02/09/2020,558.35 ,PROVISIONS,V001610075
ROCHDALE BOROUGH COUNCIL,03/09/2020,NEIGHBOURHOODS AND ENVIRONMENT,BRAKE BROS LTD,03/09/2020,23.00 ,PROVISIONS,V001610076
ROCHDALE BOROUGH COUNCIL,01/09/2020,PROPERTY AND HIGHWAYS,FRANK KEY TOOL HIRE LTD,01/09/2020,25.50 ,PROPERTY - WORKS ELEMENT,V001610083
ROCHDALE BOROUGH COUNCIL,03/09/2020,NEIGHBOURHOODS AND ENVIRONMENT,BRAKE BROS LTD,03/09/2020,2635.91 ,PROVISIONS,V001610085
ROCHDALE BOROUGH COUNCIL,03/09/2020,NEIGHBOURHOODS AND ENVIRONMENT,BRAKE BROS LTD,03/09/2020,165.86 ,PROVISIONS,V001610085
ROCHDALE BOROUGH COUNCIL,03/09/2020,NEIGHBOURHOODS AND ENVIRONMENT,BRAKE BROS LTD,03/09/2020,1785.70 ,PROVISIONS,V001610086
ROCHDALE BOROUGH COUNCIL,15/09/2020,NEIGHBOURHOODS AND ENVIRONMENT,BRAKE BROS LTD,15/09/2020,2285.78 ,PROVISIONS,V001610087
ROCHDALE BOROUGH COUNCIL,15/09/2020,NEIGHBOURHOODS AND ENVIRONMENT,BRAKE BROS LTD,15/09/2020,158.23 ,PROVISIONS,V001610087
ROCHDALE BOROUGH COUNCIL,03/09/2020,NEIGHBOURHOODS AND ENVIRONMENT,BRAKE BROS LTD,03/09/2020,2205.44 ,PROVISIONS,V001610088
ROCHDALE BOROUGH COUNCIL,03/09/2020,NEIGHBOURHOODS AND ENVIRONMENT,BRAKE BROS LTD,03/09/2020,42.03 ,PROVISIONS,V001610088
ROCHDALE BOROUGH COUNCIL,03/09/2020,NEIGHBOURHOODS AND ENVIRONMENT,BRAKE BROS LTD,03/09/2020,3887.68 ,PROVISIONS,V001610089
ROCHDALE BOROUGH COUNCIL,03/09/2020,NEIGHBOURHOODS AND ENVIRONMENT,BRAKE BROS LTD,03/09/2020,348.76 ,PROVISIONS,V001610089
ROCHDALE BOROUGH COUNCIL,03/09/2020,NEIGHBOURHOODS AND ENVIRONMENT,BRAKE BROS LTD,03/09/2020,3479.95 ,PROVISIONS,V001610090
ROCHDALE BOROUGH COUNCIL,03/09/2020,NEIGHBOURHOODS AND ENVIRONMENT,BRAKE BROS LTD,03/09/2020,84.06 ,PROVISIONS,V001610090
ROCHDALE BOROUGH COUNCIL,03/09/2020,CHILDREN�S SOCIAL CARE,PARADIGM PROFESSIONAL CONSULTANCY LTD,03/09/2020,1387.50 ,AGENCY STAFF,V001610097
ROCHDALE BOROUGH COUNCIL,07/09/2020,CHILDREN�S SOCIAL CARE,CASICARE LTD,07/09/2020,260.84 ,YOUNGE PERSONS ALLOWANCE,V001610098
ROCHDALE BOROUGH COUNCIL,07/09/2020,CHILDREN�S SOCIAL CARE,CASICARE LTD,07/09/2020,3875.00 ,YOUNG PEOPLES RENTS,V001610098
ROCHDALE BOROUGH COUNCIL,25/09/2020,ADULT CARE LCO FUNCTIONS,REDACTED - PERSONAL DATA,25/09/2020,1503.40 ,DIRECT PAYMENTS,V001610135
ROCHDALE BOROUGH COUNCIL,25/09/2020,PROPERTY AND HIGHWAYS,NPOWER LIMITED,25/09/2020,74840.41 ,ELECTRICITY,V001610268
ROCHDALE BOROUGH COUNCIL,02/09/2020,ECONOMY DIRECTORATE,ROCHDALE BOROUGHWIDE HOUSING,02/09/2020,10000.00 ,ACTIVITIES,V001610301
ROCHDALE BOROUGH COUNCIL,08/09/2020,CHILDREN�S SOCIAL CARE,STEPPING STONE PROJECTS,08/09/2020,245.60 ,YOUNGE PERSONS ALLOWANCE,V001611275
ROCHDALE BOROUGH COUNCIL,01/09/2020,CHILDREN�S SOCIAL CARE,G AND A TAYLOR HOTELS LTD,01/09/2020,439.04 ,ALLOWANCES,V001611276
ROCHDALE BOROUGH COUNCIL,01/09/2020,CHILDREN�S SOCIAL CARE,G AND A TAYLOR HOTELS LTD,01/09/2020,23.10 ,ALLOWANCES,V001611276
ROCHDALE BOROUGH COUNCIL,03/09/2020,CHILDREN�S SOCIAL CARE,THE BIG WORD,03/09/2020,964.21 ,TRANSLATION & INTERPRETATION,V001611277
ROCHDALE BOROUGH COUNCIL,03/09/2020,NEIGHBOURHOODS AND ENVIRONMENT,BRAKE BROS LTD,03/09/2020,-34.50 ,PROVISIONS,V001611280
ROCHDALE BOROUGH COUNCIL,03/09/2020,NEIGHBOURHOODS AND ENVIRONMENT,BRAKE BROS LTD,03/09/2020,-101.20 ,PROVISIONS,V001611281
ROCHDALE BOROUGH COUNCIL,03/09/2020,NEIGHBOURHOODS AND ENVIRONMENT,BRAKE BROS LTD,03/09/2020,-35.42 ,PROVISIONS,V001611282
ROCHDALE BOROUGH COUNCIL,03/09/2020,NEIGHBOURHOODS AND ENVIRONMENT,BRAKE BROS LTD,03/09/2020,-25.30 ,PROVISIONS,V001611283
ROCHDALE BOROUGH COUNCIL,03/09/2020,NEIGHBOURHOODS AND ENVIRONMENT,BRAKE BROS LTD,03/09/2020,-115.00 ,PROVISIONS,V001611284
ROCHDALE BOROUGH COUNCIL,03/09/2020,NEIGHBOURHOODS AND ENVIRONMENT,BRAKE BROS LTD,03/09/2020,-80.50 ,PROVISIONS,V001611285
ROCHDALE BOROUGH COUNCIL,03/09/2020,NEIGHBOURHOODS AND ENVIRONMENT,BRAKE BROS LTD,03/09/2020,-69.00 ,PROVISIONS,V001611286
ROCHDALE BOROUGH COUNCIL,03/09/2020,NEIGHBOURHOODS AND ENVIRONMENT,BRAKE BROS LTD,03/09/2020,-55.20 ,PROVISIONS,V001611287
ROCHDALE BOROUGH COUNCIL,03/09/2020,NEIGHBOURHOODS AND ENVIRONMENT,BRAKE BROS LTD,03/09/2020,-69.00 ,PROVISIONS,V001611288
ROCHDALE BOROUGH COUNCIL,03/09/2020,NEIGHBOURHOODS AND ENVIRONMENT,BRAKE BROS LTD,03/09/2020,-115.00 ,PROVISIONS,V001611289
ROCHDALE BOROUGH COUNCIL,03/09/2020,NEIGHBOURHOODS AND ENVIRONMENT,BRAKE BROS LTD,03/09/2020,-25.40 ,PROVISIONS,V001611290
ROCHDALE BOROUGH COUNCIL,03/09/2020,NEIGHBOURHOODS AND ENVIRONMENT,BRAKE BROS LTD,03/09/2020,-32.66 ,PROVISIONS,V001611291
ROCHDALE BOROUGH COUNCIL,03/09/2020,NEIGHBOURHOODS AND ENVIRONMENT,BRAKE BROS LTD,03/09/2020,-69.80 ,PROVISIONS,V001611292
ROCHDALE BOROUGH COUNCIL,03/09/2020,NEIGHBOURHOODS AND ENVIRONMENT,BRAKE BROS LTD,03/09/2020,-51.55 ,PROVISIONS,V001611293
ROCHDALE BOROUGH COUNCIL,03/09/2020,NEIGHBOURHOODS AND ENVIRONMENT,BRAKE BROS LTD,03/09/2020,2488.14 ,PROVISIONS,V001611294
ROCHDALE BOROUGH COUNCIL,03/09/2020,NEIGHBOURHOODS AND ENVIRONMENT,BRAKE BROS LTD,03/09/2020,3426.45 ,PROVISIONS,V001611295
ROCHDALE BOROUGH COUNCIL,03/09/2020,NEIGHBOURHOODS AND ENVIRONMENT,BRAKE BROS LTD,03/09/2020,61.60 ,PROVISIONS,V001611296
ROCHDALE BOROUGH COUNCIL,02/09/2020,NEIGHBOURHOODS AND ENVIRONMENT,BRAKE BROS LTD,02/09/2020,3760.40 ,PROVISIONS,V001611297
ROCHDALE BOROUGH COUNCIL,02/09/2020,NEIGHBOURHOODS AND ENVIRONMENT,BRAKE BROS LTD,02/09/2020,996.62 ,PROVISIONS,V001611298
ROCHDALE BOROUGH COUNCIL,10/09/2020,NEIGHBOURHOODS AND ENVIRONMENT,CAPITA BUSINESS SERVICES LIMITED,10/09/2020,-4995.00 ,SOFTWARE,V001611301
ROCHDALE BOROUGH COUNCIL,10/09/2020,NEIGHBOURHOODS AND ENVIRONMENT,CAPITA BUSINESS SERVICES LIMITED,10/09/2020,-4995.00 ,SOFTWARE,V001611301
ROCHDALE BOROUGH COUNCIL,11/09/2020,PUBLIC HEALTH,EARLY BREAK,11/09/2020,270.00 ,ACTIVITIES,V001611303
ROCHDALE BOROUGH COUNCIL,11/09/2020,NEIGHBOURHOODS AND ENVIRONMENT,PAUL CHEETHAM EYE CARE,11/09/2020,25.00 ,EYE TESTS  VDU USERS,V001611307
ROCHDALE BOROUGH COUNCIL,11/09/2020,NEIGHBOURHOODS AND ENVIRONMENT,PAUL CHEETHAM EYE CARE,11/09/2020,20.00 ,EYE TESTS  VDU USERS,V001611307
ROCHDALE BOROUGH COUNCIL,17/09/2020,RESOURCES,CRITIQOM LIMITED,17/09/2020,1870.34 ,POSTAGE,V001611312
ROCHDALE BOROUGH COUNCIL,08/09/2020,NEIGHBOURHOODS AND ENVIRONMENT,G AND A TAYLOR HOTELS LTD,08/09/2020,-62.55 ,ACCOMMODATION,V001611313
ROCHDALE BOROUGH COUNCIL,01/09/2020,ECONOMY DIRECTORATE,WSP LTD UK,01/09/2020,3944.00 ,ACTIVITIES,V001611320
ROCHDALE BOROUGH COUNCIL,11/09/2020,EARLY HELP AND SCHOOLS,ARJO UK LTD,11/09/2020,51.00 ,SPECIFIED MAINTENANCE,V001611324
ROCHDALE BOROUGH COUNCIL,11/09/2020,EARLY HELP AND SCHOOLS,ARJO UK LTD,11/09/2020,153.00 ,SPECIFIED MAINTENANCE,V001611325
ROCHDALE BOROUGH COUNCIL,11/09/2020,EARLY HELP AND SCHOOLS,ARJO UK LTD,11/09/2020,102.00 ,SPECIFIED MAINTENANCE,V001611326
ROCHDALE BOROUGH COUNCIL,11/09/2020,EARLY HELP AND SCHOOLS,ARJO UK LTD,11/09/2020,102.00 ,SPECIFIED MAINTENANCE,V001611327
ROCHDALE BOROUGH COUNCIL,02/09/2020,RESOURCES,REDACTED - PERSONAL DATA,02/09/2020,4000.00 ,PROFESSIONAL FEES,V001611328
ROCHDALE BOROUGH COUNCIL,11/09/2020,ADULT CARE LCO FUNCTIONS,STANSFIELD HALL CARE HOME,11/09/2020,1032.00 ,RESIDENTIAL LONG TERM,V001611456
ROCHDALE BOROUGH COUNCIL,11/09/2020,ADULT CARE LCO FUNCTIONS,STANSFIELD HALL CARE HOME,11/09/2020,20.00 ,RESIDENTIAL & NURSING TOP UP EXPENDITURE,V001611457
ROCHDALE BOROUGH COUNCIL,11/09/2020,ADULT CARE LCO FUNCTIONS,STANSFIELD HALL CARE HOME,11/09/2020,1032.00 ,RESIDENTIAL LONG TERM,V001611618
ROCHDALE BOROUGH COUNCIL,11/09/2020,ADULT CARE LCO FUNCTIONS,STANSFIELD HALL CARE HOME,11/09/2020,118.00 ,RESIDENTIAL & NURSING TOP UP EXPENDITURE,V001611619
ROCHDALE BOROUGH COUNCIL,11/09/2020,ADULT CARE LCO FUNCTIONS,STANSFIELD HALL CARE HOME,11/09/2020,1032.00 ,RESIDENTIAL LONG TERM,V001611622
ROCHDALE BOROUGH COUNCIL,11/09/2020,ADULT CARE LCO FUNCTIONS,STANSFIELD HALL CARE HOME,11/09/2020,80.00 ,RESIDENTIAL & NURSING TOP UP EXPENDITURE,V001611623
ROCHDALE BOROUGH COUNCIL,11/09/2020,ADULT CARE LCO FUNCTIONS,STANSFIELD HALL CARE HOME,11/09/2020,1032.00 ,RESIDENTIAL LONG TERM,V001611671
ROCHDALE BOROUGH COUNCIL,11/09/2020,ADULT CARE LCO FUNCTIONS,STANSFIELD HALL CARE HOME,11/09/2020,84.00 ,RESIDENTIAL & NURSING TOP UP EXPENDITURE,V001611672
ROCHDALE BOROUGH COUNCIL,11/09/2020,ADULT CARE LCO FUNCTIONS,STANSFIELD HALL CARE HOME,11/09/2020,-737.14 ,RESIDENTIAL LONG TERM,V001611686
ROCHDALE BOROUGH COUNCIL,11/09/2020,ADULT CARE LCO FUNCTIONS,STANSFIELD HALL CARE HOME,11/09/2020,-1032.00 ,RESIDENTIAL LONG TERM,V001611687
ROCHDALE BOROUGH COUNCIL,11/09/2020,ADULT CARE LCO FUNCTIONS,STANSFIELD HALL CARE HOME,11/09/2020,-1032.00 ,RESIDENTIAL LONG TERM,V001611688
ROCHDALE BOROUGH COUNCIL,11/09/2020,ADULT CARE LCO FUNCTIONS,STANSFIELD HALL CARE HOME,11/09/2020,-1032.00 ,RESIDENTIAL LONG TERM,V001611689
ROCHDALE BOROUGH COUNCIL,11/09/2020,ADULT CARE LCO FUNCTIONS,STANSFIELD HALL CARE HOME,11/09/2020,-1032.00 ,RESIDENTIAL LONG TERM,V001611690
ROCHDALE BOROUGH COUNCIL,11/09/2020,ADULT CARE LCO FUNCTIONS,STANSFIELD HALL CARE HOME,11/09/2020,-1032.00 ,RESIDENTIAL LONG TERM,V001611691
ROCHDALE BOROUGH COUNCIL,11/09/2020,ADULT CARE LCO FUNCTIONS,STANSFIELD HALL CARE HOME,11/09/2020,-1032.00 ,RESIDENTIAL LONG TERM,V001611692
ROCHDALE BOROUGH COUNCIL,11/09/2020,ADULT CARE LCO FUNCTIONS,STANSFIELD HALL CARE HOME,11/09/2020,1032.00 ,RESIDENTIAL LONG TERM,V001611731
ROCHDALE BOROUGH COUNCIL,21/09/2020,CHILDREN�S SOCIAL CARE,ACORN HOUSE FOSTERING SERVICES LIMITED,21/09/2020,4924.85 ,FOSTER PARENTS BASIC ALLOWANCE,V001611761
ROCHDALE BOROUGH COUNCIL,21/09/2020,CHILDREN�S SOCIAL CARE,ACORN HOUSE FOSTERING SERVICES LIMITED,21/09/2020,3846.00 ,FOSTER PARENTS BASIC ALLOWANCE,V001611762
ROCHDALE BOROUGH COUNCIL,21/09/2020,CHILDREN�S SOCIAL CARE,ACORN HOUSE FOSTERING SERVICES LIMITED,21/09/2020,3792.60 ,FOSTER PARENTS BASIC ALLOWANCE,V001611763
ROCHDALE BOROUGH COUNCIL,04/09/2020,NEIGHBOURHOODS AND ENVIRONMENT,SMARTESTENERGY,04/09/2020,32.70 ,RENTS,V001611766
ROCHDALE BOROUGH COUNCIL,01/09/2020,PROPERTY AND HIGHWAYS,NORTHWEST ASBESTOS REMOVALS LTD,01/09/2020,1280.00 ,IMPROVEMENTS-MODERNISATION,V001611767
ROCHDALE BOROUGH COUNCIL,01/09/2020,EARLY HELP AND SCHOOLS,FUSE PSYCHOLOGY SERVICES,01/09/2020,2300.00 ,ACTIVITIES,V001611773
ROCHDALE BOROUGH COUNCIL,08/09/2020,ECONOMY DIRECTORATE,WATER PLUS,08/09/2020,5.00 ,MINOR BUILDING WORKS,V001611775
ROCHDALE BOROUGH COUNCIL,08/09/2020,ECONOMY DIRECTORATE,WATER PLUS,08/09/2020,2.01 ,MINOR BUILDING WORKS,V001611775
ROCHDALE BOROUGH COUNCIL,01/09/2020,EARLY HELP AND SCHOOLS,FUSE PSYCHOLOGY SERVICES,01/09/2020,2300.00 ,ACTIVITIES,V001611776
ROCHDALE BOROUGH COUNCIL,01/09/2020,ADULT CARE LCO FUNCTIONS,HOME INSTEAD SENIOR CARE,01/09/2020,3755.14 ,PERSONAL BUDGETS - MANAGED,V001611779
ROCHDALE BOROUGH COUNCIL,01/09/2020,NEIGHBOURHOODS AND ENVIRONMENT,JMHA,01/09/2020,450.00 ,GRANTS TO OTHER BODIES,V001611781
ROCHDALE BOROUGH COUNCIL,01/09/2020,NEIGHBOURHOODS AND ENVIRONMENT,JMHA,01/09/2020,992.53 ,GRANTS TO OTHER BODIES,V001611782
ROCHDALE BOROUGH COUNCIL,01/09/2020,NEIGHBOURHOODS AND ENVIRONMENT,JMHA,01/09/2020,385.00 ,GRANTS TO OTHER BODIES,V001611783
ROCHDALE BOROUGH COUNCIL,01/09/2020,NEIGHBOURHOODS AND ENVIRONMENT,RUSHTONS DEVELOPMENTS LTD,01/09/2020,2120.00 ,PROPERTY REFURBISHMENT (HOUSING),V001611784
ROCHDALE BOROUGH COUNCIL,01/09/2020,NEIGHBOURHOODS AND ENVIRONMENT,RUSHTONS DEVELOPMENTS LTD,01/09/2020,630.00 ,PROPERTY REFURBISHMENT (HOUSING),V001611785
ROCHDALE BOROUGH COUNCIL,01/09/2020,NEIGHBOURHOODS AND ENVIRONMENT,RUSHTONS DEVELOPMENTS LTD,01/09/2020,420.00 ,PROPERTY REFURBISHMENT (HOUSING),V001611785
ROCHDALE BOROUGH COUNCIL,09/09/2020,NEIGHBOURHOODS AND ENVIRONMENT,RUSHTONS DEVELOPMENTS LTD,09/09/2020,1188.00 ,PROPERTY REFURBISHMENT (HOUSING),V001611786
ROCHDALE BOROUGH COUNCIL,09/09/2020,NEIGHBOURHOODS AND ENVIRONMENT,RUSHTONS DEVELOPMENTS LTD,09/09/2020,792.00 ,PROPERTY REFURBISHMENT (HOUSING),V001611786
ROCHDALE BOROUGH COUNCIL,01/09/2020,ECONOMY DIRECTORATE,WSP LTD UK,01/09/2020,17360.00 ,CONSULTANT FEES,V001611788
ROCHDALE BOROUGH COUNCIL,01/09/2020,ECONOMY DIRECTORATE,DONALD INSALL ASSOCIATES,01/09/2020,23452.00 ,CONSULTANTS FEES,V001611789
ROCHDALE BOROUGH COUNCIL,01/09/2020,ECONOMY DIRECTORATE,DONALD INSALL ASSOCIATES,01/09/2020,6465.00 ,CONSULTANTS FEES,V001611790
ROCHDALE BOROUGH COUNCIL,07/09/2020,PROPERTY AND HIGHWAYS,DDH FABRICATIONS LTD,07/09/2020,20.00 ,PROPERTY - WORKS ELEMENT,V001611791
ROCHDALE BOROUGH COUNCIL,04/09/2020,NEIGHBOURHOODS AND ENVIRONMENT,FORENSICS LTD,04/09/2020,486.88 ,TOXICOLOGY PAYMENTS,V001611794
ROCHDALE BOROUGH COUNCIL,24/09/2020,PUBLIC HEALTH,ACORN RECOVERY PROJECTS,24/09/2020,1051.43 ,CONTRACTED SERVICES,V001611869
ROCHDALE BOROUGH COUNCIL,18/09/2020,PUBLIC HEALTH,ACORN RECOVERY PROJECTS,18/09/2020,985.71 ,CONTRACTED SERVICES,V001611870
ROCHDALE BOROUGH COUNCIL,18/09/2020,PUBLIC HEALTH,ACORN RECOVERY PROJECTS,18/09/2020,2037.14 ,CONTRACTED SERVICES,V001611871
ROCHDALE BOROUGH COUNCIL,18/09/2020,PUBLIC HEALTH,ACORN RECOVERY PROJECTS,18/09/2020,2037.14 ,CONTRACTED SERVICES,V001611872
ROCHDALE BOROUGH COUNCIL,18/09/2020,PUBLIC HEALTH,ACTION TOGETHER,18/09/2020,22916.66 ,PH OTHER CONTRACTS,V001611873
ROCHDALE BOROUGH COUNCIL,01/09/2020,CHILDREN�S SOCIAL CARE,ROCHDALE TOWN TAXIS LTD,01/09/2020,90.00 ,TAXI HIRE,V001611874
ROCHDALE BOROUGH COUNCIL,01/09/2020,CHILDREN�S SOCIAL CARE,ROCHDALE TOWN TAXIS LTD,01/09/2020,90.00 ,TAXI HIRE,V001611874
ROCHDALE BOROUGH COUNCIL,01/09/2020,CHILDREN�S SOCIAL CARE,ROCHDALE TOWN TAXIS LTD,01/09/2020,90.00 ,TAXI HIRE,V001611874
ROCHDALE BOROUGH COUNCIL,01/09/2020,CHILDREN�S SOCIAL CARE,ROCHDALE TOWN TAXIS LTD,01/09/2020,15.00 ,TAXI HIRE,V001611875
ROCHDALE BOROUGH COUNCIL,01/09/2020,CHILDREN�S SOCIAL CARE,ROCHDALE TOWN TAXIS LTD,01/09/2020,15.00 ,TAXI HIRE,V001611875
ROCHDALE BOROUGH COUNCIL,01/09/2020,CHILDREN�S SOCIAL CARE,ROCHDALE TOWN TAXIS LTD,01/09/2020,15.00 ,TAXI HIRE,V001611875
ROCHDALE BOROUGH COUNCIL,01/09/2020,NEIGHBOURHOODS AND ENVIRONMENT,CICELEY COMMERCIALS LIMITED,01/09/2020,31293.50 ,PURCHASE OF VEHICLES,V001611877
ROCHDALE BOROUGH COUNCIL,01/09/2020,NEIGHBOURHOODS AND ENVIRONMENT,CICELEY COMMERCIALS LIMITED,01/09/2020,315.00 ,PURCHASE OF VEHICLES,V001611877
ROCHDALE BOROUGH COUNCIL,01/09/2020,NEIGHBOURHOODS AND ENVIRONMENT,CICELEY COMMERCIALS LIMITED,01/09/2020,31293.50 ,PURCHASE OF VEHICLES,V001611878
ROCHDALE BOROUGH COUNCIL,01/09/2020,NEIGHBOURHOODS AND ENVIRONMENT,CICELEY COMMERCIALS LIMITED,01/09/2020,315.00 ,PURCHASE OF VEHICLES,V001611878
ROCHDALE BOROUGH COUNCIL,01/09/2020,NEIGHBOURHOODS AND ENVIRONMENT,CICELEY COMMERCIALS LIMITED,01/09/2020,30838.50 ,PURCHASE OF VEHICLES,V001611879
ROCHDALE BOROUGH COUNCIL,01/09/2020,NEIGHBOURHOODS AND ENVIRONMENT,CICELEY COMMERCIALS LIMITED,01/09/2020,315.00 ,PURCHASE OF VEHICLES,V001611879
ROCHDALE BOROUGH COUNCIL,01/09/2020,NEIGHBOURHOODS AND ENVIRONMENT,CICELEY COMMERCIALS LIMITED,01/09/2020,30838.50 ,PURCHASE OF VEHICLES,V001611880
ROCHDALE BOROUGH COUNCIL,01/09/2020,NEIGHBOURHOODS AND ENVIRONMENT,CICELEY COMMERCIALS LIMITED,01/09/2020,315.00 ,PURCHASE OF VEHICLES,V001611880
ROCHDALE BOROUGH COUNCIL,01/09/2020,NEIGHBOURHOODS AND ENVIRONMENT,CICELEY COMMERCIALS LIMITED,01/09/2020,30838.50 ,PURCHASE OF VEHICLES,V001611881
ROCHDALE BOROUGH COUNCIL,01/09/2020,NEIGHBOURHOODS AND ENVIRONMENT,CICELEY COMMERCIALS LIMITED,01/09/2020,315.00 ,PURCHASE OF VEHICLES,V001611881
ROCHDALE BOROUGH COUNCIL,01/09/2020,NEIGHBOURHOODS AND ENVIRONMENT,CICELEY COMMERCIALS LIMITED,01/09/2020,30838.50 ,PURCHASE OF VEHICLES,V001611882
ROCHDALE BOROUGH COUNCIL,01/09/2020,NEIGHBOURHOODS AND ENVIRONMENT,CICELEY COMMERCIALS LIMITED,01/09/2020,315.00 ,PURCHASE OF VEHICLES,V001611882
ROCHDALE BOROUGH COUNCIL,01/09/2020,NEIGHBOURHOODS AND ENVIRONMENT,CICELEY COMMERCIALS LIMITED,01/09/2020,30838.50 ,PURCHASE OF VEHICLES,V001611883
ROCHDALE BOROUGH COUNCIL,01/09/2020,NEIGHBOURHOODS AND ENVIRONMENT,CICELEY COMMERCIALS LIMITED,01/09/2020,315.00 ,PURCHASE OF VEHICLES,V001611883
ROCHDALE BOROUGH COUNCIL,03/09/2020,NEIGHBOURHOODS AND ENVIRONMENT,ORCHARD RECYCLING SERVICE LTD,03/09/2020,2651.50 ,CONTRACTS,V001611884
ROCHDALE BOROUGH COUNCIL,03/09/2020,NEIGHBOURHOODS AND ENVIRONMENT,ROYTON MINIBUSES LIMITED,03/09/2020,256.00 ,TAXI HIRE,V001611886
ROCHDALE BOROUGH COUNCIL,03/09/2020,NEIGHBOURHOODS AND ENVIRONMENT,ROYTON MINIBUSES LIMITED,03/09/2020,256.00 ,TAXI HIRE,V001611886
ROCHDALE BOROUGH COUNCIL,03/09/2020,NEIGHBOURHOODS AND ENVIRONMENT,ROYTON MINIBUSES LIMITED,03/09/2020,256.00 ,TAXI HIRE,V001611886
ROCHDALE BOROUGH COUNCIL,03/09/2020,NEIGHBOURHOODS AND ENVIRONMENT,ROYTON MINIBUSES LIMITED,03/09/2020,260.92 ,TAXI HIRE,V001611886
ROCHDALE BOROUGH COUNCIL,03/09/2020,NEIGHBOURHOODS AND ENVIRONMENT,ROYTON MINIBUSES LIMITED,03/09/2020,260.92 ,TAXI HIRE,V001611886
ROCHDALE BOROUGH COUNCIL,03/09/2020,NEIGHBOURHOODS AND ENVIRONMENT,ROYTON MINIBUSES LIMITED,03/09/2020,260.92 ,TAXI HIRE,V001611886
ROCHDALE BOROUGH COUNCIL,01/09/2020,PROPERTY AND HIGHWAYS,HOWARTH TIMBER AND BUILDING SUPPLIES LTD,01/09/2020,93.85 ,PROPERTY - WORKS ELEMENT,V001611887
ROCHDALE BOROUGH COUNCIL,01/09/2020,EARLY HELP AND SCHOOLS,BLADE ROOFING LTD,01/09/2020,15043.45 ,MINOR BUILDING WORKS,V001611888
ROCHDALE BOROUGH COUNCIL,01/09/2020,PROPERTY AND HIGHWAYS,HOWARTH TIMBER AND BUILDING SUPPLIES LTD,01/09/2020,61.05 ,PROPERTY - WORKS ELEMENT,V001611889
ROCHDALE BOROUGH COUNCIL,01/09/2020,EARLY HELP AND SCHOOLS,B AND E BOYS LIMITED,01/09/2020,44620.73 ,MINOR BUILDING WORKS,V001611890
ROCHDALE BOROUGH COUNCIL,01/09/2020,PROPERTY AND HIGHWAYS,MARCHBRIDGE BUILDERS LIMITED,01/09/2020,2737.43 ,MINOR BUILDING WORKS,V001611891
ROCHDALE BOROUGH COUNCIL,03/09/2020,NEIGHBOURHOODS AND ENVIRONMENT,GRAVITAS RECRUITMENT GROUP,03/09/2020,1150.00 ,AGENCY STAFF,V001611892
ROCHDALE BOROUGH COUNCIL,07/09/2020,PROPERTY AND HIGHWAYS,HOWARTH TIMBER AND BUILDING SUPPLIES LTD,07/09/2020,11.76 ,PROPERTY - WORKS ELEMENT,V001611893
ROCHDALE BOROUGH COUNCIL,17/09/2020,PROPERTY AND HIGHWAYS,CALEDONIAN LIFTS MANCHESTER LTD,17/09/2020,35.00 ,PROPERTY - WORKS ELEMENT,V001611894
ROCHDALE BOROUGH COUNCIL,02/09/2020,PROPERTY AND HIGHWAYS,FRANK KEY TOOL HIRE LTD,02/09/2020,15.60 ,PROPERTY - WORKS ELEMENT,V001611895
ROCHDALE BOROUGH COUNCIL,08/09/2020,NEIGHBOURHOODS AND ENVIRONMENT,INTEGRATED WATER SERVICES LIMITED,08/09/2020,456.00 ,REPAIRS & ALTS OF BUILDINGS,V001611896
ROCHDALE BOROUGH COUNCIL,04/09/2020,ECONOMY DIRECTORATE,G2 RECRUITMENT SOLUTIONS LTD,04/09/2020,1487.50 ,AGENCY STAFF,V001611897
ROCHDALE BOROUGH COUNCIL,07/09/2020,PROPERTY AND HIGHWAYS,ELECTRIC CENTER,07/09/2020,107.73 ,ELECTRICAL,V001611899
ROCHDALE BOROUGH COUNCIL,01/09/2020,PROPERTY AND HIGHWAYS,FRANK KEY TOOL HIRE LTD,01/09/2020,21.00 ,PROPERTY - WORKS ELEMENT,V001611900
ROCHDALE BOROUGH COUNCIL,01/09/2020,NEIGHBOURHOODS AND ENVIRONMENT,STHREE PARTNERSHIP LLP,01/09/2020,1875.00 ,AGENCY STAFF,V001611901
ROCHDALE BOROUGH COUNCIL,01/09/2020,NEIGHBOURHOODS AND ENVIRONMENT,MKB PUBLIC SECTOR LTD,01/09/2020,3380.00 ,CONSULTANT FEES,V001611902
ROCHDALE BOROUGH COUNCIL,03/09/2020,RESOURCES,MHR,03/09/2020,26550.00 ,SOFTWARE,V001611903
ROCHDALE BOROUGH COUNCIL,08/09/2020,NEIGHBOURHOODS AND ENVIRONMENT,CRITIQOM LIMITED,08/09/2020,87.30 ,PRINTING & STATIONERY,V001611904
ROCHDALE BOROUGH COUNCIL,01/09/2020,EARLY HELP AND SCHOOLS,REDACTED - PERSONAL DATA,01/09/2020,70.00 ,PUBLIC TRANSPORT,V001611905
ROCHDALE BOROUGH COUNCIL,01/09/2020,NEIGHBOURHOODS AND ENVIRONMENT,CROWN OIL LIMITED,01/09/2020,1000.25 ,FUEL,V001611913
ROCHDALE BOROUGH COUNCIL,01/09/2020,NEIGHBOURHOODS AND ENVIRONMENT,WHITEHEADS 1858 LTD,01/09/2020,289.00 ,REPAIRS & ALTS OF BUILDINGS,V001611914
ROCHDALE BOROUGH COUNCIL,02/09/2020,CHILDREN�S SOCIAL CARE,FOUNDATION UK,02/09/2020,1535.05 ,ACCOMMODATION,V001611915
ROCHDALE BOROUGH COUNCIL,02/09/2020,ECONOMY DIRECTORATE,MONDREM LTD,02/09/2020,2500.00 ,CONSULTANT FEES,V001611916
ROCHDALE BOROUGH COUNCIL,02/09/2020,ECONOMY DIRECTORATE,WSP LTD UK,02/09/2020,7000.00 ,CONSULTANTS FEES,V001611918
ROCHDALE BOROUGH COUNCIL,02/09/2020,NEIGHBOURHOODS AND ENVIRONMENT,AEBI SCHMIDT UK LIMITED,02/09/2020,1806.14 ,EQUIPMENT - GENERAL,V001611921
ROCHDALE BOROUGH COUNCIL,02/09/2020,NEIGHBOURHOODS AND ENVIRONMENT,AEBI SCHMIDT UK LIMITED,02/09/2020,190.00 ,EQUIPMENT - GENERAL,V001611921
ROCHDALE BOROUGH COUNCIL,02/09/2020,RESOURCES,FORBES SOLICITORS,02/09/2020,88.00 ,INPUT VAT -  ADJUSTMENTS,V001611922
ROCHDALE BOROUGH COUNCIL,01/09/2020,CHILDREN�S SOCIAL CARE,REDACTED - PERSONAL DATA,01/09/2020,57.90 ,ALLOWANCES,V001611924
ROCHDALE BOROUGH COUNCIL,01/09/2020,CHILDREN�S SOCIAL CARE,REED SPECIALIST RECRUITMENT LTD,01/09/2020,1.20 ,AGENCY STAFF,V001611925
ROCHDALE BOROUGH COUNCIL,01/09/2020,ADULT CARE LCO FUNCTIONS,REED SPECIALIST RECRUITMENT LTD,01/09/2020,77.44 ,CAPITAL - STAFFING AGENCY PAYMENTS,V001611925
ROCHDALE BOROUGH COUNCIL,01/09/2020,NEIGHBOURHOODS AND ENVIRONMENT,REED SPECIALIST RECRUITMENT LTD,01/09/2020,89.60 ,AGENCY STAFF,V001611925
ROCHDALE BOROUGH COUNCIL,01/09/2020,CHILDREN�S SOCIAL CARE,REED SPECIALIST RECRUITMENT LTD,01/09/2020,39.60 ,AGENCY STAFF,V001611925
ROCHDALE BOROUGH COUNCIL,01/09/2020,CHILDREN�S SOCIAL CARE,REED SPECIALIST RECRUITMENT LTD,01/09/2020,15.00 ,AGENCY STAFF,V001611925
ROCHDALE BOROUGH COUNCIL,01/09/2020,CHILDREN�S SOCIAL CARE,REED SPECIALIST RECRUITMENT LTD,01/09/2020,9.59 ,AGENCY STAFF,V001611925
ROCHDALE BOROUGH COUNCIL,01/09/2020,CHILDREN�S SOCIAL CARE,REED SPECIALIST RECRUITMENT LTD,01/09/2020,26.32 ,AGENCY STAFF,V001611925
ROCHDALE BOROUGH COUNCIL,01/09/2020,CHILDREN�S SOCIAL CARE,REED SPECIALIST RECRUITMENT LTD,01/09/2020,34.33 ,AGENCY STAFF,V001611925
ROCHDALE BOROUGH COUNCIL,01/09/2020,NEIGHBOURHOODS AND ENVIRONMENT,REED SPECIALIST RECRUITMENT LTD,01/09/2020,1.52 ,AGENCY STAFF,V001611925
ROCHDALE BOROUGH COUNCIL,01/09/2020,NEIGHBOURHOODS AND ENVIRONMENT,REED SPECIALIST RECRUITMENT LTD,01/09/2020,1.52 ,AGENCY STAFF,V001611925
ROCHDALE BOROUGH COUNCIL,01/09/2020,NEIGHBOURHOODS AND ENVIRONMENT,REED SPECIALIST RECRUITMENT LTD,01/09/2020,1.52 ,AGENCY STAFF,V001611925
ROCHDALE BOROUGH COUNCIL,01/09/2020,NEIGHBOURHOODS AND ENVIRONMENT,REED SPECIALIST RECRUITMENT LTD,01/09/2020,1.52 ,AGENCY STAFF,V001611925
ROCHDALE BOROUGH COUNCIL,01/09/2020,NEIGHBOURHOODS AND ENVIRONMENT,REED SPECIALIST RECRUITMENT LTD,01/09/2020,4.53 ,AGENCY STAFF,V001611925
ROCHDALE BOROUGH COUNCIL,01/09/2020,NEIGHBOURHOODS AND ENVIRONMENT,REED SPECIALIST RECRUITMENT LTD,01/09/2020,9.09 ,AGENCY STAFF,V001611925
ROCHDALE BOROUGH COUNCIL,01/09/2020,NEIGHBOURHOODS AND ENVIRONMENT,REED SPECIALIST RECRUITMENT LTD,01/09/2020,3.04 ,AGENCY STAFF,V001611925
ROCHDALE BOROUGH COUNCIL,01/09/2020,NEIGHBOURHOODS AND ENVIRONMENT,REED SPECIALIST RECRUITMENT LTD,01/09/2020,1.52 ,AGENCY STAFF,V001611925
ROCHDALE BOROUGH COUNCIL,01/09/2020,NEIGHBOURHOODS AND ENVIRONMENT,REED SPECIALIST RECRUITMENT LTD,01/09/2020,1.52 ,AGENCY STAFF,V001611925
ROCHDALE BOROUGH COUNCIL,01/09/2020,NEIGHBOURHOODS AND ENVIRONMENT,REED SPECIALIST RECRUITMENT LTD,01/09/2020,1.52 ,AGENCY STAFF,V001611925
ROCHDALE BOROUGH COUNCIL,01/09/2020,NEIGHBOURHOODS AND ENVIRONMENT,REED SPECIALIST RECRUITMENT LTD,01/09/2020,1.52 ,AGENCY STAFF,V001611925
ROCHDALE BOROUGH COUNCIL,01/09/2020,NEIGHBOURHOODS AND ENVIRONMENT,REED SPECIALIST RECRUITMENT LTD,01/09/2020,1.52 ,AGENCY STAFF,V001611925
ROCHDALE BOROUGH COUNCIL,01/09/2020,NEIGHBOURHOODS AND ENVIRONMENT,REED SPECIALIST RECRUITMENT LTD,01/09/2020,6.08 ,AGENCY STAFF,V001611925
ROCHDALE BOROUGH COUNCIL,01/09/2020,NEIGHBOURHOODS AND ENVIRONMENT,REED SPECIALIST RECRUITMENT LTD,01/09/2020,1.52 ,AGENCY STAFF,V001611925
ROCHDALE BOROUGH COUNCIL,01/09/2020,NEIGHBOURHOODS AND ENVIRONMENT,REED SPECIALIST RECRUITMENT LTD,01/09/2020,1.52 ,AGENCY STAFF,V001611925
ROCHDALE BOROUGH COUNCIL,01/09/2020,NEIGHBOURHOODS AND ENVIRONMENT,REED SPECIALIST RECRUITMENT LTD,01/09/2020,6.08 ,AGENCY STAFF,V001611925
ROCHDALE BOROUGH COUNCIL,01/09/2020,NEIGHBOURHOODS AND ENVIRONMENT,REED SPECIALIST RECRUITMENT LTD,01/09/2020,6.08 ,AGENCY STAFF,V001611925
ROCHDALE BOROUGH COUNCIL,01/09/2020,NEIGHBOURHOODS AND ENVIRONMENT,REED SPECIALIST RECRUITMENT LTD,01/09/2020,6.08 ,AGENCY STAFF,V001611925
ROCHDALE BOROUGH COUNCIL,01/09/2020,NEIGHBOURHOODS AND ENVIRONMENT,REED SPECIALIST RECRUITMENT LTD,01/09/2020,6.08 ,AGENCY STAFF,V001611925
ROCHDALE BOROUGH COUNCIL,01/09/2020,NEIGHBOURHOODS AND ENVIRONMENT,REED SPECIALIST RECRUITMENT LTD,01/09/2020,4.56 ,AGENCY STAFF,V001611925
ROCHDALE BOROUGH COUNCIL,01/09/2020,NEIGHBOURHOODS AND ENVIRONMENT,REED SPECIALIST RECRUITMENT LTD,01/09/2020,7.65 ,AGENCY STAFF,V001611925
ROCHDALE BOROUGH COUNCIL,01/09/2020,NEIGHBOURHOODS AND ENVIRONMENT,REED SPECIALIST RECRUITMENT LTD,01/09/2020,7.65 ,AGENCY STAFF,V001611925
ROCHDALE BOROUGH COUNCIL,01/09/2020,NEIGHBOURHOODS AND ENVIRONMENT,REED SPECIALIST RECRUITMENT LTD,01/09/2020,4.58 ,AGENCY STAFF,V001611925
ROCHDALE BOROUGH COUNCIL,01/09/2020,NEIGHBOURHOODS AND ENVIRONMENT,REED SPECIALIST RECRUITMENT LTD,01/09/2020,6.08 ,AGENCY STAFF,V001611925
ROCHDALE BOROUGH COUNCIL,01/09/2020,NEIGHBOURHOODS AND ENVIRONMENT,REED SPECIALIST RECRUITMENT LTD,01/09/2020,6.08 ,AGENCY STAFF,V001611925
ROCHDALE BOROUGH COUNCIL,01/09/2020,NEIGHBOURHOODS AND ENVIRONMENT,REED SPECIALIST RECRUITMENT LTD,01/09/2020,1.52 ,AGENCY STAFF,V001611925
ROCHDALE BOROUGH COUNCIL,01/09/2020,NEIGHBOURHOODS AND ENVIRONMENT,REED SPECIALIST RECRUITMENT LTD,01/09/2020,6.08 ,AGENCY STAFF,V001611925
ROCHDALE BOROUGH COUNCIL,01/09/2020,NEIGHBOURHOODS AND ENVIRONMENT,REED SPECIALIST RECRUITMENT LTD,01/09/2020,6.08 ,AGENCY STAFF,V001611925
ROCHDALE BOROUGH COUNCIL,01/09/2020,NEIGHBOURHOODS AND ENVIRONMENT,REED SPECIALIST RECRUITMENT LTD,01/09/2020,6.08 ,AGENCY STAFF,V001611925
ROCHDALE BOROUGH COUNCIL,01/09/2020,NEIGHBOURHOODS AND ENVIRONMENT,REED SPECIALIST RECRUITMENT LTD,01/09/2020,7.40 ,AGENCY STAFF,V001611925
ROCHDALE BOROUGH COUNCIL,01/09/2020,NEIGHBOURHOODS AND ENVIRONMENT,REED SPECIALIST RECRUITMENT LTD,01/09/2020,6.08 ,AGENCY STAFF,V001611925
ROCHDALE BOROUGH COUNCIL,01/09/2020,NEIGHBOURHOODS AND ENVIRONMENT,REED SPECIALIST RECRUITMENT LTD,01/09/2020,6.08 ,AGENCY STAFF,V001611925
ROCHDALE BOROUGH COUNCIL,01/09/2020,NEIGHBOURHOODS AND ENVIRONMENT,REED SPECIALIST RECRUITMENT LTD,01/09/2020,8.55 ,AGENCY STAFF,V001611925
ROCHDALE BOROUGH COUNCIL,01/09/2020,NEIGHBOURHOODS AND ENVIRONMENT,REED SPECIALIST RECRUITMENT LTD,01/09/2020,7.65 ,AGENCY STAFF,V001611925
ROCHDALE BOROUGH COUNCIL,01/09/2020,NEIGHBOURHOODS AND ENVIRONMENT,REED SPECIALIST RECRUITMENT LTD,01/09/2020,6.56 ,AGENCY STAFF,V001611925
ROCHDALE BOROUGH COUNCIL,01/09/2020,NEIGHBOURHOODS AND ENVIRONMENT,REED SPECIALIST RECRUITMENT LTD,01/09/2020,6.73 ,AGENCY STAFF,V001611925
ROCHDALE BOROUGH COUNCIL,01/09/2020,NEIGHBOURHOODS AND ENVIRONMENT,REED SPECIALIST RECRUITMENT LTD,01/09/2020,6.08 ,AGENCY STAFF,V001611925
ROCHDALE BOROUGH COUNCIL,01/09/2020,NEIGHBOURHOODS AND ENVIRONMENT,REED SPECIALIST RECRUITMENT LTD,01/09/2020,6.08 ,AGENCY STAFF,V001611925
ROCHDALE BOROUGH COUNCIL,01/09/2020,NEIGHBOURHOODS AND ENVIRONMENT,REED SPECIALIST RECRUITMENT LTD,01/09/2020,6.40 ,AGENCY STAFF,V001611925
ROCHDALE BOROUGH COUNCIL,01/09/2020,NEIGHBOURHOODS AND ENVIRONMENT,REED SPECIALIST RECRUITMENT LTD,01/09/2020,6.08 ,AGENCY STAFF,V001611925
ROCHDALE BOROUGH COUNCIL,01/09/2020,NEIGHBOURHOODS AND ENVIRONMENT,REED SPECIALIST RECRUITMENT LTD,01/09/2020,6.08 ,AGENCY STAFF,V001611925
ROCHDALE BOROUGH COUNCIL,01/09/2020,NEIGHBOURHOODS AND ENVIRONMENT,REED SPECIALIST RECRUITMENT LTD,01/09/2020,8.38 ,AGENCY STAFF,V001611925
ROCHDALE BOROUGH COUNCIL,01/09/2020,NEIGHBOURHOODS AND ENVIRONMENT,REED SPECIALIST RECRUITMENT LTD,01/09/2020,6.40 ,AGENCY STAFF,V001611925
ROCHDALE BOROUGH COUNCIL,01/09/2020,NEIGHBOURHOODS AND ENVIRONMENT,REED SPECIALIST RECRUITMENT LTD,01/09/2020,6.08 ,AGENCY STAFF,V001611925
ROCHDALE BOROUGH COUNCIL,01/09/2020,NEIGHBOURHOODS AND ENVIRONMENT,REED SPECIALIST RECRUITMENT LTD,01/09/2020,6.40 ,AGENCY STAFF,V001611925
ROCHDALE BOROUGH COUNCIL,01/09/2020,NEIGHBOURHOODS AND ENVIRONMENT,REED SPECIALIST RECRUITMENT LTD,01/09/2020,6.08 ,AGENCY STAFF,V001611925
ROCHDALE BOROUGH COUNCIL,01/09/2020,NEIGHBOURHOODS AND ENVIRONMENT,REED SPECIALIST RECRUITMENT LTD,01/09/2020,6.08 ,AGENCY STAFF,V001611925
ROCHDALE BOROUGH COUNCIL,01/09/2020,NEIGHBOURHOODS AND ENVIRONMENT,REED SPECIALIST RECRUITMENT LTD,01/09/2020,6.40 ,AGENCY STAFF,V001611925
ROCHDALE BOROUGH COUNCIL,01/09/2020,NEIGHBOURHOODS AND ENVIRONMENT,REED SPECIALIST RECRUITMENT LTD,01/09/2020,6.08 ,AGENCY STAFF,V001611925
ROCHDALE BOROUGH COUNCIL,01/09/2020,NEIGHBOURHOODS AND ENVIRONMENT,REED SPECIALIST RECRUITMENT LTD,01/09/2020,6.08 ,AGENCY STAFF,V001611925
ROCHDALE BOROUGH COUNCIL,01/09/2020,NEIGHBOURHOODS AND ENVIRONMENT,REED SPECIALIST RECRUITMENT LTD,01/09/2020,6.40 ,AGENCY STAFF,V001611925
ROCHDALE BOROUGH COUNCIL,01/09/2020,NEIGHBOURHOODS AND ENVIRONMENT,REED SPECIALIST RECRUITMENT LTD,01/09/2020,6.08 ,AGENCY STAFF,V001611925
ROCHDALE BOROUGH COUNCIL,01/09/2020,NEIGHBOURHOODS AND ENVIRONMENT,REED SPECIALIST RECRUITMENT LTD,01/09/2020,6.08 ,AGENCY STAFF,V001611925
ROCHDALE BOROUGH COUNCIL,01/09/2020,NEIGHBOURHOODS AND ENVIRONMENT,REED SPECIALIST RECRUITMENT LTD,01/09/2020,6.40 ,AGENCY STAFF,V001611925
ROCHDALE BOROUGH COUNCIL,01/09/2020,NEIGHBOURHOODS AND ENVIRONMENT,REED SPECIALIST RECRUITMENT LTD,01/09/2020,6.08 ,AGENCY STAFF,V001611925
ROCHDALE BOROUGH COUNCIL,01/09/2020,NEIGHBOURHOODS AND ENVIRONMENT,REED SPECIALIST RECRUITMENT LTD,01/09/2020,6.08 ,AGENCY STAFF,V001611925
ROCHDALE BOROUGH COUNCIL,01/09/2020,NEIGHBOURHOODS AND ENVIRONMENT,REED SPECIALIST RECRUITMENT LTD,01/09/2020,6.40 ,AGENCY STAFF,V001611925
ROCHDALE BOROUGH COUNCIL,01/09/2020,NEIGHBOURHOODS AND ENVIRONMENT,REED SPECIALIST RECRUITMENT LTD,01/09/2020,6.08 ,AGENCY STAFF,V001611925
ROCHDALE BOROUGH COUNCIL,01/09/2020,NEIGHBOURHOODS AND ENVIRONMENT,REED SPECIALIST RECRUITMENT LTD,01/09/2020,6.08 ,AGENCY STAFF,V001611925
ROCHDALE BOROUGH COUNCIL,01/09/2020,NEIGHBOURHOODS AND ENVIRONMENT,REED SPECIALIST RECRUITMENT LTD,01/09/2020,6.40 ,AGENCY STAFF,V001611925
ROCHDALE BOROUGH COUNCIL,01/09/2020,NEIGHBOURHOODS AND ENVIRONMENT,REED SPECIALIST RECRUITMENT LTD,01/09/2020,6.08 ,AGENCY STAFF,V001611925
ROCHDALE BOROUGH COUNCIL,01/09/2020,NEIGHBOURHOODS AND ENVIRONMENT,REED SPECIALIST RECRUITMENT LTD,01/09/2020,6.08 ,AGENCY STAFF,V001611925
ROCHDALE BOROUGH COUNCIL,01/09/2020,NEIGHBOURHOODS AND ENVIRONMENT,REED SPECIALIST RECRUITMENT LTD,01/09/2020,6.40 ,AGENCY STAFF,V001611925
ROCHDALE BOROUGH COUNCIL,01/09/2020,NEIGHBOURHOODS AND ENVIRONMENT,REED SPECIALIST RECRUITMENT LTD,01/09/2020,6.08 ,AGENCY STAFF,V001611925
ROCHDALE BOROUGH COUNCIL,01/09/2020,NEIGHBOURHOODS AND ENVIRONMENT,REED SPECIALIST RECRUITMENT LTD,01/09/2020,6.08 ,AGENCY STAFF,V001611925
ROCHDALE BOROUGH COUNCIL,01/09/2020,NEIGHBOURHOODS AND ENVIRONMENT,REED SPECIALIST RECRUITMENT LTD,01/09/2020,6.40 ,AGENCY STAFF,V001611925
ROCHDALE BOROUGH COUNCIL,01/09/2020,NEIGHBOURHOODS AND ENVIRONMENT,REED SPECIALIST RECRUITMENT LTD,01/09/2020,6.08 ,AGENCY STAFF,V001611925
ROCHDALE BOROUGH COUNCIL,01/09/2020,NEIGHBOURHOODS AND ENVIRONMENT,REED SPECIALIST RECRUITMENT LTD,01/09/2020,6.08 ,AGENCY STAFF,V001611925
ROCHDALE BOROUGH COUNCIL,01/09/2020,ADULT CARE LCO FUNCTIONS,REED SPECIALIST RECRUITMENT LTD,01/09/2020,304.55 ,AGENCY STAFF,V001611925
ROCHDALE BOROUGH COUNCIL,01/09/2020,NEIGHBOURHOODS AND ENVIRONMENT,REED SPECIALIST RECRUITMENT LTD,01/09/2020,762.31 ,AGENCY STAFF,V001611925
ROCHDALE BOROUGH COUNCIL,01/09/2020,CHILDREN�S SOCIAL CARE,REED SPECIALIST RECRUITMENT LTD,01/09/2020,509.27 ,AGENCY STAFF,V001611925
ROCHDALE BOROUGH COUNCIL,01/09/2020,RESOURCES,REED SPECIALIST RECRUITMENT LTD,01/09/2020,1445.27 ,AGENCY STAFF,V001611925
ROCHDALE BOROUGH COUNCIL,01/09/2020,NEIGHBOURHOODS AND ENVIRONMENT,REED SPECIALIST RECRUITMENT LTD,01/09/2020,511.56 ,AGENCY STAFF,V001611925
ROCHDALE BOROUGH COUNCIL,01/09/2020,NEIGHBOURHOODS AND ENVIRONMENT,REED SPECIALIST RECRUITMENT LTD,01/09/2020,511.56 ,AGENCY STAFF,V001611925
ROCHDALE BOROUGH COUNCIL,01/09/2020,NEIGHBOURHOODS AND ENVIRONMENT,REED SPECIALIST RECRUITMENT LTD,01/09/2020,651.88 ,AGENCY STAFF,V001611925
ROCHDALE BOROUGH COUNCIL,01/09/2020,NEIGHBOURHOODS AND ENVIRONMENT,REED SPECIALIST RECRUITMENT LTD,01/09/2020,518.48 ,AGENCY STAFF,V001611925
ROCHDALE BOROUGH COUNCIL,01/09/2020,CHILDREN�S SOCIAL CARE,REED SPECIALIST RECRUITMENT LTD,01/09/2020,603.40 ,AGENCY STAFF,V001611925
ROCHDALE BOROUGH COUNCIL,01/09/2020,CHILDREN�S SOCIAL CARE,REED SPECIALIST RECRUITMENT LTD,01/09/2020,372.92 ,AGENCY STAFF,V001611925
ROCHDALE BOROUGH COUNCIL,01/09/2020,NEIGHBOURHOODS AND ENVIRONMENT,REED SPECIALIST RECRUITMENT LTD,01/09/2020,1190.35 ,AGENCY STAFF,V001611925
ROCHDALE BOROUGH COUNCIL,01/09/2020,NEIGHBOURHOODS AND ENVIRONMENT,REED SPECIALIST RECRUITMENT LTD,01/09/2020,762.31 ,AGENCY STAFF,V001611925
ROCHDALE BOROUGH COUNCIL,01/09/2020,ADULT CARE LCO FUNCTIONS,REED SPECIALIST RECRUITMENT LTD,01/09/2020,739.30 ,CAPITAL - STAFFING AGENCY PAYMENTS,V001611925
ROCHDALE BOROUGH COUNCIL,01/09/2020,ADULT CARE LCO FUNCTIONS,REED SPECIALIST RECRUITMENT LTD,01/09/2020,179.65 ,AGENCY STAFF,V001611925
ROCHDALE BOROUGH COUNCIL,01/09/2020,NEIGHBOURHOODS AND ENVIRONMENT,REED SPECIALIST RECRUITMENT LTD,01/09/2020,525.05 ,AGENCY STAFF,V001611925
ROCHDALE BOROUGH COUNCIL,01/09/2020,NEIGHBOURHOODS AND ENVIRONMENT,REED SPECIALIST RECRUITMENT LTD,01/09/2020,525.05 ,AGENCY STAFF,V001611925
ROCHDALE BOROUGH COUNCIL,01/09/2020,ADULT CARE LCO FUNCTIONS,REED SPECIALIST RECRUITMENT LTD,01/09/2020,423.23 ,AGENCY STAFF,V001611925
ROCHDALE BOROUGH COUNCIL,01/09/2020,NEIGHBOURHOODS AND ENVIRONMENT,REED SPECIALIST RECRUITMENT LTD,01/09/2020,484.14 ,AGENCY STAFF,V001611925
ROCHDALE BOROUGH COUNCIL,01/09/2020,NEIGHBOURHOODS AND ENVIRONMENT,REED SPECIALIST RECRUITMENT LTD,01/09/2020,484.14 ,AGENCY STAFF,V001611925
ROCHDALE BOROUGH COUNCIL,01/09/2020,NEIGHBOURHOODS AND ENVIRONMENT,REED SPECIALIST RECRUITMENT LTD,01/09/2020,176.45 ,AGENCY STAFF,V001611925
ROCHDALE BOROUGH COUNCIL,01/09/2020,CHILDREN�S SOCIAL CARE,REED SPECIALIST RECRUITMENT LTD,01/09/2020,1276.80 ,AGENCY STAFF,V001611925
ROCHDALE BOROUGH COUNCIL,01/09/2020,RESOURCES,REED SPECIALIST RECRUITMENT LTD,01/09/2020,497.13 ,AGENCY STAFF,V001611925
ROCHDALE BOROUGH COUNCIL,01/09/2020,ADULT CARE LCO FUNCTIONS,REED SPECIALIST RECRUITMENT LTD,01/09/2020,569.93 ,AGENCY STAFF,V001611925
ROCHDALE BOROUGH COUNCIL,01/09/2020,NEIGHBOURHOODS AND ENVIRONMENT,REED SPECIALIST RECRUITMENT LTD,01/09/2020,478.06 ,AGENCY STAFF,V001611925
ROCHDALE BOROUGH COUNCIL,01/09/2020,NEIGHBOURHOODS AND ENVIRONMENT,REED SPECIALIST RECRUITMENT LTD,01/09/2020,327.11 ,AGENCY STAFF,V001611925
ROCHDALE BOROUGH COUNCIL,01/09/2020,NEIGHBOURHOODS AND ENVIRONMENT,REED SPECIALIST RECRUITMENT LTD,01/09/2020,431.79 ,AGENCY STAFF,V001611925
ROCHDALE BOROUGH COUNCIL,01/09/2020,NEIGHBOURHOODS AND ENVIRONMENT,REED SPECIALIST RECRUITMENT LTD,01/09/2020,583.42 ,AGENCY STAFF,V001611925
ROCHDALE BOROUGH COUNCIL,01/09/2020,NEIGHBOURHOODS AND ENVIRONMENT,REED SPECIALIST RECRUITMENT LTD,01/09/2020,450.94 ,AGENCY STAFF,V001611925
ROCHDALE BOROUGH COUNCIL,01/09/2020,NEIGHBOURHOODS AND ENVIRONMENT,REED SPECIALIST RECRUITMENT LTD,01/09/2020,418.72 ,AGENCY STAFF,V001611925
ROCHDALE BOROUGH COUNCIL,01/09/2020,CHILDREN�S SOCIAL CARE,REED SPECIALIST RECRUITMENT LTD,01/09/2020,1202.80 ,AGENCY STAFF,V001611925
ROCHDALE BOROUGH COUNCIL,01/09/2020,CHILDREN�S SOCIAL CARE,REED SPECIALIST RECRUITMENT LTD,01/09/2020,1276.80 ,AGENCY STAFF,V001611925
ROCHDALE BOROUGH COUNCIL,01/09/2020,NEIGHBOURHOODS AND ENVIRONMENT,REED SPECIALIST RECRUITMENT LTD,01/09/2020,590.63 ,AGENCY STAFF,V001611925
ROCHDALE BOROUGH COUNCIL,01/09/2020,NEIGHBOURHOODS AND ENVIRONMENT,REED SPECIALIST RECRUITMENT LTD,01/09/2020,478.06 ,AGENCY STAFF,V001611925
ROCHDALE BOROUGH COUNCIL,01/09/2020,CHILDREN�S SOCIAL CARE,REED SPECIALIST RECRUITMENT LTD,01/09/2020,1202.80 ,AGENCY STAFF,V001611925
ROCHDALE BOROUGH COUNCIL,01/09/2020,ADULT CARE LCO FUNCTIONS,REED SPECIALIST RECRUITMENT LTD,01/09/2020,1018.54 ,AGENCY STAFF,V001611925
ROCHDALE BOROUGH COUNCIL,01/09/2020,NEIGHBOURHOODS AND ENVIRONMENT,REED SPECIALIST RECRUITMENT LTD,01/09/2020,478.06 ,AGENCY STAFF,V001611925
ROCHDALE BOROUGH COUNCIL,01/09/2020,RESOURCES,REED SPECIALIST RECRUITMENT LTD,01/09/2020,543.31 ,AGENCY STAFF,V001611925
ROCHDALE BOROUGH COUNCIL,01/09/2020,NEIGHBOURHOODS AND ENVIRONMENT,REED SPECIALIST RECRUITMENT LTD,01/09/2020,503.90 ,AGENCY STAFF,V001611925
ROCHDALE BOROUGH COUNCIL,01/09/2020,NEIGHBOURHOODS AND ENVIRONMENT,REED SPECIALIST RECRUITMENT LTD,01/09/2020,478.43 ,AGENCY STAFF,V001611925
ROCHDALE BOROUGH COUNCIL,01/09/2020,CHILDREN�S SOCIAL CARE,REED SPECIALIST RECRUITMENT LTD,01/09/2020,1018.54 ,AGENCY STAFF,V001611925
ROCHDALE BOROUGH COUNCIL,01/09/2020,CHILDREN�S SOCIAL CARE,REED SPECIALIST RECRUITMENT LTD,01/09/2020,1646.80 ,AGENCY STAFF,V001611925
ROCHDALE BOROUGH COUNCIL,01/09/2020,CHILDREN�S SOCIAL CARE,REED SPECIALIST RECRUITMENT LTD,01/09/2020,1387.80 ,AGENCY STAFF,V001611925
ROCHDALE BOROUGH COUNCIL,01/09/2020,CHILDREN�S SOCIAL CARE,REED SPECIALIST RECRUITMENT LTD,01/09/2020,1219.05 ,AGENCY STAFF,V001611925
ROCHDALE BOROUGH COUNCIL,01/09/2020,CHILDREN�S SOCIAL CARE,REED SPECIALIST RECRUITMENT LTD,01/09/2020,1202.80 ,AGENCY STAFF,V001611925
ROCHDALE BOROUGH COUNCIL,01/09/2020,CHILDREN�S SOCIAL CARE,REED SPECIALIST RECRUITMENT LTD,01/09/2020,1202.80 ,AGENCY STAFF,V001611925
ROCHDALE BOROUGH COUNCIL,01/09/2020,CHILDREN�S SOCIAL CARE,REED SPECIALIST RECRUITMENT LTD,01/09/2020,1027.29 ,AGENCY STAFF,V001611925
ROCHDALE BOROUGH COUNCIL,01/09/2020,CHILDREN�S SOCIAL CARE,REED SPECIALIST RECRUITMENT LTD,01/09/2020,1018.54 ,AGENCY STAFF,V001611925
ROCHDALE BOROUGH COUNCIL,01/09/2020,CHILDREN�S SOCIAL CARE,REED SPECIALIST RECRUITMENT LTD,01/09/2020,958.99 ,AGENCY STAFF,V001611925
ROCHDALE BOROUGH COUNCIL,01/09/2020,EARLY HELP AND SCHOOLS,REED SPECIALIST RECRUITMENT LTD,01/09/2020,975.24 ,AGENCY STAFF,V001611925
ROCHDALE BOROUGH COUNCIL,01/09/2020,PROPERTY AND HIGHWAYS,REED SPECIALIST RECRUITMENT LTD,01/09/2020,930.21 ,AGENCY STAFF,V001611925
ROCHDALE BOROUGH COUNCIL,01/09/2020,PROPERTY AND HIGHWAYS,REED SPECIALIST RECRUITMENT LTD,01/09/2020,156.86 ,AGENCY STAFF,V001611925
ROCHDALE BOROUGH COUNCIL,01/09/2020,PROPERTY AND HIGHWAYS,REED SPECIALIST RECRUITMENT LTD,01/09/2020,468.00 ,AGENCY STAFF,V001611925
ROCHDALE BOROUGH COUNCIL,01/09/2020,CHILDREN�S SOCIAL CARE,REED SPECIALIST RECRUITMENT LTD,01/09/2020,975.24 ,AGENCY STAFF,V001611925
ROCHDALE BOROUGH COUNCIL,01/09/2020,PROPERTY AND HIGHWAYS,REED SPECIALIST RECRUITMENT LTD,01/09/2020,704.87 ,AGENCY STAFF,V001611925
ROCHDALE BOROUGH COUNCIL,01/09/2020,NEIGHBOURHOODS AND ENVIRONMENT,REED SPECIALIST RECRUITMENT LTD,01/09/2020,1124.63 ,AGENCY STAFF,V001611925
ROCHDALE BOROUGH COUNCIL,01/09/2020,NEIGHBOURHOODS AND ENVIRONMENT,REED SPECIALIST RECRUITMENT LTD,01/09/2020,478.06 ,AGENCY STAFF,V001611925
ROCHDALE BOROUGH COUNCIL,01/09/2020,NEIGHBOURHOODS AND ENVIRONMENT,REED SPECIALIST RECRUITMENT LTD,01/09/2020,503.90 ,AGENCY STAFF,V001611925
ROCHDALE BOROUGH COUNCIL,01/09/2020,RESOURCES,REED SPECIALIST RECRUITMENT LTD,01/09/2020,1057.03 ,AGENCY STAFF,V001611925
ROCHDALE BOROUGH COUNCIL,01/09/2020,NEIGHBOURHOODS AND ENVIRONMENT,REED SPECIALIST RECRUITMENT LTD,01/09/2020,573.67 ,AGENCY STAFF,V001611925
ROCHDALE BOROUGH COUNCIL,01/09/2020,NEIGHBOURHOODS AND ENVIRONMENT,REED SPECIALIST RECRUITMENT LTD,01/09/2020,291.71 ,AGENCY STAFF,V001611925
ROCHDALE BOROUGH COUNCIL,01/09/2020,NEIGHBOURHOODS AND ENVIRONMENT,REED SPECIALIST RECRUITMENT LTD,01/09/2020,518.96 ,AGENCY STAFF,V001611925
ROCHDALE BOROUGH COUNCIL,01/09/2020,NEIGHBOURHOODS AND ENVIRONMENT,REED SPECIALIST RECRUITMENT LTD,01/09/2020,503.90 ,AGENCY STAFF,V001611925
ROCHDALE BOROUGH COUNCIL,01/09/2020,NEIGHBOURHOODS AND ENVIRONMENT,REED SPECIALIST RECRUITMENT LTD,01/09/2020,478.06 ,AGENCY STAFF,V001611925
ROCHDALE BOROUGH COUNCIL,01/09/2020,NEIGHBOURHOODS AND ENVIRONMENT,REED SPECIALIST RECRUITMENT LTD,01/09/2020,503.90 ,AGENCY STAFF,V001611925
ROCHDALE BOROUGH COUNCIL,01/09/2020,NEIGHBOURHOODS AND ENVIRONMENT,REED SPECIALIST RECRUITMENT LTD,01/09/2020,478.06 ,AGENCY STAFF,V001611925
ROCHDALE BOROUGH COUNCIL,01/09/2020,NEIGHBOURHOODS AND ENVIRONMENT,REED SPECIALIST RECRUITMENT LTD,01/09/2020,478.06 ,AGENCY STAFF,V001611925
ROCHDALE BOROUGH COUNCIL,01/09/2020,NEIGHBOURHOODS AND ENVIRONMENT,REED SPECIALIST RECRUITMENT LTD,01/09/2020,484.14 ,AGENCY STAFF,V001611925
ROCHDALE BOROUGH COUNCIL,01/09/2020,NEIGHBOURHOODS AND ENVIRONMENT,REED SPECIALIST RECRUITMENT LTD,01/09/2020,510.30 ,AGENCY STAFF,V001611925
ROCHDALE BOROUGH COUNCIL,01/09/2020,CHILDREN�S SOCIAL CARE,REED SPECIALIST RECRUITMENT LTD,01/09/2020,1040.26 ,AGENCY STAFF,V001611925
ROCHDALE BOROUGH COUNCIL,01/09/2020,NEIGHBOURHOODS AND ENVIRONMENT,REED SPECIALIST RECRUITMENT LTD,01/09/2020,503.90 ,AGENCY STAFF,V001611925
ROCHDALE BOROUGH COUNCIL,01/09/2020,NEIGHBOURHOODS AND ENVIRONMENT,REED SPECIALIST RECRUITMENT LTD,01/09/2020,397.33 ,AGENCY STAFF,V001611925
ROCHDALE BOROUGH COUNCIL,01/09/2020,NEIGHBOURHOODS AND ENVIRONMENT,REED SPECIALIST RECRUITMENT LTD,01/09/2020,497.44 ,AGENCY STAFF,V001611925
ROCHDALE BOROUGH COUNCIL,01/09/2020,ADULT CARE LCO FUNCTIONS,REED SPECIALIST RECRUITMENT LTD,01/09/2020,1018.54 ,AGENCY STAFF,V001611925
ROCHDALE BOROUGH COUNCIL,01/09/2020,NEIGHBOURHOODS AND ENVIRONMENT,REED SPECIALIST RECRUITMENT LTD,01/09/2020,583.42 ,AGENCY STAFF,V001611925
ROCHDALE BOROUGH COUNCIL,01/09/2020,NEIGHBOURHOODS AND ENVIRONMENT,REED SPECIALIST RECRUITMENT LTD,01/09/2020,484.14 ,AGENCY STAFF,V001611925
ROCHDALE BOROUGH COUNCIL,01/09/2020,NEIGHBOURHOODS AND ENVIRONMENT,REED SPECIALIST RECRUITMENT LTD,01/09/2020,484.14 ,AGENCY STAFF,V001611925
ROCHDALE BOROUGH COUNCIL,01/09/2020,NEIGHBOURHOODS AND ENVIRONMENT,REED SPECIALIST RECRUITMENT LTD,01/09/2020,478.06 ,AGENCY STAFF,V001611925
ROCHDALE BOROUGH COUNCIL,01/09/2020,NEIGHBOURHOODS AND ENVIRONMENT,REED SPECIALIST RECRUITMENT LTD,01/09/2020,706.58 ,AGENCY STAFF,V001611925
ROCHDALE BOROUGH COUNCIL,01/09/2020,NEIGHBOURHOODS AND ENVIRONMENT,REED SPECIALIST RECRUITMENT LTD,01/09/2020,484.14 ,AGENCY STAFF,V001611925
ROCHDALE BOROUGH COUNCIL,01/09/2020,NEIGHBOURHOODS AND ENVIRONMENT,REED SPECIALIST RECRUITMENT LTD,01/09/2020,389.28 ,AGENCY STAFF,V001611925
ROCHDALE BOROUGH COUNCIL,01/09/2020,NEIGHBOURHOODS AND ENVIRONMENT,REED SPECIALIST RECRUITMENT LTD,01/09/2020,478.06 ,AGENCY STAFF,V001611925
ROCHDALE BOROUGH COUNCIL,01/09/2020,NEIGHBOURHOODS AND ENVIRONMENT,REED SPECIALIST RECRUITMENT LTD,01/09/2020,525.05 ,AGENCY STAFF,V001611925
ROCHDALE BOROUGH COUNCIL,01/09/2020,NEIGHBOURHOODS AND ENVIRONMENT,REED SPECIALIST RECRUITMENT LTD,01/09/2020,484.14 ,AGENCY STAFF,V001611925
ROCHDALE BOROUGH COUNCIL,01/09/2020,NEIGHBOURHOODS AND ENVIRONMENT,REED SPECIALIST RECRUITMENT LTD,01/09/2020,590.63 ,AGENCY STAFF,V001611925
ROCHDALE BOROUGH COUNCIL,01/09/2020,NEIGHBOURHOODS AND ENVIRONMENT,REED SPECIALIST RECRUITMENT LTD,01/09/2020,478.06 ,AGENCY STAFF,V001611925
ROCHDALE BOROUGH COUNCIL,01/09/2020,NEIGHBOURHOODS AND ENVIRONMENT,REED SPECIALIST RECRUITMENT LTD,01/09/2020,525.05 ,AGENCY STAFF,V001611925
ROCHDALE BOROUGH COUNCIL,01/09/2020,NEIGHBOURHOODS AND ENVIRONMENT,REED SPECIALIST RECRUITMENT LTD,01/09/2020,581.81 ,AGENCY STAFF,V001611925
ROCHDALE BOROUGH COUNCIL,01/09/2020,NEIGHBOURHOODS AND ENVIRONMENT,REED SPECIALIST RECRUITMENT LTD,01/09/2020,327.11 ,AGENCY STAFF,V001611925
ROCHDALE BOROUGH COUNCIL,01/09/2020,NEIGHBOURHOODS AND ENVIRONMENT,REED SPECIALIST RECRUITMENT LTD,01/09/2020,484.14 ,AGENCY STAFF,V001611925
ROCHDALE BOROUGH COUNCIL,01/09/2020,NEIGHBOURHOODS AND ENVIRONMENT,REED SPECIALIST RECRUITMENT LTD,01/09/2020,583.42 ,AGENCY STAFF,V001611925
ROCHDALE BOROUGH COUNCIL,01/09/2020,NEIGHBOURHOODS AND ENVIRONMENT,REED SPECIALIST RECRUITMENT LTD,01/09/2020,484.14 ,AGENCY STAFF,V001611925
ROCHDALE BOROUGH COUNCIL,01/09/2020,NEIGHBOURHOODS AND ENVIRONMENT,REED SPECIALIST RECRUITMENT LTD,01/09/2020,291.71 ,AGENCY STAFF,V001611925
ROCHDALE BOROUGH COUNCIL,01/09/2020,CHILDREN�S SOCIAL CARE,REED SPECIALIST RECRUITMENT LTD,01/09/2020,683.53 ,AGENCY STAFF,V001611925
ROCHDALE BOROUGH COUNCIL,01/09/2020,PROPERTY AND HIGHWAYS,REED SPECIALIST RECRUITMENT LTD,01/09/2020,855.10 ,AGENCY STAFF,V001611925
ROCHDALE BOROUGH COUNCIL,01/09/2020,ADULT CARE LCO FUNCTIONS,REED SPECIALIST RECRUITMENT LTD,01/09/2020,1017.80 ,AGENCY STAFF,V001611925
ROCHDALE BOROUGH COUNCIL,01/09/2020,ADULT CARE LCO FUNCTIONS,REED SPECIALIST RECRUITMENT LTD,01/09/2020,484.51 ,AGENCY STAFF,V001611925
ROCHDALE BOROUGH COUNCIL,18/09/2020,PROPERTY AND HIGHWAYS,WHEELDON BROTHERS WASTE LIMITED,18/09/2020,201.26 ,TIPPING CHARGES,V001611926
ROCHDALE BOROUGH COUNCIL,18/09/2020,PROPERTY AND HIGHWAYS,WHEELDON BROTHERS WASTE LIMITED,18/09/2020,201.26 ,TIPPING CHARGES,V001611926
ROCHDALE BOROUGH COUNCIL,02/09/2020,RESOURCES,PS&P  LTD,02/09/2020,2.50 ,BAILIFFS,V001611928
ROCHDALE BOROUGH COUNCIL,16/09/2020,NEIGHBOURHOODS AND ENVIRONMENT,EVERYTHING EVERYWHERE LIMITED,16/09/2020,7204.41 ,TRANSACTIONS-EXPENDITURE,V001611933
ROCHDALE BOROUGH COUNCIL,07/09/2020,CHILDREN�S SOCIAL CARE,KEY2 MOVINGON,07/09/2020,9285.00 ,YOUNG PEOPLES RENTS,V001611936
ROCHDALE BOROUGH COUNCIL,02/09/2020,ECONOMY DIRECTORATE,REDACTED - PERSONAL DATA,02/09/2020,895.00 ,PLANNING APPLICATION FEES,V001611945
ROCHDALE BOROUGH COUNCIL,02/09/2020,NEIGHBOURHOODS AND ENVIRONMENT,SPECIAL BRANCH TREE SURGEONS LTD,02/09/2020,625.00 ,CONTRACTS,V001611947
ROCHDALE BOROUGH COUNCIL,02/09/2020,PROPERTY AND HIGHWAYS,ARCO GROUP LIMITED,02/09/2020,191.70 ,"CLOTHES, UNIFORM AND LAUNDRY",V001611948
ROCHDALE BOROUGH COUNCIL,02/09/2020,PROPERTY AND HIGHWAYS,ARCO GROUP LIMITED,02/09/2020,191.70 ,"CLOTHES, UNIFORM AND LAUNDRY",V001611948
ROCHDALE BOROUGH COUNCIL,02/09/2020,PROPERTY AND HIGHWAYS,ARCO GROUP LIMITED,02/09/2020,191.70 ,"CLOTHES, UNIFORM AND LAUNDRY",V001611948
ROCHDALE BOROUGH COUNCIL,02/09/2020,EARLY HELP AND SCHOOLS,BEVAN CARE LTD,02/09/2020,455.00 ,HOME CARE - CHILDRENS SERVICES,V001611949
ROCHDALE BOROUGH COUNCIL,02/09/2020,COMMISSIONING AND STATUTORY,REDACTED - PERSONAL DATA,02/09/2020,173.37 ,EXPENSES - GENERAL,V001611950
ROCHDALE BOROUGH COUNCIL,02/09/2020,CHILDREN�S SOCIAL CARE,REED SPECIALIST RECRUITMENT LTD,02/09/2020,18.80 ,AGENCY STAFF,V001611951
ROCHDALE BOROUGH COUNCIL,02/09/2020,ADULT CARE LCO FUNCTIONS,REED SPECIALIST RECRUITMENT LTD,02/09/2020,67.04 ,CAPITAL - STAFFING AGENCY PAYMENTS,V001611951
ROCHDALE BOROUGH COUNCIL,02/09/2020,NEIGHBOURHOODS AND ENVIRONMENT,REED SPECIALIST RECRUITMENT LTD,02/09/2020,89.60 ,AGENCY STAFF,V001611951
ROCHDALE BOROUGH COUNCIL,02/09/2020,CHILDREN�S SOCIAL CARE,REED SPECIALIST RECRUITMENT LTD,02/09/2020,59.20 ,AGENCY STAFF,V001611951
ROCHDALE BOROUGH COUNCIL,02/09/2020,CHILDREN�S SOCIAL CARE,REED SPECIALIST RECRUITMENT LTD,02/09/2020,3.12 ,AGENCY STAFF,V001611951
ROCHDALE BOROUGH COUNCIL,02/09/2020,CHILDREN�S SOCIAL CARE,REED SPECIALIST RECRUITMENT LTD,02/09/2020,4.68 ,AGENCY STAFF,V001611951
ROCHDALE BOROUGH COUNCIL,02/09/2020,CHILDREN�S SOCIAL CARE,REED SPECIALIST RECRUITMENT LTD,02/09/2020,11.20 ,AGENCY STAFF,V001611951
ROCHDALE BOROUGH COUNCIL,02/09/2020,CHILDREN�S SOCIAL CARE,REED SPECIALIST RECRUITMENT LTD,02/09/2020,11.60 ,AGENCY STAFF,V001611951
ROCHDALE BOROUGH COUNCIL,02/09/2020,CHILDREN�S SOCIAL CARE,REED SPECIALIST RECRUITMENT LTD,02/09/2020,21.60 ,AGENCY STAFF,V001611951
ROCHDALE BOROUGH COUNCIL,02/09/2020,ADULT CARE LCO FUNCTIONS,REED SPECIALIST RECRUITMENT LTD,02/09/2020,26.00 ,AGENCY STAFF,V001611951
ROCHDALE BOROUGH COUNCIL,02/09/2020,ADULT CARE LCO FUNCTIONS,REED SPECIALIST RECRUITMENT LTD,02/09/2020,7.60 ,AGENCY STAFF,V001611951
ROCHDALE BOROUGH COUNCIL,02/09/2020,ADULT CARE LCO FUNCTIONS,REED SPECIALIST RECRUITMENT LTD,02/09/2020,7.20 ,AGENCY STAFF,V001611951
ROCHDALE BOROUGH COUNCIL,02/09/2020,EARLY HELP AND SCHOOLS,REED SPECIALIST RECRUITMENT LTD,02/09/2020,660.67 ,AGENCY STAFF,V001611951
ROCHDALE BOROUGH COUNCIL,02/09/2020,NEIGHBOURHOODS AND ENVIRONMENT,REED SPECIALIST RECRUITMENT LTD,02/09/2020,518.48 ,AGENCY STAFF,V001611951
ROCHDALE BOROUGH COUNCIL,02/09/2020,PROPERTY AND HIGHWAYS,REED SPECIALIST RECRUITMENT LTD,02/09/2020,626.81 ,AGENCY STAFF,V001611951
ROCHDALE BOROUGH COUNCIL,02/09/2020,NEIGHBOURHOODS AND ENVIRONMENT,REED SPECIALIST RECRUITMENT LTD,02/09/2020,511.56 ,AGENCY STAFF,V001611951
ROCHDALE BOROUGH COUNCIL,02/09/2020,CHILDREN�S SOCIAL CARE,REED SPECIALIST RECRUITMENT LTD,02/09/2020,1202.80 ,AGENCY STAFF,V001611951
ROCHDALE BOROUGH COUNCIL,02/09/2020,ADULT CARE LCO FUNCTIONS,REED SPECIALIST RECRUITMENT LTD,02/09/2020,1018.54 ,AGENCY STAFF,V001611951
ROCHDALE BOROUGH COUNCIL,02/09/2020,NEIGHBOURHOODS AND ENVIRONMENT,REED SPECIALIST RECRUITMENT LTD,02/09/2020,651.88 ,AGENCY STAFF,V001611951
ROCHDALE BOROUGH COUNCIL,02/09/2020,NEIGHBOURHOODS AND ENVIRONMENT,REED SPECIALIST RECRUITMENT LTD,02/09/2020,1012.96 ,AGENCY STAFF,V001611951
ROCHDALE BOROUGH COUNCIL,02/09/2020,NEIGHBOURHOODS AND ENVIRONMENT,REED SPECIALIST RECRUITMENT LTD,02/09/2020,1205.81 ,AGENCY STAFF,V001611951
ROCHDALE BOROUGH COUNCIL,02/09/2020,NEIGHBOURHOODS AND ENVIRONMENT,REED SPECIALIST RECRUITMENT LTD,02/09/2020,762.31 ,AGENCY STAFF,V001611951
ROCHDALE BOROUGH COUNCIL,02/09/2020,ADULT CARE LCO FUNCTIONS,REED SPECIALIST RECRUITMENT LTD,02/09/2020,739.30 ,CAPITAL - STAFFING AGENCY PAYMENTS,V001611951
ROCHDALE BOROUGH COUNCIL,02/09/2020,ADULT CARE LCO FUNCTIONS,REED SPECIALIST RECRUITMENT LTD,02/09/2020,336.85 ,AGENCY STAFF,V001611951
ROCHDALE BOROUGH COUNCIL,02/09/2020,NEIGHBOURHOODS AND ENVIRONMENT,REED SPECIALIST RECRUITMENT LTD,02/09/2020,484.14 ,AGENCY STAFF,V001611951
ROCHDALE BOROUGH COUNCIL,02/09/2020,NEIGHBOURHOODS AND ENVIRONMENT,REED SPECIALIST RECRUITMENT LTD,02/09/2020,525.05 ,AGENCY STAFF,V001611951
ROCHDALE BOROUGH COUNCIL,02/09/2020,NEIGHBOURHOODS AND ENVIRONMENT,REED SPECIALIST RECRUITMENT LTD,02/09/2020,298.00 ,AGENCY STAFF,V001611951
ROCHDALE BOROUGH COUNCIL,02/09/2020,ADULT CARE LCO FUNCTIONS,REED SPECIALIST RECRUITMENT LTD,02/09/2020,497.13 ,AGENCY STAFF,V001611951
ROCHDALE BOROUGH COUNCIL,02/09/2020,ADULT CARE LCO FUNCTIONS,REED SPECIALIST RECRUITMENT LTD,02/09/2020,406.45 ,AGENCY STAFF,V001611951
ROCHDALE BOROUGH COUNCIL,02/09/2020,NEIGHBOURHOODS AND ENVIRONMENT,REED SPECIALIST RECRUITMENT LTD,02/09/2020,590.63 ,AGENCY STAFF,V001611951
ROCHDALE BOROUGH COUNCIL,02/09/2020,NEIGHBOURHOODS AND ENVIRONMENT,REED SPECIALIST RECRUITMENT LTD,02/09/2020,379.45 ,AGENCY STAFF,V001611951
ROCHDALE BOROUGH COUNCIL,02/09/2020,NEIGHBOURHOODS AND ENVIRONMENT,REED SPECIALIST RECRUITMENT LTD,02/09/2020,484.14 ,AGENCY STAFF,V001611951
ROCHDALE BOROUGH COUNCIL,02/09/2020,NEIGHBOURHOODS AND ENVIRONMENT,REED SPECIALIST RECRUITMENT LTD,02/09/2020,176.45 ,AGENCY STAFF,V001611951
ROCHDALE BOROUGH COUNCIL,02/09/2020,CHILDREN�S SOCIAL CARE,REED SPECIALIST RECRUITMENT LTD,02/09/2020,1276.80 ,AGENCY STAFF,V001611951
ROCHDALE BOROUGH COUNCIL,02/09/2020,CHILDREN�S SOCIAL CARE,REED SPECIALIST RECRUITMENT LTD,02/09/2020,975.24 ,AGENCY STAFF,V001611951
ROCHDALE BOROUGH COUNCIL,02/09/2020,CHILDREN�S SOCIAL CARE,REED SPECIALIST RECRUITMENT LTD,02/09/2020,1202.80 ,AGENCY STAFF,V001611951
ROCHDALE BOROUGH COUNCIL,02/09/2020,RESOURCES,REED SPECIALIST RECRUITMENT LTD,02/09/2020,497.13 ,AGENCY STAFF,V001611951
ROCHDALE BOROUGH COUNCIL,02/09/2020,CHILDREN�S SOCIAL CARE,REED SPECIALIST RECRUITMENT LTD,02/09/2020,275.28 ,AGENCY STAFF,V001611951
ROCHDALE BOROUGH COUNCIL,02/09/2020,NEIGHBOURHOODS AND ENVIRONMENT,REED SPECIALIST RECRUITMENT LTD,02/09/2020,478.06 ,AGENCY STAFF,V001611951
ROCHDALE BOROUGH COUNCIL,02/09/2020,NEIGHBOURHOODS AND ENVIRONMENT,REED SPECIALIST RECRUITMENT LTD,02/09/2020,525.05 ,AGENCY STAFF,V001611951
ROCHDALE BOROUGH COUNCIL,02/09/2020,NEIGHBOURHOODS AND ENVIRONMENT,REED SPECIALIST RECRUITMENT LTD,02/09/2020,583.42 ,AGENCY STAFF,V001611951
ROCHDALE BOROUGH COUNCIL,02/09/2020,NEIGHBOURHOODS AND ENVIRONMENT,REED SPECIALIST RECRUITMENT LTD,02/09/2020,581.81 ,AGENCY STAFF,V001611951
ROCHDALE BOROUGH COUNCIL,02/09/2020,NEIGHBOURHOODS AND ENVIRONMENT,REED SPECIALIST RECRUITMENT LTD,02/09/2020,484.14 ,AGENCY STAFF,V001611951
ROCHDALE BOROUGH COUNCIL,02/09/2020,CHILDREN�S SOCIAL CARE,REED SPECIALIST RECRUITMENT LTD,02/09/2020,1202.80 ,AGENCY STAFF,V001611951
ROCHDALE BOROUGH COUNCIL,02/09/2020,CHILDREN�S SOCIAL CARE,REED SPECIALIST RECRUITMENT LTD,02/09/2020,1276.80 ,AGENCY STAFF,V001611951
ROCHDALE BOROUGH COUNCIL,02/09/2020,NEIGHBOURHOODS AND ENVIRONMENT,REED SPECIALIST RECRUITMENT LTD,02/09/2020,590.63 ,AGENCY STAFF,V001611951
ROCHDALE BOROUGH COUNCIL,02/09/2020,NEIGHBOURHOODS AND ENVIRONMENT,REED SPECIALIST RECRUITMENT LTD,02/09/2020,478.06 ,AGENCY STAFF,V001611951
ROCHDALE BOROUGH COUNCIL,02/09/2020,CHILDREN�S SOCIAL CARE,REED SPECIALIST RECRUITMENT LTD,02/09/2020,1202.80 ,AGENCY STAFF,V001611951
ROCHDALE BOROUGH COUNCIL,02/09/2020,NEIGHBOURHOODS AND ENVIRONMENT,REED SPECIALIST RECRUITMENT LTD,02/09/2020,477.59 ,AGENCY STAFF,V001611951
ROCHDALE BOROUGH COUNCIL,02/09/2020,NEIGHBOURHOODS AND ENVIRONMENT,REED SPECIALIST RECRUITMENT LTD,02/09/2020,484.14 ,AGENCY STAFF,V001611951
ROCHDALE BOROUGH COUNCIL,02/09/2020,ADULT CARE LCO FUNCTIONS,REED SPECIALIST RECRUITMENT LTD,02/09/2020,1018.54 ,AGENCY STAFF,V001611951
ROCHDALE BOROUGH COUNCIL,02/09/2020,NEIGHBOURHOODS AND ENVIRONMENT,REED SPECIALIST RECRUITMENT LTD,02/09/2020,478.06 ,AGENCY STAFF,V001611951
ROCHDALE BOROUGH COUNCIL,02/09/2020,NEIGHBOURHOODS AND ENVIRONMENT,REED SPECIALIST RECRUITMENT LTD,02/09/2020,510.30 ,AGENCY STAFF,V001611951
ROCHDALE BOROUGH COUNCIL,02/09/2020,NEIGHBOURHOODS AND ENVIRONMENT,REED SPECIALIST RECRUITMENT LTD,02/09/2020,484.14 ,AGENCY STAFF,V001611951
ROCHDALE BOROUGH COUNCIL,02/09/2020,NEIGHBOURHOODS AND ENVIRONMENT,REED SPECIALIST RECRUITMENT LTD,02/09/2020,478.06 ,AGENCY STAFF,V001611951
ROCHDALE BOROUGH COUNCIL,02/09/2020,RESOURCES,REED SPECIALIST RECRUITMENT LTD,02/09/2020,543.31 ,AGENCY STAFF,V001611951
ROCHDALE BOROUGH COUNCIL,02/09/2020,NEIGHBOURHOODS AND ENVIRONMENT,REED SPECIALIST RECRUITMENT LTD,02/09/2020,583.42 ,AGENCY STAFF,V001611951
ROCHDALE BOROUGH COUNCIL,02/09/2020,NEIGHBOURHOODS AND ENVIRONMENT,REED SPECIALIST RECRUITMENT LTD,02/09/2020,191.91 ,AGENCY STAFF,V001611951
ROCHDALE BOROUGH COUNCIL,02/09/2020,NEIGHBOURHOODS AND ENVIRONMENT,REED SPECIALIST RECRUITMENT LTD,02/09/2020,484.14 ,AGENCY STAFF,V001611951
ROCHDALE BOROUGH COUNCIL,02/09/2020,RESOURCES,REED SPECIALIST RECRUITMENT LTD,02/09/2020,1551.54 ,AGENCY STAFF,V001611951
ROCHDALE BOROUGH COUNCIL,02/09/2020,NEIGHBOURHOODS AND ENVIRONMENT,REED SPECIALIST RECRUITMENT LTD,02/09/2020,478.43 ,AGENCY STAFF,V001611951
ROCHDALE BOROUGH COUNCIL,02/09/2020,NEIGHBOURHOODS AND ENVIRONMENT,REED SPECIALIST RECRUITMENT LTD,02/09/2020,583.42 ,AGENCY STAFF,V001611951
ROCHDALE BOROUGH COUNCIL,02/09/2020,NEIGHBOURHOODS AND ENVIRONMENT,REED SPECIALIST RECRUITMENT LTD,02/09/2020,583.42 ,AGENCY STAFF,V001611951
ROCHDALE BOROUGH COUNCIL,02/09/2020,NEIGHBOURHOODS AND ENVIRONMENT,REED SPECIALIST RECRUITMENT LTD,02/09/2020,478.06 ,AGENCY STAFF,V001611951
ROCHDALE BOROUGH COUNCIL,02/09/2020,CHILDREN�S SOCIAL CARE,REED SPECIALIST RECRUITMENT LTD,02/09/2020,1121.53 ,AGENCY STAFF,V001611951
ROCHDALE BOROUGH COUNCIL,02/09/2020,ADULT CARE LCO FUNCTIONS,REED SPECIALIST RECRUITMENT LTD,02/09/2020,569.93 ,AGENCY STAFF,V001611951
ROCHDALE BOROUGH COUNCIL,02/09/2020,CHILDREN�S SOCIAL CARE,REED SPECIALIST RECRUITMENT LTD,02/09/2020,1646.80 ,AGENCY STAFF,V001611951
ROCHDALE BOROUGH COUNCIL,02/09/2020,NEIGHBOURHOODS AND ENVIRONMENT,REED SPECIALIST RECRUITMENT LTD,02/09/2020,478.06 ,AGENCY STAFF,V001611951
ROCHDALE BOROUGH COUNCIL,02/09/2020,NEIGHBOURHOODS AND ENVIRONMENT,REED SPECIALIST RECRUITMENT LTD,02/09/2020,503.90 ,AGENCY STAFF,V001611951
ROCHDALE BOROUGH COUNCIL,02/09/2020,RESOURCES,REED SPECIALIST RECRUITMENT LTD,02/09/2020,1057.03 ,AGENCY STAFF,V001611951
ROCHDALE BOROUGH COUNCIL,02/09/2020,NEIGHBOURHOODS AND ENVIRONMENT,REED SPECIALIST RECRUITMENT LTD,02/09/2020,525.05 ,AGENCY STAFF,V001611951
ROCHDALE BOROUGH COUNCIL,02/09/2020,CHILDREN�S SOCIAL CARE,REED SPECIALIST RECRUITMENT LTD,02/09/2020,1387.80 ,AGENCY STAFF,V001611951
ROCHDALE BOROUGH COUNCIL,02/09/2020,NEIGHBOURHOODS AND ENVIRONMENT,REED SPECIALIST RECRUITMENT LTD,02/09/2020,478.06 ,AGENCY STAFF,V001611951
ROCHDALE BOROUGH COUNCIL,02/09/2020,NEIGHBOURHOODS AND ENVIRONMENT,REED SPECIALIST RECRUITMENT LTD,02/09/2020,291.71 ,AGENCY STAFF,V001611951
ROCHDALE BOROUGH COUNCIL,02/09/2020,PROPERTY AND HIGHWAYS,REED SPECIALIST RECRUITMENT LTD,02/09/2020,354.36 ,AGENCY STAFF,V001611951
ROCHDALE BOROUGH COUNCIL,02/09/2020,NEIGHBOURHOODS AND ENVIRONMENT,REED SPECIALIST RECRUITMENT LTD,02/09/2020,518.96 ,AGENCY STAFF,V001611951
ROCHDALE BOROUGH COUNCIL,02/09/2020,EARLY HELP AND SCHOOLS,REED SPECIALIST RECRUITMENT LTD,02/09/2020,660.67 ,AGENCY STAFF,V001611951
ROCHDALE BOROUGH COUNCIL,02/09/2020,ADULT CARE LCO FUNCTIONS,REED SPECIALIST RECRUITMENT LTD,02/09/2020,1013.42 ,AGENCY STAFF,V001611951
ROCHDALE BOROUGH COUNCIL,02/09/2020,NEIGHBOURHOODS AND ENVIRONMENT,REED SPECIALIST RECRUITMENT LTD,02/09/2020,503.90 ,AGENCY STAFF,V001611951
ROCHDALE BOROUGH COUNCIL,02/09/2020,ADULT CARE LCO FUNCTIONS,REED SPECIALIST RECRUITMENT LTD,02/09/2020,825.84 ,AGENCY STAFF,V001611951
ROCHDALE BOROUGH COUNCIL,02/09/2020,NEIGHBOURHOODS AND ENVIRONMENT,REED SPECIALIST RECRUITMENT LTD,02/09/2020,503.90 ,AGENCY STAFF,V001611951
ROCHDALE BOROUGH COUNCIL,02/09/2020,NEIGHBOURHOODS AND ENVIRONMENT,REED SPECIALIST RECRUITMENT LTD,02/09/2020,478.06 ,AGENCY STAFF,V001611951
ROCHDALE BOROUGH COUNCIL,02/09/2020,NEIGHBOURHOODS AND ENVIRONMENT,REED SPECIALIST RECRUITMENT LTD,02/09/2020,478.06 ,AGENCY STAFF,V001611951
ROCHDALE BOROUGH COUNCIL,02/09/2020,CHILDREN�S SOCIAL CARE,REED SPECIALIST RECRUITMENT LTD,02/09/2020,1027.29 ,AGENCY STAFF,V001611951
ROCHDALE BOROUGH COUNCIL,02/09/2020,PROPERTY AND HIGHWAYS,REED SPECIALIST RECRUITMENT LTD,02/09/2020,641.33 ,AGENCY STAFF,V001611951
ROCHDALE BOROUGH COUNCIL,02/09/2020,CHILDREN�S SOCIAL CARE,REED SPECIALIST RECRUITMENT LTD,02/09/2020,1165.80 ,AGENCY STAFF,V001611951
ROCHDALE BOROUGH COUNCIL,02/09/2020,CHILDREN�S SOCIAL CARE,REED SPECIALIST RECRUITMENT LTD,02/09/2020,1165.80 ,AGENCY STAFF,V001611951
ROCHDALE BOROUGH COUNCIL,02/09/2020,NEIGHBOURHOODS AND ENVIRONMENT,REED SPECIALIST RECRUITMENT LTD,02/09/2020,450.94 ,AGENCY STAFF,V001611951
ROCHDALE BOROUGH COUNCIL,02/09/2020,ADULT CARE LCO FUNCTIONS,REED SPECIALIST RECRUITMENT LTD,02/09/2020,1018.54 ,AGENCY STAFF,V001611951
ROCHDALE BOROUGH COUNCIL,02/09/2020,NEIGHBOURHOODS AND ENVIRONMENT,REED SPECIALIST RECRUITMENT LTD,02/09/2020,510.30 ,AGENCY STAFF,V001611951
ROCHDALE BOROUGH COUNCIL,02/09/2020,CHILDREN�S SOCIAL CARE,REED SPECIALIST RECRUITMENT LTD,02/09/2020,1202.80 ,AGENCY STAFF,V001611951
ROCHDALE BOROUGH COUNCIL,02/09/2020,CHILDREN�S SOCIAL CARE,REED SPECIALIST RECRUITMENT LTD,02/09/2020,1202.80 ,AGENCY STAFF,V001611951
ROCHDALE BOROUGH COUNCIL,02/09/2020,CHILDREN�S SOCIAL CARE,REED SPECIALIST RECRUITMENT LTD,02/09/2020,1202.80 ,AGENCY STAFF,V001611951
ROCHDALE BOROUGH COUNCIL,02/09/2020,CHILDREN�S SOCIAL CARE,REED SPECIALIST RECRUITMENT LTD,02/09/2020,975.24 ,AGENCY STAFF,V001611951
ROCHDALE BOROUGH COUNCIL,02/09/2020,NEIGHBOURHOODS AND ENVIRONMENT,REED SPECIALIST RECRUITMENT LTD,02/09/2020,503.90 ,AGENCY STAFF,V001611951
ROCHDALE BOROUGH COUNCIL,02/09/2020,EARLY HELP AND SCHOOLS,REED SPECIALIST RECRUITMENT LTD,02/09/2020,1202.80 ,AGENCY STAFF,V001611951
ROCHDALE BOROUGH COUNCIL,02/09/2020,PROPERTY AND HIGHWAYS,REED SPECIALIST RECRUITMENT LTD,02/09/2020,762.64 ,AGENCY STAFF,V001611951
ROCHDALE BOROUGH COUNCIL,02/09/2020,NEIGHBOURHOODS AND ENVIRONMENT,REED SPECIALIST RECRUITMENT LTD,02/09/2020,478.06 ,AGENCY STAFF,V001611951
ROCHDALE BOROUGH COUNCIL,02/09/2020,NEIGHBOURHOODS AND ENVIRONMENT,REED SPECIALIST RECRUITMENT LTD,02/09/2020,581.42 ,AGENCY STAFF,V001611951
ROCHDALE BOROUGH COUNCIL,02/09/2020,NEIGHBOURHOODS AND ENVIRONMENT,REED SPECIALIST RECRUITMENT LTD,02/09/2020,363.11 ,AGENCY STAFF,V001611951
ROCHDALE BOROUGH COUNCIL,02/09/2020,CHILDREN�S SOCIAL CARE,REED SPECIALIST RECRUITMENT LTD,02/09/2020,1170.29 ,AGENCY STAFF,V001611951
ROCHDALE BOROUGH COUNCIL,02/09/2020,NEIGHBOURHOODS AND ENVIRONMENT,REED SPECIALIST RECRUITMENT LTD,02/09/2020,583.42 ,AGENCY STAFF,V001611951
ROCHDALE BOROUGH COUNCIL,02/09/2020,NEIGHBOURHOODS AND ENVIRONMENT,REED SPECIALIST RECRUITMENT LTD,02/09/2020,484.14 ,AGENCY STAFF,V001611951
ROCHDALE BOROUGH COUNCIL,02/09/2020,NEIGHBOURHOODS AND ENVIRONMENT,REED SPECIALIST RECRUITMENT LTD,02/09/2020,484.14 ,AGENCY STAFF,V001611951
ROCHDALE BOROUGH COUNCIL,02/09/2020,NEIGHBOURHOODS AND ENVIRONMENT,REED SPECIALIST RECRUITMENT LTD,02/09/2020,478.06 ,AGENCY STAFF,V001611951
ROCHDALE BOROUGH COUNCIL,02/09/2020,NEIGHBOURHOODS AND ENVIRONMENT,REED SPECIALIST RECRUITMENT LTD,02/09/2020,785.09 ,AGENCY STAFF,V001611951
ROCHDALE BOROUGH COUNCIL,02/09/2020,NEIGHBOURHOODS AND ENVIRONMENT,REED SPECIALIST RECRUITMENT LTD,02/09/2020,588.82 ,AGENCY STAFF,V001611951
ROCHDALE BOROUGH COUNCIL,02/09/2020,NEIGHBOURHOODS AND ENVIRONMENT,REED SPECIALIST RECRUITMENT LTD,02/09/2020,366.37 ,AGENCY STAFF,V001611951
ROCHDALE BOROUGH COUNCIL,02/09/2020,NEIGHBOURHOODS AND ENVIRONMENT,REED SPECIALIST RECRUITMENT LTD,02/09/2020,484.14 ,AGENCY STAFF,V001611951
ROCHDALE BOROUGH COUNCIL,02/09/2020,NEIGHBOURHOODS AND ENVIRONMENT,REED SPECIALIST RECRUITMENT LTD,02/09/2020,384.40 ,AGENCY STAFF,V001611951
ROCHDALE BOROUGH COUNCIL,02/09/2020,NEIGHBOURHOODS AND ENVIRONMENT,REED SPECIALIST RECRUITMENT LTD,02/09/2020,478.06 ,AGENCY STAFF,V001611951
ROCHDALE BOROUGH COUNCIL,02/09/2020,PROPERTY AND HIGHWAYS,REED SPECIALIST RECRUITMENT LTD,02/09/2020,855.10 ,AGENCY STAFF,V001611951
ROCHDALE BOROUGH COUNCIL,02/09/2020,NEIGHBOURHOODS AND ENVIRONMENT,REED SPECIALIST RECRUITMENT LTD,02/09/2020,583.42 ,AGENCY STAFF,V001611951
ROCHDALE BOROUGH COUNCIL,02/09/2020,NEIGHBOURHOODS AND ENVIRONMENT,REED SPECIALIST RECRUITMENT LTD,02/09/2020,478.06 ,AGENCY STAFF,V001611951
ROCHDALE BOROUGH COUNCIL,02/09/2020,NEIGHBOURHOODS AND ENVIRONMENT,REED SPECIALIST RECRUITMENT LTD,02/09/2020,119.53 ,AGENCY STAFF,V001611951
ROCHDALE BOROUGH COUNCIL,02/09/2020,NEIGHBOURHOODS AND ENVIRONMENT,REED SPECIALIST RECRUITMENT LTD,02/09/2020,583.42 ,AGENCY STAFF,V001611951
ROCHDALE BOROUGH COUNCIL,02/09/2020,ADULT CARE LCO FUNCTIONS,REED SPECIALIST RECRUITMENT LTD,02/09/2020,1032.30 ,AGENCY STAFF,V001611951
ROCHDALE BOROUGH COUNCIL,02/09/2020,CHILDREN�S SOCIAL CARE,REED SPECIALIST RECRUITMENT LTD,02/09/2020,1018.54 ,AGENCY STAFF,V001611951
ROCHDALE BOROUGH COUNCIL,02/09/2020,CHILDREN�S SOCIAL CARE,REED SPECIALIST RECRUITMENT LTD,02/09/2020,541.50 ,AGENCY STAFF,V001611951
ROCHDALE BOROUGH COUNCIL,02/09/2020,CHILDREN�S SOCIAL CARE,REED SPECIALIST RECRUITMENT LTD,02/09/2020,1018.54 ,AGENCY STAFF,V001611951
ROCHDALE BOROUGH COUNCIL,02/09/2020,COMMISSIONING AND STATUTORY,REDACTED - PERSONAL DATA,02/09/2020,173.37 ,EXPENSES - GENERAL,V001611952
ROCHDALE BOROUGH COUNCIL,02/09/2020,NEIGHBOURHOODS AND ENVIRONMENT,ROYTON MINIBUSES LIMITED,02/09/2020,640.00 ,TAXI HIRE,V001611953
ROCHDALE BOROUGH COUNCIL,02/09/2020,NEIGHBOURHOODS AND ENVIRONMENT,ROYTON MINIBUSES LIMITED,02/09/2020,640.00 ,TAXI HIRE,V001611953
ROCHDALE BOROUGH COUNCIL,02/09/2020,NEIGHBOURHOODS AND ENVIRONMENT,ROYTON MINIBUSES LIMITED,02/09/2020,640.00 ,TAXI HIRE,V001611953
ROCHDALE BOROUGH COUNCIL,02/09/2020,NEIGHBOURHOODS AND ENVIRONMENT,ROYTON MINIBUSES LIMITED,02/09/2020,652.30 ,TAXI HIRE,V001611953
ROCHDALE BOROUGH COUNCIL,02/09/2020,NEIGHBOURHOODS AND ENVIRONMENT,ROYTON MINIBUSES LIMITED,02/09/2020,652.30 ,TAXI HIRE,V001611953
ROCHDALE BOROUGH COUNCIL,02/09/2020,NEIGHBOURHOODS AND ENVIRONMENT,ROYTON MINIBUSES LIMITED,02/09/2020,652.30 ,TAXI HIRE,V001611953
ROCHDALE BOROUGH COUNCIL,02/09/2020,EARLY HELP AND SCHOOLS,BEVAN CARE LTD,02/09/2020,455.00 ,HOME CARE - CHILDRENS SERVICES,V001611955
ROCHDALE BOROUGH COUNCIL,02/09/2020,COMMISSIONING AND STATUTORY,REDACTED - PERSONAL DATA,02/09/2020,173.37 ,EXPENSES - GENERAL,V001611956
ROCHDALE BOROUGH COUNCIL,02/09/2020,CHILDREN�S SOCIAL CARE,FOUNDATION UK,02/09/2020,631.15 ,ACCOMMODATION,V001611958
ROCHDALE BOROUGH COUNCIL,02/09/2020,NEIGHBOURHOODS AND ENVIRONMENT,NEWEY LTD,02/09/2020,112.80 ,"TREES, SHRUBS, PLANTS",V001611960
ROCHDALE BOROUGH COUNCIL,02/09/2020,NEIGHBOURHOODS AND ENVIRONMENT,NEWEY LTD,02/09/2020,586.40 ,"TREES, SHRUBS, PLANTS",V001611961
ROCHDALE BOROUGH COUNCIL,02/09/2020,NEIGHBOURHOODS AND ENVIRONMENT,PROBRUSH,02/09/2020,999.17 ,EQUIPMENT - GENERAL,V001611962
ROCHDALE BOROUGH COUNCIL,02/09/2020,NEIGHBOURHOODS AND ENVIRONMENT,PROBRUSH,02/09/2020,45.00 ,EQUIPMENT - GENERAL,V001611962
ROCHDALE BOROUGH COUNCIL,02/09/2020,NEIGHBOURHOODS AND ENVIRONMENT,BUREAU VERITAS UK LTD,02/09/2020,1749.90 ,ENV HEALTH-SAMPLES,V001611963
ROCHDALE BOROUGH COUNCIL,02/09/2020,EARLY HELP AND SCHOOLS,UK MILITARY MENTORS LTD,02/09/2020,1870.00 ,INDEPENDENT UNITS,V001611964
ROCHDALE BOROUGH COUNCIL,10/09/2020,RESOURCES,CAPITA BUSINESS SERVICES LIMITED,10/09/2020,90.00 ,BANK CHARGES,V001611965
ROCHDALE BOROUGH COUNCIL,10/09/2020,RESOURCES,CAPITA BUSINESS SERVICES LIMITED,10/09/2020,90.00 ,BANK CHARGES,V001611965
ROCHDALE BOROUGH COUNCIL,08/09/2020,NEIGHBOURHOODS AND ENVIRONMENT,F S MOULT AND SON,08/09/2020,900.95 ,REPAIRS & ALTS OF BUILDINGS,V001611966
ROCHDALE BOROUGH COUNCIL,04/09/2020,NEIGHBOURHOODS AND ENVIRONMENT,F S MOULT AND SON,04/09/2020,18000.00 ,REPAIRS & ALTS OF BUILDINGS,V001611967
ROCHDALE BOROUGH COUNCIL,04/09/2020,NEIGHBOURHOODS AND ENVIRONMENT,F S MOULT AND SON,04/09/2020,2000.00 ,REPAIRS & ALTS OF BUILDINGS,V001611967
ROCHDALE BOROUGH COUNCIL,02/09/2020,NEIGHBOURHOODS AND ENVIRONMENT,MBL SEMINARS LTD,02/09/2020,125.00 ,TRAINING,V001611968
ROCHDALE BOROUGH COUNCIL,02/09/2020,NEIGHBOURHOODS AND ENVIRONMENT,TLC GARDEN SERVICES,02/09/2020,250.00 ,ENVIRONMENTAL WORKS LANDSCAPE,V001611969
ROCHDALE BOROUGH COUNCIL,02/09/2020,NEIGHBOURHOODS AND ENVIRONMENT,ROCHDALE HOUSING INITIATIVE,02/09/2020,330.00 ,CAPITAL SALARIES,V001611970
ROCHDALE BOROUGH COUNCIL,02/09/2020,NEIGHBOURHOODS AND ENVIRONMENT,ROCHDALE HOUSING INITIATIVE,02/09/2020,330.00 ,CAPITAL SALARIES,V001611970
ROCHDALE BOROUGH COUNCIL,02/09/2020,NEIGHBOURHOODS AND ENVIRONMENT,ROCHDALE HOUSING INITIATIVE,02/09/2020,864.73 ,CAPITAL SALARIES,V001611971
ROCHDALE BOROUGH COUNCIL,02/09/2020,NEIGHBOURHOODS AND ENVIRONMENT,ROCHDALE HOUSING INITIATIVE,02/09/2020,864.73 ,CAPITAL SALARIES,V001611971
ROCHDALE BOROUGH COUNCIL,02/09/2020,RESOURCES,BERRYMANS LACE MAWER LLP,02/09/2020,751.60 ,INPUT VAT -  ADJUSTMENTS,V001611972
ROCHDALE BOROUGH COUNCIL,02/09/2020,NEIGHBOURHOODS AND ENVIRONMENT,CAR 2000 HEYWOOD LLP,02/09/2020,520.00 ,TAXI HIRE,V001611973
ROCHDALE BOROUGH COUNCIL,02/09/2020,NEIGHBOURHOODS AND ENVIRONMENT,ROCHDALE TOWN TAXIS LTD,02/09/2020,120.00 ,TAXI HIRE,V001611974
ROCHDALE BOROUGH COUNCIL,02/09/2020,NEIGHBOURHOODS AND ENVIRONMENT,ROCHDALE TOWN TAXIS LTD,02/09/2020,120.00 ,TAXI HIRE,V001611974
ROCHDALE BOROUGH COUNCIL,02/09/2020,NEIGHBOURHOODS AND ENVIRONMENT,ROCHDALE TOWN TAXIS LTD,02/09/2020,120.00 ,TAXI HIRE,V001611974
ROCHDALE BOROUGH COUNCIL,02/09/2020,NEIGHBOURHOODS AND ENVIRONMENT,ROCHDALE TOWN TAXIS LTD,02/09/2020,50.00 ,TAXI HIRE,V001611975
ROCHDALE BOROUGH COUNCIL,02/09/2020,NEIGHBOURHOODS AND ENVIRONMENT,ROCHDALE TOWN TAXIS LTD,02/09/2020,50.00 ,TAXI HIRE,V001611975
ROCHDALE BOROUGH COUNCIL,02/09/2020,NEIGHBOURHOODS AND ENVIRONMENT,ROCHDALE TOWN TAXIS LTD,02/09/2020,50.00 ,TAXI HIRE,V001611975
ROCHDALE BOROUGH COUNCIL,02/09/2020,NEIGHBOURHOODS AND ENVIRONMENT,ROCHDALE TOWN TAXIS LTD,02/09/2020,20.00 ,TAXI HIRE,V001611976
ROCHDALE BOROUGH COUNCIL,02/09/2020,NEIGHBOURHOODS AND ENVIRONMENT,ROCHDALE TOWN TAXIS LTD,02/09/2020,20.00 ,TAXI HIRE,V001611976
ROCHDALE BOROUGH COUNCIL,02/09/2020,NEIGHBOURHOODS AND ENVIRONMENT,ROCHDALE TOWN TAXIS LTD,02/09/2020,20.00 ,TAXI HIRE,V001611976
ROCHDALE BOROUGH COUNCIL,02/09/2020,NEIGHBOURHOODS AND ENVIRONMENT,ROCHDALE TOWN TAXIS LTD,02/09/2020,10.00 ,TAXI HIRE,V001611977
ROCHDALE BOROUGH COUNCIL,02/09/2020,NEIGHBOURHOODS AND ENVIRONMENT,ROCHDALE TOWN TAXIS LTD,02/09/2020,10.00 ,TAXI HIRE,V001611977
ROCHDALE BOROUGH COUNCIL,02/09/2020,NEIGHBOURHOODS AND ENVIRONMENT,ROCHDALE TOWN TAXIS LTD,02/09/2020,10.00 ,TAXI HIRE,V001611977
ROCHDALE BOROUGH COUNCIL,02/09/2020,PROPERTY AND HIGHWAYS,REACH PUBLISHING SERVICES LTD,02/09/2020,70.56 ,ADVERTISING,V001611978
ROCHDALE BOROUGH COUNCIL,02/09/2020,PROPERTY AND HIGHWAYS,REACH PUBLISHING SERVICES LTD,02/09/2020,60.80 ,ADVERTISING,V001611979
ROCHDALE BOROUGH COUNCIL,02/09/2020,PROPERTY AND HIGHWAYS,REACH PUBLISHING SERVICES LTD,02/09/2020,52.92 ,ADVERTISING,V001611980
ROCHDALE BOROUGH COUNCIL,02/09/2020,PROPERTY AND HIGHWAYS,REACH PUBLISHING SERVICES LTD,02/09/2020,61.74 ,ADVERTISING,V001611981
ROCHDALE BOROUGH COUNCIL,02/09/2020,PROPERTY AND HIGHWAYS,REACH PUBLISHING SERVICES LTD,02/09/2020,70.80 ,ADVERTISING,V001611982
ROCHDALE BOROUGH COUNCIL,02/09/2020,PROPERTY AND HIGHWAYS,CALEDONIAN LIFTS MANCHESTER LTD,02/09/2020,1160.00 ,PROPERTY - WORKS ELEMENT,V001611983
ROCHDALE BOROUGH COUNCIL,02/09/2020,PROPERTY AND HIGHWAYS,ELECTRIC CENTER,02/09/2020,6.35 ,PROPERTY - WORKS ELEMENT,V001611984
ROCHDALE BOROUGH COUNCIL,02/09/2020,PROPERTY AND HIGHWAYS,ELECTRIC CENTER,02/09/2020,3.21 ,PROPERTY - WORKS ELEMENT,V001611985
ROCHDALE BOROUGH COUNCIL,02/09/2020,PROPERTY AND HIGHWAYS,ELECTRIC CENTER,02/09/2020,44.46 ,PROPERTY - WORKS ELEMENT,V001611986
ROCHDALE BOROUGH COUNCIL,02/09/2020,PROPERTY AND HIGHWAYS,ELECTRIC CENTER,02/09/2020,74.53 ,PROPERTY - WORKS ELEMENT,V001611987
ROCHDALE BOROUGH COUNCIL,02/09/2020,PROPERTY AND HIGHWAYS,ELECTRIC CENTER,02/09/2020,53.61 ,PROPERTY - WORKS ELEMENT,V001611988
ROCHDALE BOROUGH COUNCIL,02/09/2020,PROPERTY AND HIGHWAYS,ELECTRIC CENTER,02/09/2020,12.69 ,PROPERTY - WORKS ELEMENT,V001611989
ROCHDALE BOROUGH COUNCIL,02/09/2020,PROPERTY AND HIGHWAYS,ELECTRIC CENTER,02/09/2020,35.09 ,PROPERTY - WORKS ELEMENT,V001611990
ROCHDALE BOROUGH COUNCIL,02/09/2020,PROPERTY AND HIGHWAYS,ELECTRIC CENTER,02/09/2020,35.50 ,PROPERTY - WORKS ELEMENT,V001611991
ROCHDALE BOROUGH COUNCIL,02/09/2020,PROPERTY AND HIGHWAYS,ELECTRIC CENTER,02/09/2020,62.04 ,PROPERTY - WORKS ELEMENT,V001611992
ROCHDALE BOROUGH COUNCIL,02/09/2020,PROPERTY AND HIGHWAYS,ELECTRIC CENTER,02/09/2020,80.51 ,PROPERTY - WORKS ELEMENT,V001611993
ROCHDALE BOROUGH COUNCIL,02/09/2020,PROPERTY AND HIGHWAYS,ELECTRIC CENTER,02/09/2020,82.07 ,PROPERTY - WORKS ELEMENT,V001611994
ROCHDALE BOROUGH COUNCIL,02/09/2020,PROPERTY AND HIGHWAYS,ELECTRIC CENTER,02/09/2020,28.45 ,ELECTRICAL,V001611995
ROCHDALE BOROUGH COUNCIL,02/09/2020,PROPERTY AND HIGHWAYS,DULUX DECORATOR CENTRE,02/09/2020,45.08 ,PROPERTY - WORKS ELEMENT,V001611996
ROCHDALE BOROUGH COUNCIL,15/09/2020,ECONOMY DIRECTORATE,GTM ELECTRICAL SERVICES LIMITED,15/09/2020,384.94 ,ELECTRICAL,V001612000
ROCHDALE BOROUGH COUNCIL,02/09/2020,RESOURCES,ABILITY SMART LIMITED,02/09/2020,528.00 ,FURNITURE - GENERAL,V001612005
ROCHDALE BOROUGH COUNCIL,02/09/2020,ADULT CARE LCO FUNCTIONS,REED SPECIALIST RECRUITMENT LTD,02/09/2020,27.20 ,AGENCY STAFF,V001612006
ROCHDALE BOROUGH COUNCIL,02/09/2020,CHILDREN�S SOCIAL CARE,REED SPECIALIST RECRUITMENT LTD,02/09/2020,46.40 ,AGENCY STAFF,V001612006
ROCHDALE BOROUGH COUNCIL,02/09/2020,ADULT CARE LCO FUNCTIONS,REED SPECIALIST RECRUITMENT LTD,02/09/2020,87.28 ,CAPITAL - STAFFING AGENCY PAYMENTS,V001612006
ROCHDALE BOROUGH COUNCIL,02/09/2020,NEIGHBOURHOODS AND ENVIRONMENT,REED SPECIALIST RECRUITMENT LTD,02/09/2020,89.60 ,AGENCY STAFF,V001612006
ROCHDALE BOROUGH COUNCIL,02/09/2020,CHILDREN�S SOCIAL CARE,REED SPECIALIST RECRUITMENT LTD,02/09/2020,13.20 ,AGENCY STAFF,V001612006
ROCHDALE BOROUGH COUNCIL,02/09/2020,CHILDREN�S SOCIAL CARE,REED SPECIALIST RECRUITMENT LTD,02/09/2020,9.00 ,AGENCY STAFF,V001612006
ROCHDALE BOROUGH COUNCIL,02/09/2020,ADULT CARE LCO FUNCTIONS,REED SPECIALIST RECRUITMENT LTD,02/09/2020,3.66 ,AGENCY STAFF,V001612006
ROCHDALE BOROUGH COUNCIL,02/09/2020,ADULT CARE LCO FUNCTIONS,REED SPECIALIST RECRUITMENT LTD,02/09/2020,3.60 ,AGENCY STAFF,V001612006
ROCHDALE BOROUGH COUNCIL,02/09/2020,ADULT CARE LCO FUNCTIONS,REED SPECIALIST RECRUITMENT LTD,02/09/2020,3.76 ,AGENCY STAFF,V001612006
ROCHDALE BOROUGH COUNCIL,02/09/2020,CHILDREN�S SOCIAL CARE,REED SPECIALIST RECRUITMENT LTD,02/09/2020,40.80 ,AGENCY STAFF,V001612006
ROCHDALE BOROUGH COUNCIL,02/09/2020,CHILDREN�S SOCIAL CARE,REED SPECIALIST RECRUITMENT LTD,02/09/2020,11.60 ,AGENCY STAFF,V001612006
ROCHDALE BOROUGH COUNCIL,02/09/2020,CHILDREN�S SOCIAL CARE,REED SPECIALIST RECRUITMENT LTD,02/09/2020,44.00 ,AGENCY STAFF,V001612006
ROCHDALE BOROUGH COUNCIL,02/09/2020,CHILDREN�S SOCIAL CARE,REED SPECIALIST RECRUITMENT LTD,02/09/2020,15.20 ,AGENCY STAFF,V001612006
ROCHDALE BOROUGH COUNCIL,02/09/2020,CHILDREN�S SOCIAL CARE,REED SPECIALIST RECRUITMENT LTD,02/09/2020,12.96 ,AGENCY STAFF,V001612006
ROCHDALE BOROUGH COUNCIL,02/09/2020,ADULT CARE LCO FUNCTIONS,REED SPECIALIST RECRUITMENT LTD,02/09/2020,12.00 ,AGENCY STAFF,V001612006
ROCHDALE BOROUGH COUNCIL,02/09/2020,CHILDREN�S SOCIAL CARE,REED SPECIALIST RECRUITMENT LTD,02/09/2020,6.24 ,AGENCY STAFF,V001612006
ROCHDALE BOROUGH COUNCIL,02/09/2020,CHILDREN�S SOCIAL CARE,REED SPECIALIST RECRUITMENT LTD,02/09/2020,25.20 ,AGENCY STAFF,V001612006
ROCHDALE BOROUGH COUNCIL,02/09/2020,NEIGHBOURHOODS AND ENVIRONMENT,REED SPECIALIST RECRUITMENT LTD,02/09/2020,6.32 ,AGENCY STAFF,V001612006
ROCHDALE BOROUGH COUNCIL,02/09/2020,NEIGHBOURHOODS AND ENVIRONMENT,REED SPECIALIST RECRUITMENT LTD,02/09/2020,13.44 ,AGENCY STAFF,V001612006
ROCHDALE BOROUGH COUNCIL,02/09/2020,NEIGHBOURHOODS AND ENVIRONMENT,REED SPECIALIST RECRUITMENT LTD,02/09/2020,6.40 ,AGENCY STAFF,V001612006
ROCHDALE BOROUGH COUNCIL,02/09/2020,NEIGHBOURHOODS AND ENVIRONMENT,REED SPECIALIST RECRUITMENT LTD,02/09/2020,6.42 ,AGENCY STAFF,V001612006
ROCHDALE BOROUGH COUNCIL,02/09/2020,NEIGHBOURHOODS AND ENVIRONMENT,REED SPECIALIST RECRUITMENT LTD,02/09/2020,6.33 ,AGENCY STAFF,V001612006
ROCHDALE BOROUGH COUNCIL,02/09/2020,NEIGHBOURHOODS AND ENVIRONMENT,REED SPECIALIST RECRUITMENT LTD,02/09/2020,6.42 ,AGENCY STAFF,V001612006
ROCHDALE BOROUGH COUNCIL,02/09/2020,NEIGHBOURHOODS AND ENVIRONMENT,REED SPECIALIST RECRUITMENT LTD,02/09/2020,6.32 ,AGENCY STAFF,V001612006
ROCHDALE BOROUGH COUNCIL,02/09/2020,NEIGHBOURHOODS AND ENVIRONMENT,REED SPECIALIST RECRUITMENT LTD,02/09/2020,52.33 ,AGENCY STAFF,V001612006
ROCHDALE BOROUGH COUNCIL,02/09/2020,NEIGHBOURHOODS AND ENVIRONMENT,REED SPECIALIST RECRUITMENT LTD,02/09/2020,6.42 ,AGENCY STAFF,V001612006
ROCHDALE BOROUGH COUNCIL,02/09/2020,NEIGHBOURHOODS AND ENVIRONMENT,REED SPECIALIST RECRUITMENT LTD,02/09/2020,6.31 ,AGENCY STAFF,V001612006
ROCHDALE BOROUGH COUNCIL,02/09/2020,NEIGHBOURHOODS AND ENVIRONMENT,REED SPECIALIST RECRUITMENT LTD,02/09/2020,553.41 ,AGENCY STAFF,V001612006
ROCHDALE BOROUGH COUNCIL,02/09/2020,NEIGHBOURHOODS AND ENVIRONMENT,REED SPECIALIST RECRUITMENT LTD,02/09/2020,511.56 ,AGENCY STAFF,V001612006
ROCHDALE BOROUGH COUNCIL,02/09/2020,NEIGHBOURHOODS AND ENVIRONMENT,REED SPECIALIST RECRUITMENT LTD,02/09/2020,518.48 ,AGENCY STAFF,V001612006
ROCHDALE BOROUGH COUNCIL,02/09/2020,ADULT CARE LCO FUNCTIONS,REED SPECIALIST RECRUITMENT LTD,02/09/2020,413.18 ,AGENCY STAFF,V001612006
ROCHDALE BOROUGH COUNCIL,02/09/2020,ADULT CARE LCO FUNCTIONS,REED SPECIALIST RECRUITMENT LTD,02/09/2020,825.84 ,AGENCY STAFF,V001612006
ROCHDALE BOROUGH COUNCIL,02/09/2020,ADULT CARE LCO FUNCTIONS,REED SPECIALIST RECRUITMENT LTD,02/09/2020,825.24 ,AGENCY STAFF,V001612006
ROCHDALE BOROUGH COUNCIL,02/09/2020,CHILDREN�S SOCIAL CARE,REED SPECIALIST RECRUITMENT LTD,02/09/2020,509.27 ,AGENCY STAFF,V001612006
ROCHDALE BOROUGH COUNCIL,02/09/2020,CHILDREN�S SOCIAL CARE,REED SPECIALIST RECRUITMENT LTD,02/09/2020,1018.54 ,AGENCY STAFF,V001612006
ROCHDALE BOROUGH COUNCIL,02/09/2020,CHILDREN�S SOCIAL CARE,REED SPECIALIST RECRUITMENT LTD,02/09/2020,1202.80 ,AGENCY STAFF,V001612006
ROCHDALE BOROUGH COUNCIL,02/09/2020,CHILDREN�S SOCIAL CARE,REED SPECIALIST RECRUITMENT LTD,02/09/2020,1276.80 ,AGENCY STAFF,V001612006
ROCHDALE BOROUGH COUNCIL,02/09/2020,NEIGHBOURHOODS AND ENVIRONMENT,REED SPECIALIST RECRUITMENT LTD,02/09/2020,757.51 ,AGENCY STAFF,V001612006
ROCHDALE BOROUGH COUNCIL,02/09/2020,NEIGHBOURHOODS AND ENVIRONMENT,REED SPECIALIST RECRUITMENT LTD,02/09/2020,651.88 ,AGENCY STAFF,V001612006
ROCHDALE BOROUGH COUNCIL,02/09/2020,NEIGHBOURHOODS AND ENVIRONMENT,REED SPECIALIST RECRUITMENT LTD,02/09/2020,549.56 ,AGENCY STAFF,V001612006
ROCHDALE BOROUGH COUNCIL,02/09/2020,NEIGHBOURHOODS AND ENVIRONMENT,REED SPECIALIST RECRUITMENT LTD,02/09/2020,510.30 ,AGENCY STAFF,V001612006
ROCHDALE BOROUGH COUNCIL,02/09/2020,NEIGHBOURHOODS AND ENVIRONMENT,REED SPECIALIST RECRUITMENT LTD,02/09/2020,478.43 ,AGENCY STAFF,V001612006
ROCHDALE BOROUGH COUNCIL,02/09/2020,NEIGHBOURHOODS AND ENVIRONMENT,REED SPECIALIST RECRUITMENT LTD,02/09/2020,484.14 ,AGENCY STAFF,V001612006
ROCHDALE BOROUGH COUNCIL,02/09/2020,NEIGHBOURHOODS AND ENVIRONMENT,REED SPECIALIST RECRUITMENT LTD,02/09/2020,484.14 ,AGENCY STAFF,V001612006
ROCHDALE BOROUGH COUNCIL,02/09/2020,NEIGHBOURHOODS AND ENVIRONMENT,REED SPECIALIST RECRUITMENT LTD,02/09/2020,510.30 ,AGENCY STAFF,V001612006
ROCHDALE BOROUGH COUNCIL,02/09/2020,NEIGHBOURHOODS AND ENVIRONMENT,REED SPECIALIST RECRUITMENT LTD,02/09/2020,503.90 ,AGENCY STAFF,V001612006
ROCHDALE BOROUGH COUNCIL,02/09/2020,CHILDREN�S SOCIAL CARE,REED SPECIALIST RECRUITMENT LTD,02/09/2020,603.40 ,AGENCY STAFF,V001612006
ROCHDALE BOROUGH COUNCIL,02/09/2020,ADULT CARE LCO FUNCTIONS,REED SPECIALIST RECRUITMENT LTD,02/09/2020,739.30 ,CAPITAL - STAFFING AGENCY PAYMENTS,V001612006
ROCHDALE BOROUGH COUNCIL,02/09/2020,ADULT CARE LCO FUNCTIONS,REED SPECIALIST RECRUITMENT LTD,02/09/2020,336.85 ,AGENCY STAFF,V001612006
ROCHDALE BOROUGH COUNCIL,02/09/2020,NEIGHBOURHOODS AND ENVIRONMENT,REED SPECIALIST RECRUITMENT LTD,02/09/2020,484.14 ,AGENCY STAFF,V001612006
ROCHDALE BOROUGH COUNCIL,02/09/2020,NEIGHBOURHOODS AND ENVIRONMENT,REED SPECIALIST RECRUITMENT LTD,02/09/2020,525.05 ,AGENCY STAFF,V001612006
ROCHDALE BOROUGH COUNCIL,02/09/2020,PROPERTY AND HIGHWAYS,REED SPECIALIST RECRUITMENT LTD,02/09/2020,899.38 ,AGENCY STAFF,V001612006
ROCHDALE BOROUGH COUNCIL,02/09/2020,ADULT CARE LCO FUNCTIONS,REED SPECIALIST RECRUITMENT LTD,02/09/2020,440.03 ,AGENCY STAFF,V001612006
ROCHDALE BOROUGH COUNCIL,02/09/2020,NEIGHBOURHOODS AND ENVIRONMENT,REED SPECIALIST RECRUITMENT LTD,02/09/2020,590.63 ,AGENCY STAFF,V001612006
ROCHDALE BOROUGH COUNCIL,02/09/2020,NEIGHBOURHOODS AND ENVIRONMENT,REED SPECIALIST RECRUITMENT LTD,02/09/2020,274.79 ,AGENCY STAFF,V001612006
ROCHDALE BOROUGH COUNCIL,02/09/2020,NEIGHBOURHOODS AND ENVIRONMENT,REED SPECIALIST RECRUITMENT LTD,02/09/2020,484.14 ,AGENCY STAFF,V001612006
ROCHDALE BOROUGH COUNCIL,02/09/2020,NEIGHBOURHOODS AND ENVIRONMENT,REED SPECIALIST RECRUITMENT LTD,02/09/2020,176.45 ,AGENCY STAFF,V001612006
ROCHDALE BOROUGH COUNCIL,02/09/2020,PROPERTY AND HIGHWAYS,REED SPECIALIST RECRUITMENT LTD,02/09/2020,776.57 ,AGENCY STAFF,V001612006
ROCHDALE BOROUGH COUNCIL,02/09/2020,RESOURCES,REED SPECIALIST RECRUITMENT LTD,02/09/2020,497.13 ,AGENCY STAFF,V001612006
ROCHDALE BOROUGH COUNCIL,02/09/2020,RESOURCES,REED SPECIALIST RECRUITMENT LTD,02/09/2020,1349.63 ,AGENCY STAFF,V001612006
ROCHDALE BOROUGH COUNCIL,02/09/2020,NEIGHBOURHOODS AND ENVIRONMENT,REED SPECIALIST RECRUITMENT LTD,02/09/2020,478.06 ,AGENCY STAFF,V001612006
ROCHDALE BOROUGH COUNCIL,02/09/2020,NEIGHBOURHOODS AND ENVIRONMENT,REED SPECIALIST RECRUITMENT LTD,02/09/2020,525.05 ,AGENCY STAFF,V001612006
ROCHDALE BOROUGH COUNCIL,02/09/2020,ADULT CARE LCO FUNCTIONS,REED SPECIALIST RECRUITMENT LTD,02/09/2020,569.93 ,AGENCY STAFF,V001612006
ROCHDALE BOROUGH COUNCIL,02/09/2020,NEIGHBOURHOODS AND ENVIRONMENT,REED SPECIALIST RECRUITMENT LTD,02/09/2020,478.06 ,AGENCY STAFF,V001612006
ROCHDALE BOROUGH COUNCIL,02/09/2020,NEIGHBOURHOODS AND ENVIRONMENT,REED SPECIALIST RECRUITMENT LTD,02/09/2020,418.72 ,AGENCY STAFF,V001612006
ROCHDALE BOROUGH COUNCIL,02/09/2020,PROPERTY AND HIGHWAYS,REED SPECIALIST RECRUITMENT LTD,02/09/2020,725.50 ,AGENCY STAFF,V001612006
ROCHDALE BOROUGH COUNCIL,02/09/2020,PROPERTY AND HIGHWAYS,REED SPECIALIST RECRUITMENT LTD,02/09/2020,704.87 ,AGENCY STAFF,V001612006
ROCHDALE BOROUGH COUNCIL,02/09/2020,NEIGHBOURHOODS AND ENVIRONMENT,REED SPECIALIST RECRUITMENT LTD,02/09/2020,583.42 ,AGENCY STAFF,V001612006
ROCHDALE BOROUGH COUNCIL,02/09/2020,NEIGHBOURHOODS AND ENVIRONMENT,REED SPECIALIST RECRUITMENT LTD,02/09/2020,450.94 ,AGENCY STAFF,V001612006
ROCHDALE BOROUGH COUNCIL,02/09/2020,NEIGHBOURHOODS AND ENVIRONMENT,REED SPECIALIST RECRUITMENT LTD,02/09/2020,368.95 ,AGENCY STAFF,V001612006
ROCHDALE BOROUGH COUNCIL,02/09/2020,PROPERTY AND HIGHWAYS,REED SPECIALIST RECRUITMENT LTD,02/09/2020,774.21 ,AGENCY STAFF,V001612006
ROCHDALE BOROUGH COUNCIL,02/09/2020,NEIGHBOURHOODS AND ENVIRONMENT,REED SPECIALIST RECRUITMENT LTD,02/09/2020,478.06 ,AGENCY STAFF,V001612006
ROCHDALE BOROUGH COUNCIL,02/09/2020,NEIGHBOURHOODS AND ENVIRONMENT,REED SPECIALIST RECRUITMENT LTD,02/09/2020,437.58 ,AGENCY STAFF,V001612006
ROCHDALE BOROUGH COUNCIL,02/09/2020,NEIGHBOURHOODS AND ENVIRONMENT,REED SPECIALIST RECRUITMENT LTD,02/09/2020,588.82 ,AGENCY STAFF,V001612006
ROCHDALE BOROUGH COUNCIL,02/09/2020,NEIGHBOURHOODS AND ENVIRONMENT,REED SPECIALIST RECRUITMENT LTD,02/09/2020,382.44 ,AGENCY STAFF,V001612006
ROCHDALE BOROUGH COUNCIL,02/09/2020,NEIGHBOURHOODS AND ENVIRONMENT,REED SPECIALIST RECRUITMENT LTD,02/09/2020,503.90 ,AGENCY STAFF,V001612006
ROCHDALE BOROUGH COUNCIL,02/09/2020,NEIGHBOURHOODS AND ENVIRONMENT,REED SPECIALIST RECRUITMENT LTD,02/09/2020,484.14 ,AGENCY STAFF,V001612006
ROCHDALE BOROUGH COUNCIL,02/09/2020,NEIGHBOURHOODS AND ENVIRONMENT,REED SPECIALIST RECRUITMENT LTD,02/09/2020,478.06 ,AGENCY STAFF,V001612006
ROCHDALE BOROUGH COUNCIL,02/09/2020,NEIGHBOURHOODS AND ENVIRONMENT,REED SPECIALIST RECRUITMENT LTD,02/09/2020,478.06 ,AGENCY STAFF,V001612006
ROCHDALE BOROUGH COUNCIL,02/09/2020,NEIGHBOURHOODS AND ENVIRONMENT,REED SPECIALIST RECRUITMENT LTD,02/09/2020,583.42 ,AGENCY STAFF,V001612006
ROCHDALE BOROUGH COUNCIL,02/09/2020,NEIGHBOURHOODS AND ENVIRONMENT,REED SPECIALIST RECRUITMENT LTD,02/09/2020,583.42 ,AGENCY STAFF,V001612006
ROCHDALE BOROUGH COUNCIL,02/09/2020,NEIGHBOURHOODS AND ENVIRONMENT,REED SPECIALIST RECRUITMENT LTD,02/09/2020,484.14 ,AGENCY STAFF,V001612006
ROCHDALE BOROUGH COUNCIL,02/09/2020,NEIGHBOURHOODS AND ENVIRONMENT,REED SPECIALIST RECRUITMENT LTD,02/09/2020,478.06 ,AGENCY STAFF,V001612006
ROCHDALE BOROUGH COUNCIL,02/09/2020,NEIGHBOURHOODS AND ENVIRONMENT,REED SPECIALIST RECRUITMENT LTD,02/09/2020,573.67 ,AGENCY STAFF,V001612006
ROCHDALE BOROUGH COUNCIL,02/09/2020,CHILDREN�S SOCIAL CARE,REED SPECIALIST RECRUITMENT LTD,02/09/2020,1646.80 ,AGENCY STAFF,V001612006
ROCHDALE BOROUGH COUNCIL,02/09/2020,NEIGHBOURHOODS AND ENVIRONMENT,REED SPECIALIST RECRUITMENT LTD,02/09/2020,478.06 ,AGENCY STAFF,V001612006
ROCHDALE BOROUGH COUNCIL,02/09/2020,NEIGHBOURHOODS AND ENVIRONMENT,REED SPECIALIST RECRUITMENT LTD,02/09/2020,478.06 ,AGENCY STAFF,V001612006
ROCHDALE BOROUGH COUNCIL,02/09/2020,NEIGHBOURHOODS AND ENVIRONMENT,REED SPECIALIST RECRUITMENT LTD,02/09/2020,503.90 ,AGENCY STAFF,V001612006
ROCHDALE BOROUGH COUNCIL,02/09/2020,CHILDREN�S SOCIAL CARE,REED SPECIALIST RECRUITMENT LTD,02/09/2020,1387.80 ,AGENCY STAFF,V001612006
ROCHDALE BOROUGH COUNCIL,02/09/2020,NEIGHBOURHOODS AND ENVIRONMENT,REED SPECIALIST RECRUITMENT LTD,02/09/2020,549.77 ,AGENCY STAFF,V001612006
ROCHDALE BOROUGH COUNCIL,02/09/2020,NEIGHBOURHOODS AND ENVIRONMENT,REED SPECIALIST RECRUITMENT LTD,02/09/2020,291.71 ,AGENCY STAFF,V001612006
ROCHDALE BOROUGH COUNCIL,02/09/2020,NEIGHBOURHOODS AND ENVIRONMENT,REED SPECIALIST RECRUITMENT LTD,02/09/2020,532.98 ,AGENCY STAFF,V001612006
ROCHDALE BOROUGH COUNCIL,02/09/2020,NEIGHBOURHOODS AND ENVIRONMENT,REED SPECIALIST RECRUITMENT LTD,02/09/2020,242.07 ,AGENCY STAFF,V001612006
ROCHDALE BOROUGH COUNCIL,02/09/2020,NEIGHBOURHOODS AND ENVIRONMENT,REED SPECIALIST RECRUITMENT LTD,02/09/2020,503.90 ,AGENCY STAFF,V001612006
ROCHDALE BOROUGH COUNCIL,02/09/2020,NEIGHBOURHOODS AND ENVIRONMENT,REED SPECIALIST RECRUITMENT LTD,02/09/2020,478.06 ,AGENCY STAFF,V001612006
ROCHDALE BOROUGH COUNCIL,02/09/2020,NEIGHBOURHOODS AND ENVIRONMENT,REED SPECIALIST RECRUITMENT LTD,02/09/2020,503.90 ,AGENCY STAFF,V001612006
ROCHDALE BOROUGH COUNCIL,02/09/2020,NEIGHBOURHOODS AND ENVIRONMENT,REED SPECIALIST RECRUITMENT LTD,02/09/2020,374.69 ,AGENCY STAFF,V001612006
ROCHDALE BOROUGH COUNCIL,02/09/2020,NEIGHBOURHOODS AND ENVIRONMENT,REED SPECIALIST RECRUITMENT LTD,02/09/2020,478.06 ,AGENCY STAFF,V001612006
ROCHDALE BOROUGH COUNCIL,02/09/2020,NEIGHBOURHOODS AND ENVIRONMENT,REED SPECIALIST RECRUITMENT LTD,02/09/2020,484.14 ,AGENCY STAFF,V001612006
ROCHDALE BOROUGH COUNCIL,02/09/2020,NEIGHBOURHOODS AND ENVIRONMENT,REED SPECIALIST RECRUITMENT LTD,02/09/2020,389.28 ,AGENCY STAFF,V001612006
ROCHDALE BOROUGH COUNCIL,02/09/2020,NEIGHBOURHOODS AND ENVIRONMENT,REED SPECIALIST RECRUITMENT LTD,02/09/2020,503.90 ,AGENCY STAFF,V001612006
ROCHDALE BOROUGH COUNCIL,02/09/2020,NEIGHBOURHOODS AND ENVIRONMENT,REED SPECIALIST RECRUITMENT LTD,02/09/2020,478.06 ,AGENCY STAFF,V001612006
ROCHDALE BOROUGH COUNCIL,02/09/2020,CHILDREN�S SOCIAL CARE,REED SPECIALIST RECRUITMENT LTD,02/09/2020,2188.89 ,AGENCY STAFF,V001612006
ROCHDALE BOROUGH COUNCIL,02/09/2020,CHILDREN�S SOCIAL CARE,REED SPECIALIST RECRUITMENT LTD,02/09/2020,1364.51 ,AGENCY STAFF,V001612006
ROCHDALE BOROUGH COUNCIL,02/09/2020,CHILDREN�S SOCIAL CARE,REED SPECIALIST RECRUITMENT LTD,02/09/2020,568.54 ,AGENCY STAFF,V001612006
ROCHDALE BOROUGH COUNCIL,02/09/2020,CHILDREN�S SOCIAL CARE,REED SPECIALIST RECRUITMENT LTD,02/09/2020,2141.51 ,AGENCY STAFF,V001612006
ROCHDALE BOROUGH COUNCIL,02/09/2020,CHILDREN�S SOCIAL CARE,REED SPECIALIST RECRUITMENT LTD,02/09/2020,1212.90 ,AGENCY STAFF,V001612006
ROCHDALE BOROUGH COUNCIL,02/09/2020,CHILDREN�S SOCIAL CARE,REED SPECIALIST RECRUITMENT LTD,02/09/2020,683.53 ,AGENCY STAFF,V001612006
ROCHDALE BOROUGH COUNCIL,02/09/2020,NEIGHBOURHOODS AND ENVIRONMENT,REED SPECIALIST RECRUITMENT LTD,02/09/2020,1124.63 ,AGENCY STAFF,V001612006
ROCHDALE BOROUGH COUNCIL,02/09/2020,NEIGHBOURHOODS AND ENVIRONMENT,REED SPECIALIST RECRUITMENT LTD,02/09/2020,310.09 ,AGENCY STAFF,V001612006
ROCHDALE BOROUGH COUNCIL,02/09/2020,RESOURCES,REED SPECIALIST RECRUITMENT LTD,02/09/2020,1057.03 ,AGENCY STAFF,V001612006
ROCHDALE BOROUGH COUNCIL,02/09/2020,NEIGHBOURHOODS AND ENVIRONMENT,REED SPECIALIST RECRUITMENT LTD,02/09/2020,525.05 ,AGENCY STAFF,V001612006
ROCHDALE BOROUGH COUNCIL,02/09/2020,CHILDREN�S SOCIAL CARE,REED SPECIALIST RECRUITMENT LTD,02/09/2020,1202.80 ,AGENCY STAFF,V001612006
ROCHDALE BOROUGH COUNCIL,02/09/2020,CHILDREN�S SOCIAL CARE,REED SPECIALIST RECRUITMENT LTD,02/09/2020,1052.49 ,AGENCY STAFF,V001612006
ROCHDALE BOROUGH COUNCIL,02/09/2020,CHILDREN�S SOCIAL CARE,REED SPECIALIST RECRUITMENT LTD,02/09/2020,1089.02 ,AGENCY STAFF,V001612006
ROCHDALE BOROUGH COUNCIL,02/09/2020,CHILDREN�S SOCIAL CARE,REED SPECIALIST RECRUITMENT LTD,02/09/2020,1202.80 ,AGENCY STAFF,V001612006
ROCHDALE BOROUGH COUNCIL,02/09/2020,ADULT CARE LCO FUNCTIONS,REED SPECIALIST RECRUITMENT LTD,02/09/2020,1013.42 ,AGENCY STAFF,V001612006
ROCHDALE BOROUGH COUNCIL,02/09/2020,CHILDREN�S SOCIAL CARE,REED SPECIALIST RECRUITMENT LTD,02/09/2020,1202.80 ,AGENCY STAFF,V001612006
ROCHDALE BOROUGH COUNCIL,02/09/2020,PROPERTY AND HIGHWAYS,REED SPECIALIST RECRUITMENT LTD,02/09/2020,953.64 ,AGENCY STAFF,V001612006
ROCHDALE BOROUGH COUNCIL,02/09/2020,ADULT CARE LCO FUNCTIONS,REED SPECIALIST RECRUITMENT LTD,02/09/2020,1018.54 ,AGENCY STAFF,V001612006
ROCHDALE BOROUGH COUNCIL,02/09/2020,CHILDREN�S SOCIAL CARE,REED SPECIALIST RECRUITMENT LTD,02/09/2020,1027.29 ,AGENCY STAFF,V001612006
ROCHDALE BOROUGH COUNCIL,02/09/2020,NEIGHBOURHOODS AND ENVIRONMENT,REED SPECIALIST RECRUITMENT LTD,02/09/2020,484.14 ,AGENCY STAFF,V001612006
ROCHDALE BOROUGH COUNCIL,02/09/2020,CHILDREN�S SOCIAL CARE,REED SPECIALIST RECRUITMENT LTD,02/09/2020,1165.80 ,AGENCY STAFF,V001612006
ROCHDALE BOROUGH COUNCIL,02/09/2020,CHILDREN�S SOCIAL CARE,REED SPECIALIST RECRUITMENT LTD,02/09/2020,1165.80 ,AGENCY STAFF,V001612006
ROCHDALE BOROUGH COUNCIL,02/09/2020,NEIGHBOURHOODS AND ENVIRONMENT,REED SPECIALIST RECRUITMENT LTD,02/09/2020,484.14 ,AGENCY STAFF,V001612006
ROCHDALE BOROUGH COUNCIL,02/09/2020,CHILDREN�S SOCIAL CARE,REED SPECIALIST RECRUITMENT LTD,02/09/2020,1118.82 ,AGENCY STAFF,V001612006
ROCHDALE BOROUGH COUNCIL,02/09/2020,CHILDREN�S SOCIAL CARE,REED SPECIALIST RECRUITMENT LTD,02/09/2020,1202.80 ,AGENCY STAFF,V001612006
ROCHDALE BOROUGH COUNCIL,02/09/2020,CHILDREN�S SOCIAL CARE,REED SPECIALIST RECRUITMENT LTD,02/09/2020,975.24 ,AGENCY STAFF,V001612006
ROCHDALE BOROUGH COUNCIL,02/09/2020,CHILDREN�S SOCIAL CARE,REED SPECIALIST RECRUITMENT LTD,02/09/2020,1202.80 ,AGENCY STAFF,V001612006
ROCHDALE BOROUGH COUNCIL,02/09/2020,EARLY HELP AND SCHOOLS,REED SPECIALIST RECRUITMENT LTD,02/09/2020,1202.80 ,AGENCY STAFF,V001612006
ROCHDALE BOROUGH COUNCIL,02/09/2020,NEIGHBOURHOODS AND ENVIRONMENT,REED SPECIALIST RECRUITMENT LTD,02/09/2020,590.63 ,AGENCY STAFF,V001612006
ROCHDALE BOROUGH COUNCIL,02/09/2020,ADULT CARE LCO FUNCTIONS,REED SPECIALIST RECRUITMENT LTD,02/09/2020,1018.54 ,AGENCY STAFF,V001612006
ROCHDALE BOROUGH COUNCIL,02/09/2020,NEIGHBOURHOODS AND ENVIRONMENT,REED SPECIALIST RECRUITMENT LTD,02/09/2020,145.87 ,AGENCY STAFF,V001612006
ROCHDALE BOROUGH COUNCIL,02/09/2020,NEIGHBOURHOODS AND ENVIRONMENT,REED SPECIALIST RECRUITMENT LTD,02/09/2020,145.87 ,AGENCY STAFF,V001612006
ROCHDALE BOROUGH COUNCIL,02/09/2020,ADULT CARE LCO FUNCTIONS,REED SPECIALIST RECRUITMENT LTD,02/09/2020,318.86 ,CAPITAL - STAFFING AGENCY PAYMENTS,V001612006
ROCHDALE BOROUGH COUNCIL,02/09/2020,ADULT CARE LCO FUNCTIONS,REED SPECIALIST RECRUITMENT LTD,02/09/2020,743.26 ,AGENCY STAFF,V001612006
ROCHDALE BOROUGH COUNCIL,02/09/2020,CHILDREN�S SOCIAL CARE,REED SPECIALIST RECRUITMENT LTD,02/09/2020,1202.80 ,AGENCY STAFF,V001612006
ROCHDALE BOROUGH COUNCIL,02/09/2020,ADULT CARE LCO FUNCTIONS,REED SPECIALIST RECRUITMENT LTD,02/09/2020,1018.54 ,AGENCY STAFF,V001612006
ROCHDALE BOROUGH COUNCIL,02/09/2020,ADULT CARE LCO FUNCTIONS,REED SPECIALIST RECRUITMENT LTD,02/09/2020,484.51 ,AGENCY STAFF,V001612006
ROCHDALE BOROUGH COUNCIL,02/09/2020,CHILDREN�S SOCIAL CARE,REED SPECIALIST RECRUITMENT LTD,02/09/2020,1202.80 ,AGENCY STAFF,V001612006
ROCHDALE BOROUGH COUNCIL,02/09/2020,CHILDREN�S SOCIAL CARE,REED SPECIALIST RECRUITMENT LTD,02/09/2020,1018.54 ,AGENCY STAFF,V001612006
ROCHDALE BOROUGH COUNCIL,02/09/2020,EARLY HELP AND SCHOOLS,BEVAN CARE LTD,02/09/2020,455.00 ,HOME CARE - CHILDRENS SERVICES,V001612007
ROCHDALE BOROUGH COUNCIL,02/09/2020,EARLY HELP AND SCHOOLS,BEVAN CARE LTD,02/09/2020,105.00 ,HOME CARE - CHILDRENS SERVICES,V001612008
ROCHDALE BOROUGH COUNCIL,02/09/2020,EARLY HELP AND SCHOOLS,BEVAN CARE LTD,02/09/2020,157.50 ,HOME CARE - CHILDRENS SERVICES,V001612009
ROCHDALE BOROUGH COUNCIL,02/09/2020,COMMISSIONING AND STATUTORY,REDACTED - PERSONAL DATA,02/09/2020,173.37 ,EXPENSES - GENERAL,V001612010
ROCHDALE BOROUGH COUNCIL,02/09/2020,COMMISSIONING AND STATUTORY,REDACTED - PERSONAL DATA,02/09/2020,173.37 ,EXPENSES - GENERAL,V001612011
ROCHDALE BOROUGH COUNCIL,02/09/2020,COMMISSIONING AND STATUTORY,REDACTED - PERSONAL DATA,02/09/2020,173.37 ,EXPENSES - GENERAL,V001612012
ROCHDALE BOROUGH COUNCIL,02/09/2020,COMMISSIONING AND STATUTORY,REDACTED - PERSONAL DATA,02/09/2020,173.37 ,EXPENSES - GENERAL,V001612013
ROCHDALE BOROUGH COUNCIL,02/09/2020,COMMISSIONING AND STATUTORY,REDACTED - PERSONAL DATA,02/09/2020,173.37 ,EXPENSES - GENERAL,V001612014
ROCHDALE BOROUGH COUNCIL,02/09/2020,COMMISSIONING AND STATUTORY,REDACTED - PERSONAL DATA,02/09/2020,173.37 ,EXPENSES - GENERAL,V001612015
ROCHDALE BOROUGH COUNCIL,02/09/2020,COMMISSIONING AND STATUTORY,REDACTED - PERSONAL DATA,02/09/2020,173.37 ,EXPENSES - GENERAL,V001612016
ROCHDALE BOROUGH COUNCIL,02/09/2020,COMMISSIONING AND STATUTORY,REDACTED - PERSONAL DATA,02/09/2020,173.37 ,EXPENSES - GENERAL,V001612017
ROCHDALE BOROUGH COUNCIL,02/09/2020,COMMISSIONING AND STATUTORY,REDACTED - PERSONAL DATA,02/09/2020,173.37 ,EXPENSES - GENERAL,V001612018
ROCHDALE BOROUGH COUNCIL,02/09/2020,RESOURCES,THE OYSTER PARTNERSHIP LTD,02/09/2020,1846.73 ,AGENCY STAFF,V001612019
ROCHDALE BOROUGH COUNCIL,02/09/2020,NEIGHBOURHOODS AND ENVIRONMENT,THE OYSTER PARTNERSHIP LTD,02/09/2020,703.80 ,ACTIVITIES,V001612020
ROCHDALE BOROUGH COUNCIL,02/09/2020,COMMISSIONING AND STATUTORY,SARA MEDICS LTD,02/09/2020,173.37 ,EXPENSES - GENERAL,V001612021
ROCHDALE BOROUGH COUNCIL,02/09/2020,COMMISSIONING AND STATUTORY,SARA MEDICS LTD,02/09/2020,173.37 ,EXPENSES - GENERAL,V001612022
ROCHDALE BOROUGH COUNCIL,02/09/2020,COMMISSIONING AND STATUTORY,SARA MEDICS LTD,02/09/2020,173.37 ,EXPENSES - GENERAL,V001612023
ROCHDALE BOROUGH COUNCIL,02/09/2020,COMMISSIONING AND STATUTORY,SARA MEDICS LTD,02/09/2020,173.37 ,EXPENSES - GENERAL,V001612024
ROCHDALE BOROUGH COUNCIL,02/09/2020,COMMISSIONING AND STATUTORY,SARA MEDICS LTD,02/09/2020,173.37 ,EXPENSES - GENERAL,V001612025
ROCHDALE BOROUGH COUNCIL,02/09/2020,COMMISSIONING AND STATUTORY,SARA MEDICS LTD,02/09/2020,173.37 ,EXPENSES - GENERAL,V001612026
ROCHDALE BOROUGH COUNCIL,02/09/2020,NEIGHBOURHOODS AND ENVIRONMENT,FOOD SAFETY SOLUTIONS LTD,02/09/2020,835.00 ,ACTIVITIES,V001612027
ROCHDALE BOROUGH COUNCIL,02/09/2020,NEIGHBOURHOODS AND ENVIRONMENT,NORTHGATE VEHICLE HIRE LIMITED,02/09/2020,13683.48 ,TRANSACTIONS-EXPENDITURE,V001612028
ROCHDALE BOROUGH COUNCIL,02/09/2020,NEIGHBOURHOODS AND ENVIRONMENT,NORTHGATE VEHICLE HIRE LIMITED,02/09/2020,1509.76 ,TRANSACTIONS-EXPENDITURE,V001612029
ROCHDALE BOROUGH COUNCIL,02/09/2020,COMMISSIONING AND STATUTORY,REDACTED - PERSONAL DATA,02/09/2020,173.37 ,EXPENSES - GENERAL,V001612030
ROCHDALE BOROUGH COUNCIL,02/09/2020,EARLY HELP AND SCHOOLS,UK MILITARY MENTORS LTD,02/09/2020,2110.00 ,INDEPENDENT UNITS,V001612031
ROCHDALE BOROUGH COUNCIL,03/09/2020,EARLY HELP AND SCHOOLS,UK MILITARY MENTORS LTD,03/09/2020,1000.00 ,INDEPENDENT UNITS,V001612032
ROCHDALE BOROUGH COUNCIL,03/09/2020,EARLY HELP AND SCHOOLS,UK MILITARY MENTORS LTD,03/09/2020,2295.00 ,INDEPENDENT UNITS,V001612033
ROCHDALE BOROUGH COUNCIL,03/09/2020,EARLY HELP AND SCHOOLS,UK MILITARY MENTORS LTD,03/09/2020,330.00 ,INDEPENDENT UNITS,V001612034
ROCHDALE BOROUGH COUNCIL,03/09/2020,EARLY HELP AND SCHOOLS,UK MILITARY MENTORS LTD,03/09/2020,765.00 ,INDEPENDENT UNITS,V001612035
ROCHDALE BOROUGH COUNCIL,02/09/2020,NEIGHBOURHOODS AND ENVIRONMENT,CDEC LIMITED,02/09/2020,125.00 ,EQUIPMENT - GENERAL,V001612036
ROCHDALE BOROUGH COUNCIL,02/09/2020,NEIGHBOURHOODS AND ENVIRONMENT,NORTH WEST TRADING COMPANY,02/09/2020,23.99 ,EQUIPMENT - GENERAL,V001612037
ROCHDALE BOROUGH COUNCIL,02/09/2020,NEIGHBOURHOODS AND ENVIRONMENT,NORTH WEST TRADING COMPANY,02/09/2020,23.99 ,EQUIPMENT - GENERAL,V001612037
ROCHDALE BOROUGH COUNCIL,02/09/2020,NEIGHBOURHOODS AND ENVIRONMENT,TREE HEROES LTD,02/09/2020,720.00 ,CONTRACTS,V001612038
ROCHDALE BOROUGH COUNCIL,02/09/2020,NEIGHBOURHOODS AND ENVIRONMENT,SPECIAL BRANCH TREE SURGEONS LTD,02/09/2020,2200.00 ,CONTRACTS,V001612039
ROCHDALE BOROUGH COUNCIL,02/09/2020,NEIGHBOURHOODS AND ENVIRONMENT,SPECIAL BRANCH TREE SURGEONS LTD,02/09/2020,775.00 ,CONTRACTS,V001612040
ROCHDALE BOROUGH COUNCIL,02/09/2020,NEIGHBOURHOODS AND ENVIRONMENT,SAICA NATUR UK LTD,02/09/2020,40.00 ,DISPOSAL OF CONFIDENTIAL EQUIPMENT AND W,V001612041
ROCHDALE BOROUGH COUNCIL,02/09/2020,PROPERTY AND HIGHWAYS,H ROTHWELL AND CO LTD,02/09/2020,7.59 ,PROPERTY - WORKS ELEMENT,V001612042
ROCHDALE BOROUGH COUNCIL,08/09/2020,NEIGHBOURHOODS AND ENVIRONMENT,RUSHTONS DEVELOPMENTS LTD,08/09/2020,2154.00 ,PROPERTY REFURBISHMENT (HOUSING),V001612043
ROCHDALE BOROUGH COUNCIL,08/09/2020,NEIGHBOURHOODS AND ENVIRONMENT,RUSHTONS DEVELOPMENTS LTD,08/09/2020,1436.00 ,PROPERTY REFURBISHMENT (HOUSING),V001612043
ROCHDALE BOROUGH COUNCIL,11/09/2020,PROPERTY AND HIGHWAYS,REACH PUBLISHING SERVICES LTD,11/09/2020,70.80 ,CHARGES-COMMITAL,V001612044
ROCHDALE BOROUGH COUNCIL,04/09/2020,PROPERTY AND HIGHWAYS,ABBEY ARCHITECTURAL IRONMONGERY CO LTD,04/09/2020,10.00 ,PROPERTY - WORKS ELEMENT,V001612045
ROCHDALE BOROUGH COUNCIL,03/09/2020,RESOURCES,MHR,03/09/2020,8697.16 ,SOFTWARE,V001612046
ROCHDALE BOROUGH COUNCIL,03/09/2020,RESOURCES,CRITIQOM LIMITED,03/09/2020,523.20 ,PRINTING,V001612047
ROCHDALE BOROUGH COUNCIL,08/09/2020,NEIGHBOURHOODS AND ENVIRONMENT,TLC GARDEN SERVICES,08/09/2020,165.00 ,ENVIRONMENTAL WORKS LANDSCAPE,V001612049
ROCHDALE BOROUGH COUNCIL,02/09/2020,NEIGHBOURHOODS AND ENVIRONMENT,KANE FUNERAL SERVICES,02/09/2020,1151.00 ,EQUIPMENT - GENERAL,V001612050
ROCHDALE BOROUGH COUNCIL,02/09/2020,ECONOMY DIRECTORATE,REDMAN PARTNERSHIPS LLP,02/09/2020,4762.00 ,CONSULTANTS FEES,V001612052
ROCHDALE BOROUGH COUNCIL,11/09/2020,CHILDREN�S SOCIAL CARE,SWIIS FOSTER CARE LIMITED,11/09/2020,817.04 ,FOSTER PARENTS BASIC ALLOWANCE,V001612054
ROCHDALE BOROUGH COUNCIL,14/09/2020,CHILDREN�S SOCIAL CARE,SWIIS FOSTER CARE LIMITED,14/09/2020,837.97 ,FOSTER PARENTS BASIC ALLOWANCE,V001612055
ROCHDALE BOROUGH COUNCIL,02/09/2020,ADULT CARE LCO FUNCTIONS,SHRED STATION,02/09/2020,30.00 ,DISPOSAL OF CONFIDENTIAL EQUIPMENT AND W,V001612056
ROCHDALE BOROUGH COUNCIL,02/09/2020,EARLY HELP AND SCHOOLS,COMPLETE ROOFING SYSTEMS LTD,02/09/2020,86664.70 ,MINOR BUILDING WORKS,V001612057
ROCHDALE BOROUGH COUNCIL,02/09/2020,PROPERTY AND HIGHWAYS,HOVINGTON LIMITED,02/09/2020,56378.26 ,PROPERTY - WORKS ELEMENT,V001612058
ROCHDALE BOROUGH COUNCIL,02/09/2020,EARLY HELP AND SCHOOLS,REDACTED - PERSONAL DATA,02/09/2020,12949.81 ,DIRECT PAYMENTS,V001612061
ROCHDALE BOROUGH COUNCIL,07/09/2020,NEIGHBOURHOODS AND ENVIRONMENT,COMPUTER WASTE LTD,07/09/2020,1000.00 ,EQUIPMENT - GENERAL,V001612062
ROCHDALE BOROUGH COUNCIL,02/09/2020,CHILDREN�S SOCIAL CARE,PENNINE SOLICITORS,02/09/2020,166.67 ,FEES / COMMISSION,V001612063
ROCHDALE BOROUGH COUNCIL,02/09/2020,NEIGHBOURHOODS AND ENVIRONMENT,EAST LANCASHIRE LIGHT RAILWAY CO LTD,02/09/2020,248.00 ,GRANTS TO OTHER BODIES,V001612064
ROCHDALE BOROUGH COUNCIL,03/09/2020,PROPERTY AND HIGHWAYS,WOLSELEY UK LIMITED,03/09/2020,16.01 ,BUILDING MATERIALS,V001612065
ROCHDALE BOROUGH COUNCIL,04/09/2020,ECONOMY DIRECTORATE,GTM ELECTRICAL SERVICES LIMITED,04/09/2020,665.00 ,FIRE / BURGLAR ALARMS,V001612066
ROCHDALE BOROUGH COUNCIL,08/09/2020,NEIGHBOURHOODS AND ENVIRONMENT,WHEELDON BROTHERS WASTE LIMITED,08/09/2020,100.00 ,EQUIPMENT - GENERAL,V001612071
ROCHDALE BOROUGH COUNCIL,08/09/2020,NEIGHBOURHOODS AND ENVIRONMENT,WHEELDON BROTHERS WASTE LIMITED,08/09/2020,100.00 ,EQUIPMENT - GENERAL,V001612071
ROCHDALE BOROUGH COUNCIL,03/09/2020,NEIGHBOURHOODS AND ENVIRONMENT,REDACTED - PERSONAL DATA,03/09/2020,120.00 ,WITNESSES EXPENSES,V001612074
ROCHDALE BOROUGH COUNCIL,03/09/2020,NEIGHBOURHOODS AND ENVIRONMENT,JONES AND BROOKS LTD,03/09/2020,91.00 ,PRINTING,V001612075
ROCHDALE BOROUGH COUNCIL,30/09/2020,CHILDREN�S SOCIAL CARE,MILLENNIUM TRANSLATIONS LTD,30/09/2020,76.40 ,TRANSLATION & INTERPRETATION,V001612076
ROCHDALE BOROUGH COUNCIL,30/09/2020,CHILDREN�S SOCIAL CARE,MILLENNIUM TRANSLATIONS LTD,30/09/2020,76.40 ,TRANSLATION & INTERPRETATION,V001612077
ROCHDALE BOROUGH COUNCIL,29/09/2020,CHILDREN�S SOCIAL CARE,MILLENNIUM TRANSLATIONS LTD,29/09/2020,93.90 ,TRANSLATION & INTERPRETATION,V001612079
ROCHDALE BOROUGH COUNCIL,29/09/2020,CHILDREN�S SOCIAL CARE,MILLENNIUM TRANSLATIONS LTD,29/09/2020,65.10 ,TRANSLATION & INTERPRETATION,V001612082
ROCHDALE BOROUGH COUNCIL,29/09/2020,CHILDREN�S SOCIAL CARE,MILLENNIUM TRANSLATIONS LTD,29/09/2020,48.00 ,TRANSLATION & INTERPRETATION,V001612084
ROCHDALE BOROUGH COUNCIL,03/09/2020,CHILDREN�S SOCIAL CARE,SERVELEC YOUTH SERVICES LTD,03/09/2020,13154.88 ,SOFTWARE,V001612087
ROCHDALE BOROUGH COUNCIL,03/09/2020,CHILDREN�S SOCIAL CARE,SERVELEC YOUTH SERVICES LTD,03/09/2020,13154.88 ,SOFTWARE,V001612087
ROCHDALE BOROUGH COUNCIL,03/09/2020,NEIGHBOURHOODS AND ENVIRONMENT,CIVICA UK LIMITED,03/09/2020,1014.35 ,SUBSCRIPTIONS,V001612088
ROCHDALE BOROUGH COUNCIL,03/09/2020,NEIGHBOURHOODS AND ENVIRONMENT,BANNER GROUP LIMITED,03/09/2020,26.46 ,PRINTING & STATIONERY,V001612089
ROCHDALE BOROUGH COUNCIL,04/09/2020,ECONOMY DIRECTORATE,ARROW BUSINESS COMMUNICATIONS LTD,04/09/2020,555.12 ,TELEPHONE EXPENDITURE,V001612093
ROCHDALE BOROUGH COUNCIL,03/09/2020,ECONOMY DIRECTORATE,PRICE AND MYERS,03/09/2020,5586.11 ,CONSULTANTS FEES,V001612096
ROCHDALE BOROUGH COUNCIL,03/09/2020,ADULT CARE LCO FUNCTIONS,SHRED STATION,03/09/2020,30.00 ,DISPOSAL OF CONFIDENTIAL EQUIPMENT AND W,V001612097
ROCHDALE BOROUGH COUNCIL,03/09/2020,ADULT CARE LCO FUNCTIONS,SHRED STATION,03/09/2020,30.00 ,DISPOSAL OF CONFIDENTIAL EQUIPMENT AND W,V001612098
ROCHDALE BOROUGH COUNCIL,03/09/2020,COMMISSIONING AND STATUTORY,ACTION FIRST ASSESSMENTS LTD,03/09/2020,1750.00 ,FEES / COMMISSION,V001612099
ROCHDALE BOROUGH COUNCIL,18/09/2020,CHILDREN�S SOCIAL CARE,CFS CARE LTD,18/09/2020,5757.14 ,FOSTER PARENTS BASIC ALLOWANCE,V001612100
ROCHDALE BOROUGH COUNCIL,03/09/2020,NEIGHBOURHOODS AND ENVIRONMENT,ROLAND BARNES MAINTENANCE,03/09/2020,13.00 ,VEHICLE MAINTENANCE,V001612102
ROCHDALE BOROUGH COUNCIL,03/09/2020,NEIGHBOURHOODS AND ENVIRONMENT,ROLAND BARNES MAINTENANCE,03/09/2020,57.50 ,VEHICLE MAINTENANCE,V001612102
ROCHDALE BOROUGH COUNCIL,03/09/2020,NEIGHBOURHOODS AND ENVIRONMENT,ROLAND BARNES MAINTENANCE,03/09/2020,48.50 ,VEHICLE MAINTENANCE,V001612102
ROCHDALE BOROUGH COUNCIL,03/09/2020,NEIGHBOURHOODS AND ENVIRONMENT,ROLAND BARNES MAINTENANCE,03/09/2020,109.50 ,VEHICLE MAINTENANCE,V001612102
ROCHDALE BOROUGH COUNCIL,03/09/2020,NEIGHBOURHOODS AND ENVIRONMENT,ROLAND BARNES MAINTENANCE,03/09/2020,42.50 ,VEHICLE MAINTENANCE,V001612102
ROCHDALE BOROUGH COUNCIL,03/09/2020,NEIGHBOURHOODS AND ENVIRONMENT,ROLAND BARNES MAINTENANCE,03/09/2020,29.75 ,VEHICLE MAINTENANCE,V001612102
ROCHDALE BOROUGH COUNCIL,03/09/2020,NEIGHBOURHOODS AND ENVIRONMENT,ROLAND BARNES MAINTENANCE,03/09/2020,4.95 ,VEHICLE MAINTENANCE,V001612102
ROCHDALE BOROUGH COUNCIL,03/09/2020,NEIGHBOURHOODS AND ENVIRONMENT,RIPON FARM SERVICES,03/09/2020,90.00 ,VEHICLE MAINTENANCE,V001612103
ROCHDALE BOROUGH COUNCIL,03/09/2020,NEIGHBOURHOODS AND ENVIRONMENT,ARCO GROUP LIMITED,03/09/2020,55.00 ,"CLOTHES, UNIFORM AND LAUNDRY",V001612104
ROCHDALE BOROUGH COUNCIL,03/09/2020,NEIGHBOURHOODS AND ENVIRONMENT,ARCO GROUP LIMITED,03/09/2020,55.00 ,"CLOTHES, UNIFORM AND LAUNDRY",V001612104
ROCHDALE BOROUGH COUNCIL,03/09/2020,NEIGHBOURHOODS AND ENVIRONMENT,ARCO GROUP LIMITED,03/09/2020,55.00 ,"CLOTHES, UNIFORM AND LAUNDRY",V001612104
ROCHDALE BOROUGH COUNCIL,03/09/2020,NEIGHBOURHOODS AND ENVIRONMENT,ARCO GROUP LIMITED,03/09/2020,54.88 ,"CLOTHES, UNIFORM AND LAUNDRY",V001612104
ROCHDALE BOROUGH COUNCIL,03/09/2020,NEIGHBOURHOODS AND ENVIRONMENT,ARCO GROUP LIMITED,03/09/2020,54.88 ,"CLOTHES, UNIFORM AND LAUNDRY",V001612104
ROCHDALE BOROUGH COUNCIL,03/09/2020,NEIGHBOURHOODS AND ENVIRONMENT,ARCO GROUP LIMITED,03/09/2020,54.88 ,"CLOTHES, UNIFORM AND LAUNDRY",V001612104
ROCHDALE BOROUGH COUNCIL,03/09/2020,NEIGHBOURHOODS AND ENVIRONMENT,INDEPENDENT DIESEL SERVICES,03/09/2020,28.00 ,VEHICLE MAINTENANCE,V001612105
ROCHDALE BOROUGH COUNCIL,03/09/2020,NEIGHBOURHOODS AND ENVIRONMENT,QUEENSWAY COMMERCIALS LTD,03/09/2020,113.00 ,VEHICLE MAINTENANCE,V001612106
ROCHDALE BOROUGH COUNCIL,03/09/2020,NEIGHBOURHOODS AND ENVIRONMENT,QUEENSWAY COMMERCIALS LTD,03/09/2020,40.00 ,VEHICLE MAINTENANCE,V001612106
ROCHDALE BOROUGH COUNCIL,03/09/2020,NEIGHBOURHOODS AND ENVIRONMENT,QUEENSWAY COMMERCIALS LTD,03/09/2020,30.00 ,VEHICLE MAINTENANCE,V001612106
ROCHDALE BOROUGH COUNCIL,03/09/2020,NEIGHBOURHOODS AND ENVIRONMENT,QUEENSWAY COMMERCIALS LTD,03/09/2020,10.00 ,VEHICLE MAINTENANCE,V001612106
ROCHDALE BOROUGH COUNCIL,03/09/2020,NEIGHBOURHOODS AND ENVIRONMENT,F R SHARROCK LIMITED,03/09/2020,43.64 ,TRANSACTIONS-EXPENDITURE,V001612107
ROCHDALE BOROUGH COUNCIL,03/09/2020,NEIGHBOURHOODS AND ENVIRONMENT,F R SHARROCK LIMITED,03/09/2020,67.44 ,TRANSACTIONS-EXPENDITURE,V001612107
ROCHDALE BOROUGH COUNCIL,03/09/2020,NEIGHBOURHOODS AND ENVIRONMENT,HI-WAY UNITS LIMITED,03/09/2020,300.00 ,VEHICLE MAINTENANCE,V001612108
ROCHDALE BOROUGH COUNCIL,03/09/2020,NEIGHBOURHOODS AND ENVIRONMENT,VIZWEAR,03/09/2020,262.80 ,"CLOTHES, UNIFORM AND LAUNDRY",V001612110
ROCHDALE BOROUGH COUNCIL,03/09/2020,NEIGHBOURHOODS AND ENVIRONMENT,VIZWEAR,03/09/2020,438.00 ,"CLOTHES, UNIFORM AND LAUNDRY",V001612110
ROCHDALE BOROUGH COUNCIL,03/09/2020,NEIGHBOURHOODS AND ENVIRONMENT,VIZWEAR,03/09/2020,87.60 ,"CLOTHES, UNIFORM AND LAUNDRY",V001612110
ROCHDALE BOROUGH COUNCIL,03/09/2020,NEIGHBOURHOODS AND ENVIRONMENT,VIZWEAR,03/09/2020,350.40 ,"CLOTHES, UNIFORM AND LAUNDRY",V001612110
ROCHDALE BOROUGH COUNCIL,03/09/2020,NEIGHBOURHOODS AND ENVIRONMENT,VIZWEAR,03/09/2020,43.80 ,"CLOTHES, UNIFORM AND LAUNDRY",V001612110
ROCHDALE BOROUGH COUNCIL,03/09/2020,NEIGHBOURHOODS AND ENVIRONMENT,VIZWEAR,03/09/2020,43.80 ,"CLOTHES, UNIFORM AND LAUNDRY",V001612110
ROCHDALE BOROUGH COUNCIL,03/09/2020,NEIGHBOURHOODS AND ENVIRONMENT,VIZWEAR,03/09/2020,43.80 ,"CLOTHES, UNIFORM AND LAUNDRY",V001612110
ROCHDALE BOROUGH COUNCIL,03/09/2020,NEIGHBOURHOODS AND ENVIRONMENT,VIZWEAR,03/09/2020,43.80 ,"CLOTHES, UNIFORM AND LAUNDRY",V001612110
ROCHDALE BOROUGH COUNCIL,03/09/2020,NEIGHBOURHOODS AND ENVIRONMENT,VIZWEAR,03/09/2020,291.20 ,"CLOTHES, UNIFORM AND LAUNDRY",V001612110
ROCHDALE BOROUGH COUNCIL,03/09/2020,NEIGHBOURHOODS AND ENVIRONMENT,VIZWEAR,03/09/2020,873.60 ,"CLOTHES, UNIFORM AND LAUNDRY",V001612110
ROCHDALE BOROUGH COUNCIL,03/09/2020,NEIGHBOURHOODS AND ENVIRONMENT,VIZWEAR,03/09/2020,1331.20 ,"CLOTHES, UNIFORM AND LAUNDRY",V001612110
ROCHDALE BOROUGH COUNCIL,03/09/2020,NEIGHBOURHOODS AND ENVIRONMENT,VIZWEAR,03/09/2020,665.60 ,"CLOTHES, UNIFORM AND LAUNDRY",V001612110
ROCHDALE BOROUGH COUNCIL,03/09/2020,NEIGHBOURHOODS AND ENVIRONMENT,VIZWEAR,03/09/2020,124.80 ,"CLOTHES, UNIFORM AND LAUNDRY",V001612110
ROCHDALE BOROUGH COUNCIL,03/09/2020,NEIGHBOURHOODS AND ENVIRONMENT,VIZWEAR,03/09/2020,41.60 ,"CLOTHES, UNIFORM AND LAUNDRY",V001612110
ROCHDALE BOROUGH COUNCIL,03/09/2020,NEIGHBOURHOODS AND ENVIRONMENT,VIZWEAR,03/09/2020,205.68 ,"CLOTHES, UNIFORM AND LAUNDRY",V001612110
ROCHDALE BOROUGH COUNCIL,03/09/2020,NEIGHBOURHOODS AND ENVIRONMENT,VIZWEAR,03/09/2020,822.72 ,"CLOTHES, UNIFORM AND LAUNDRY",V001612110
ROCHDALE BOROUGH COUNCIL,03/09/2020,NEIGHBOURHOODS AND ENVIRONMENT,VIZWEAR,03/09/2020,1131.24 ,"CLOTHES, UNIFORM AND LAUNDRY",V001612110
ROCHDALE BOROUGH COUNCIL,03/09/2020,NEIGHBOURHOODS AND ENVIRONMENT,VIZWEAR,03/09/2020,548.48 ,"CLOTHES, UNIFORM AND LAUNDRY",V001612110
ROCHDALE BOROUGH COUNCIL,03/09/2020,NEIGHBOURHOODS AND ENVIRONMENT,VIZWEAR,03/09/2020,137.12 ,"CLOTHES, UNIFORM AND LAUNDRY",V001612110
ROCHDALE BOROUGH COUNCIL,03/09/2020,NEIGHBOURHOODS AND ENVIRONMENT,VIZWEAR,03/09/2020,34.28 ,"CLOTHES, UNIFORM AND LAUNDRY",V001612110
ROCHDALE BOROUGH COUNCIL,03/09/2020,NEIGHBOURHOODS AND ENVIRONMENT,VIZWEAR,03/09/2020,166.44 ,"CLOTHES, UNIFORM AND LAUNDRY",V001612110
ROCHDALE BOROUGH COUNCIL,03/09/2020,NEIGHBOURHOODS AND ENVIRONMENT,VIZWEAR,03/09/2020,582.54 ,"CLOTHES, UNIFORM AND LAUNDRY",V001612110
ROCHDALE BOROUGH COUNCIL,03/09/2020,NEIGHBOURHOODS AND ENVIRONMENT,VIZWEAR,03/09/2020,776.72 ,"CLOTHES, UNIFORM AND LAUNDRY",V001612110
ROCHDALE BOROUGH COUNCIL,03/09/2020,NEIGHBOURHOODS AND ENVIRONMENT,VIZWEAR,03/09/2020,582.54 ,"CLOTHES, UNIFORM AND LAUNDRY",V001612110
ROCHDALE BOROUGH COUNCIL,03/09/2020,NEIGHBOURHOODS AND ENVIRONMENT,VIZWEAR,03/09/2020,138.70 ,"CLOTHES, UNIFORM AND LAUNDRY",V001612110
ROCHDALE BOROUGH COUNCIL,03/09/2020,NEIGHBOURHOODS AND ENVIRONMENT,VIZWEAR,03/09/2020,27.74 ,"CLOTHES, UNIFORM AND LAUNDRY",V001612110
ROCHDALE BOROUGH COUNCIL,03/09/2020,NEIGHBOURHOODS AND ENVIRONMENT,VIZWEAR,03/09/2020,49.38 ,"CLOTHES, UNIFORM AND LAUNDRY",V001612110
ROCHDALE BOROUGH COUNCIL,03/09/2020,NEIGHBOURHOODS AND ENVIRONMENT,VIZWEAR,03/09/2020,279.82 ,"CLOTHES, UNIFORM AND LAUNDRY",V001612110
ROCHDALE BOROUGH COUNCIL,03/09/2020,NEIGHBOURHOODS AND ENVIRONMENT,VIZWEAR,03/09/2020,460.88 ,"CLOTHES, UNIFORM AND LAUNDRY",V001612110
ROCHDALE BOROUGH COUNCIL,03/09/2020,NEIGHBOURHOODS AND ENVIRONMENT,VIZWEAR,03/09/2020,329.20 ,"CLOTHES, UNIFORM AND LAUNDRY",V001612110
ROCHDALE BOROUGH COUNCIL,03/09/2020,NEIGHBOURHOODS AND ENVIRONMENT,VIZWEAR,03/09/2020,82.30 ,"CLOTHES, UNIFORM AND LAUNDRY",V001612110
ROCHDALE BOROUGH COUNCIL,03/09/2020,NEIGHBOURHOODS AND ENVIRONMENT,VIZWEAR,03/09/2020,16.46 ,"CLOTHES, UNIFORM AND LAUNDRY",V001612110
ROCHDALE BOROUGH COUNCIL,03/09/2020,NEIGHBOURHOODS AND ENVIRONMENT,VIZWEAR,03/09/2020,76.65 ,"CLOTHES, UNIFORM AND LAUNDRY",V001612110
ROCHDALE BOROUGH COUNCIL,03/09/2020,NEIGHBOURHOODS AND ENVIRONMENT,VIZWEAR,03/09/2020,291.27 ,"CLOTHES, UNIFORM AND LAUNDRY",V001612110
ROCHDALE BOROUGH COUNCIL,03/09/2020,NEIGHBOURHOODS AND ENVIRONMENT,VIZWEAR,03/09/2020,490.56 ,"CLOTHES, UNIFORM AND LAUNDRY",V001612110
ROCHDALE BOROUGH COUNCIL,03/09/2020,NEIGHBOURHOODS AND ENVIRONMENT,VIZWEAR,03/09/2020,700.80 ,"CLOTHES, UNIFORM AND LAUNDRY",V001612110
ROCHDALE BOROUGH COUNCIL,03/09/2020,NEIGHBOURHOODS AND ENVIRONMENT,VIZWEAR,03/09/2020,43.80 ,"CLOTHES, UNIFORM AND LAUNDRY",V001612110
ROCHDALE BOROUGH COUNCIL,03/09/2020,NEIGHBOURHOODS AND ENVIRONMENT,VIZWEAR,03/09/2020,306.60 ,"CLOTHES, UNIFORM AND LAUNDRY",V001612110
ROCHDALE BOROUGH COUNCIL,03/09/2020,NEIGHBOURHOODS AND ENVIRONMENT,VIZWEAR,03/09/2020,45.99 ,"CLOTHES, UNIFORM AND LAUNDRY",V001612110
ROCHDALE BOROUGH COUNCIL,03/09/2020,NEIGHBOURHOODS AND ENVIRONMENT,VIZWEAR,03/09/2020,15.33 ,"CLOTHES, UNIFORM AND LAUNDRY",V001612110
ROCHDALE BOROUGH COUNCIL,03/09/2020,NEIGHBOURHOODS AND ENVIRONMENT,VIZWEAR,03/09/2020,22.20 ,"CLOTHES, UNIFORM AND LAUNDRY",V001612110
ROCHDALE BOROUGH COUNCIL,03/09/2020,NEIGHBOURHOODS AND ENVIRONMENT,VIZWEAR,03/09/2020,62.90 ,"CLOTHES, UNIFORM AND LAUNDRY",V001612110
ROCHDALE BOROUGH COUNCIL,03/09/2020,NEIGHBOURHOODS AND ENVIRONMENT,VIZWEAR,03/09/2020,99.90 ,"CLOTHES, UNIFORM AND LAUNDRY",V001612110
ROCHDALE BOROUGH COUNCIL,03/09/2020,NEIGHBOURHOODS AND ENVIRONMENT,VIZWEAR,03/09/2020,66.60 ,"CLOTHES, UNIFORM AND LAUNDRY",V001612110
ROCHDALE BOROUGH COUNCIL,03/09/2020,NEIGHBOURHOODS AND ENVIRONMENT,VIZWEAR,03/09/2020,14.80 ,"CLOTHES, UNIFORM AND LAUNDRY",V001612110
ROCHDALE BOROUGH COUNCIL,03/09/2020,NEIGHBOURHOODS AND ENVIRONMENT,VIZWEAR,03/09/2020,31.83 ,"CLOTHES, UNIFORM AND LAUNDRY",V001612110
ROCHDALE BOROUGH COUNCIL,03/09/2020,NEIGHBOURHOODS AND ENVIRONMENT,VIZWEAR,03/09/2020,159.15 ,"CLOTHES, UNIFORM AND LAUNDRY",V001612110
ROCHDALE BOROUGH COUNCIL,03/09/2020,NEIGHBOURHOODS AND ENVIRONMENT,VIZWEAR,03/09/2020,604.77 ,"CLOTHES, UNIFORM AND LAUNDRY",V001612110
ROCHDALE BOROUGH COUNCIL,03/09/2020,NEIGHBOURHOODS AND ENVIRONMENT,VIZWEAR,03/09/2020,318.30 ,"CLOTHES, UNIFORM AND LAUNDRY",V001612110
ROCHDALE BOROUGH COUNCIL,03/09/2020,NEIGHBOURHOODS AND ENVIRONMENT,VIZWEAR,03/09/2020,318.30 ,"CLOTHES, UNIFORM AND LAUNDRY",V001612110
ROCHDALE BOROUGH COUNCIL,03/09/2020,NEIGHBOURHOODS AND ENVIRONMENT,VIZWEAR,03/09/2020,95.49 ,"CLOTHES, UNIFORM AND LAUNDRY",V001612110
ROCHDALE BOROUGH COUNCIL,03/09/2020,NEIGHBOURHOODS AND ENVIRONMENT,VIZWEAR,03/09/2020,95.49 ,"CLOTHES, UNIFORM AND LAUNDRY",V001612110
ROCHDALE BOROUGH COUNCIL,03/09/2020,NEIGHBOURHOODS AND ENVIRONMENT,VIZWEAR,03/09/2020,31.83 ,"CLOTHES, UNIFORM AND LAUNDRY",V001612110
ROCHDALE BOROUGH COUNCIL,03/09/2020,NEIGHBOURHOODS AND ENVIRONMENT,VIZWEAR,03/09/2020,69.90 ,"CLOTHES, UNIFORM AND LAUNDRY",V001612110
ROCHDALE BOROUGH COUNCIL,03/09/2020,NEIGHBOURHOODS AND ENVIRONMENT,VIZWEAR,03/09/2020,209.70 ,"CLOTHES, UNIFORM AND LAUNDRY",V001612110
ROCHDALE BOROUGH COUNCIL,03/09/2020,NEIGHBOURHOODS AND ENVIRONMENT,VIZWEAR,03/09/2020,104.85 ,"CLOTHES, UNIFORM AND LAUNDRY",V001612110
ROCHDALE BOROUGH COUNCIL,03/09/2020,NEIGHBOURHOODS AND ENVIRONMENT,VIZWEAR,03/09/2020,104.85 ,"CLOTHES, UNIFORM AND LAUNDRY",V001612110
ROCHDALE BOROUGH COUNCIL,03/09/2020,NEIGHBOURHOODS AND ENVIRONMENT,VIZWEAR,03/09/2020,69.90 ,"CLOTHES, UNIFORM AND LAUNDRY",V001612110
ROCHDALE BOROUGH COUNCIL,03/09/2020,NEIGHBOURHOODS AND ENVIRONMENT,VIZWEAR,03/09/2020,34.95 ,"CLOTHES, UNIFORM AND LAUNDRY",V001612110
ROCHDALE BOROUGH COUNCIL,03/09/2020,NEIGHBOURHOODS AND ENVIRONMENT,VIZWEAR,03/09/2020,43.80 ,"CLOTHES, UNIFORM AND LAUNDRY",V001612110
ROCHDALE BOROUGH COUNCIL,03/09/2020,NEIGHBOURHOODS AND ENVIRONMENT,VIZWEAR,03/09/2020,481.80 ,"CLOTHES, UNIFORM AND LAUNDRY",V001612110
ROCHDALE BOROUGH COUNCIL,03/09/2020,NEIGHBOURHOODS AND ENVIRONMENT,VIZWEAR,03/09/2020,175.20 ,"CLOTHES, UNIFORM AND LAUNDRY",V001612110
ROCHDALE BOROUGH COUNCIL,03/09/2020,NEIGHBOURHOODS AND ENVIRONMENT,VIZWEAR,03/09/2020,897.90 ,"CLOTHES, UNIFORM AND LAUNDRY",V001612110
ROCHDALE BOROUGH COUNCIL,03/09/2020,NEIGHBOURHOODS AND ENVIRONMENT,BALMERS GM LTD,03/09/2020,91.05 ,TRANSACTIONS-EXPENDITURE,V001612111
ROCHDALE BOROUGH COUNCIL,03/09/2020,NEIGHBOURHOODS AND ENVIRONMENT,BALMERS GM LTD,03/09/2020,91.05 ,TRANSACTIONS-EXPENDITURE,V001612111
ROCHDALE BOROUGH COUNCIL,03/09/2020,NEIGHBOURHOODS AND ENVIRONMENT,MARLO PRODUCTS LIMITED,03/09/2020,237.60 ,TRANSACTIONS-EXPENDITURE,V001612113
ROCHDALE BOROUGH COUNCIL,03/09/2020,NEIGHBOURHOODS AND ENVIRONMENT,MARLO PRODUCTS LIMITED,03/09/2020,237.60 ,TRANSACTIONS-EXPENDITURE,V001612113
ROCHDALE BOROUGH COUNCIL,03/09/2020,NEIGHBOURHOODS AND ENVIRONMENT,MARLO PRODUCTS LIMITED,03/09/2020,780.00 ,TRANSACTIONS-EXPENDITURE,V001612114
ROCHDALE BOROUGH COUNCIL,03/09/2020,NEIGHBOURHOODS AND ENVIRONMENT,MARLO PRODUCTS LIMITED,03/09/2020,780.00 ,TRANSACTIONS-EXPENDITURE,V001612114
ROCHDALE BOROUGH COUNCIL,03/09/2020,NEIGHBOURHOODS AND ENVIRONMENT,MARLO PRODUCTS LIMITED,03/09/2020,178.00 ,TRANSACTIONS-EXPENDITURE,V001612115
ROCHDALE BOROUGH COUNCIL,03/09/2020,NEIGHBOURHOODS AND ENVIRONMENT,MARLO PRODUCTS LIMITED,03/09/2020,178.00 ,TRANSACTIONS-EXPENDITURE,V001612115
ROCHDALE BOROUGH COUNCIL,03/09/2020,NEIGHBOURHOODS AND ENVIRONMENT,MARLO PRODUCTS LIMITED,03/09/2020,144.00 ,TRANSACTIONS-EXPENDITURE,V001612115
ROCHDALE BOROUGH COUNCIL,03/09/2020,NEIGHBOURHOODS AND ENVIRONMENT,MARLO PRODUCTS LIMITED,03/09/2020,144.00 ,TRANSACTIONS-EXPENDITURE,V001612115
ROCHDALE BOROUGH COUNCIL,03/09/2020,NEIGHBOURHOODS AND ENVIRONMENT,MARLO PRODUCTS LIMITED,03/09/2020,144.00 ,EQUIPMENT - GENERAL,V001612116
ROCHDALE BOROUGH COUNCIL,03/09/2020,NEIGHBOURHOODS AND ENVIRONMENT,MARLO PRODUCTS LIMITED,03/09/2020,144.00 ,EQUIPMENT - GENERAL,V001612116
ROCHDALE BOROUGH COUNCIL,03/09/2020,NEIGHBOURHOODS AND ENVIRONMENT,DENNIS EAGLE LTD,03/09/2020,66.77 ,VEHICLE MAINTENANCE,V001612117
ROCHDALE BOROUGH COUNCIL,03/09/2020,NEIGHBOURHOODS AND ENVIRONMENT,DENNIS EAGLE LTD,03/09/2020,51.62 ,VEHICLE MAINTENANCE,V001612117
ROCHDALE BOROUGH COUNCIL,03/09/2020,NEIGHBOURHOODS AND ENVIRONMENT,DENNIS EAGLE LTD,03/09/2020,140.76 ,VEHICLE MAINTENANCE,V001612117
ROCHDALE BOROUGH COUNCIL,03/09/2020,NEIGHBOURHOODS AND ENVIRONMENT,DENNIS EAGLE LTD,03/09/2020,64.34 ,VEHICLE MAINTENANCE,V001612117
ROCHDALE BOROUGH COUNCIL,03/09/2020,NEIGHBOURHOODS AND ENVIRONMENT,DENNIS EAGLE LTD,03/09/2020,49.68 ,VEHICLE MAINTENANCE,V001612117
ROCHDALE BOROUGH COUNCIL,03/09/2020,NEIGHBOURHOODS AND ENVIRONMENT,DENNIS EAGLE LTD,03/09/2020,66.77 ,VEHICLE MAINTENANCE,V001612117
ROCHDALE BOROUGH COUNCIL,03/09/2020,NEIGHBOURHOODS AND ENVIRONMENT,DENNIS EAGLE LTD,03/09/2020,65.66 ,VEHICLE MAINTENANCE,V001612117
ROCHDALE BOROUGH COUNCIL,03/09/2020,NEIGHBOURHOODS AND ENVIRONMENT,DENNIS EAGLE LTD,03/09/2020,66.02 ,VEHICLE MAINTENANCE,V001612117
ROCHDALE BOROUGH COUNCIL,03/09/2020,NEIGHBOURHOODS AND ENVIRONMENT,DENNIS EAGLE LTD,03/09/2020,36.39 ,VEHICLE MAINTENANCE,V001612117
ROCHDALE BOROUGH COUNCIL,03/09/2020,NEIGHBOURHOODS AND ENVIRONMENT,ARCO GROUP LIMITED,03/09/2020,118.21 ,"CLOTHES, UNIFORM AND LAUNDRY",V001612118
ROCHDALE BOROUGH COUNCIL,03/09/2020,NEIGHBOURHOODS AND ENVIRONMENT,ARCO GROUP LIMITED,03/09/2020,118.21 ,"CLOTHES, UNIFORM AND LAUNDRY",V001612118
ROCHDALE BOROUGH COUNCIL,03/09/2020,NEIGHBOURHOODS AND ENVIRONMENT,ARCO GROUP LIMITED,03/09/2020,118.21 ,"CLOTHES, UNIFORM AND LAUNDRY",V001612118
ROCHDALE BOROUGH COUNCIL,03/09/2020,NEIGHBOURHOODS AND ENVIRONMENT,ARCO GROUP LIMITED,03/09/2020,93.86 ,"CLOTHES, UNIFORM AND LAUNDRY",V001612119
ROCHDALE BOROUGH COUNCIL,03/09/2020,NEIGHBOURHOODS AND ENVIRONMENT,ARCO GROUP LIMITED,03/09/2020,93.86 ,"CLOTHES, UNIFORM AND LAUNDRY",V001612119
ROCHDALE BOROUGH COUNCIL,03/09/2020,NEIGHBOURHOODS AND ENVIRONMENT,ARCO GROUP LIMITED,03/09/2020,93.86 ,"CLOTHES, UNIFORM AND LAUNDRY",V001612119
ROCHDALE BOROUGH COUNCIL,03/09/2020,NEIGHBOURHOODS AND ENVIRONMENT,H ROTHWELL AND CO LTD,03/09/2020,1.32 ,VEHICLE MAINTENANCE,V001612120
ROCHDALE BOROUGH COUNCIL,03/09/2020,NEIGHBOURHOODS AND ENVIRONMENT,H ROTHWELL AND CO LTD,03/09/2020,1.67 ,VEHICLE MAINTENANCE,V001612120
ROCHDALE BOROUGH COUNCIL,03/09/2020,NEIGHBOURHOODS AND ENVIRONMENT,CALIBRATION ENGINEERING SERVICES LTD,03/09/2020,1150.00 ,EQUIPMENT - GENERAL,V001612121
ROCHDALE BOROUGH COUNCIL,03/09/2020,NEIGHBOURHOODS AND ENVIRONMENT,ROANZA TRUCK AND VAN EAST MANCHESTER,03/09/2020,165.90 ,VEHICLE MAINTENANCE,V001612122
ROCHDALE BOROUGH COUNCIL,03/09/2020,NEIGHBOURHOODS AND ENVIRONMENT,GREENS AUTOMOTIVE,03/09/2020,100.00 ,VEHICLE MAINTENANCE,V001612123
ROCHDALE BOROUGH COUNCIL,03/09/2020,NEIGHBOURHOODS AND ENVIRONMENT,ROANZA TRUCK AND VAN EAST MANCHESTER,03/09/2020,165.90 ,VEHICLE MAINTENANCE,V001612124
ROCHDALE BOROUGH COUNCIL,03/09/2020,NEIGHBOURHOODS AND ENVIRONMENT,ARCO GROUP LIMITED,03/09/2020,120.22 ,"CLOTHES, UNIFORM AND LAUNDRY",V001612125
ROCHDALE BOROUGH COUNCIL,03/09/2020,NEIGHBOURHOODS AND ENVIRONMENT,ARCO GROUP LIMITED,03/09/2020,120.22 ,"CLOTHES, UNIFORM AND LAUNDRY",V001612125
ROCHDALE BOROUGH COUNCIL,03/09/2020,NEIGHBOURHOODS AND ENVIRONMENT,ARCO GROUP LIMITED,03/09/2020,120.22 ,"CLOTHES, UNIFORM AND LAUNDRY",V001612125
ROCHDALE BOROUGH COUNCIL,03/09/2020,NEIGHBOURHOODS AND ENVIRONMENT,AEBI SCHMIDT UK LIMITED,03/09/2020,114.54 ,VEHICLE MAINTENANCE,V001612127
ROCHDALE BOROUGH COUNCIL,03/09/2020,NEIGHBOURHOODS AND ENVIRONMENT,ROANZA TRUCK AND VAN EAST MANCHESTER,03/09/2020,3.11 ,VEHICLE MAINTENANCE,V001612128
ROCHDALE BOROUGH COUNCIL,03/09/2020,NEIGHBOURHOODS AND ENVIRONMENT,ROANZA TRUCK AND VAN EAST MANCHESTER,03/09/2020,97.75 ,VEHICLE MAINTENANCE,V001612129
ROCHDALE BOROUGH COUNCIL,03/09/2020,NEIGHBOURHOODS AND ENVIRONMENT,NH ON SITE LTD,03/09/2020,80.00 ,VEHICLE MAINTENANCE,V001612130
ROCHDALE BOROUGH COUNCIL,03/09/2020,NEIGHBOURHOODS AND ENVIRONMENT,NH ON SITE LTD,03/09/2020,80.00 ,VEHICLE MAINTENANCE,V001612131
ROCHDALE BOROUGH COUNCIL,03/09/2020,NEIGHBOURHOODS AND ENVIRONMENT,FAUN ZOELLER UK LTD,03/09/2020,16.90 ,TRANSACTIONS-EXPENDITURE,V001612132
ROCHDALE BOROUGH COUNCIL,03/09/2020,NEIGHBOURHOODS AND ENVIRONMENT,FAUN ZOELLER UK LTD,03/09/2020,5.60 ,TRANSACTIONS-EXPENDITURE,V001612133
ROCHDALE BOROUGH COUNCIL,03/09/2020,NEIGHBOURHOODS AND ENVIRONMENT,FAUN ZOELLER UK LTD,03/09/2020,304.40 ,TRANSACTIONS-EXPENDITURE,V001612133
ROCHDALE BOROUGH COUNCIL,03/09/2020,NEIGHBOURHOODS AND ENVIRONMENT,FAUN ZOELLER UK LTD,03/09/2020,70.00 ,TRANSACTIONS-EXPENDITURE,V001612133
ROCHDALE BOROUGH COUNCIL,03/09/2020,NEIGHBOURHOODS AND ENVIRONMENT,FAUN ZOELLER UK LTD,03/09/2020,224.00 ,TRANSACTIONS-EXPENDITURE,V001612133
ROCHDALE BOROUGH COUNCIL,03/09/2020,NEIGHBOURHOODS AND ENVIRONMENT,FAUN ZOELLER UK LTD,03/09/2020,199.20 ,TRANSACTIONS-EXPENDITURE,V001612133
ROCHDALE BOROUGH COUNCIL,03/09/2020,NEIGHBOURHOODS AND ENVIRONMENT,FAUN ZOELLER UK LTD,03/09/2020,14.00 ,TRANSACTIONS-EXPENDITURE,V001612133
ROCHDALE BOROUGH COUNCIL,03/09/2020,NEIGHBOURHOODS AND ENVIRONMENT,DALE INDUSTRIAL HOSE & FITTINGS LIMITED,03/09/2020,5.00 ,VEHICLE MAINTENANCE,V001612134
ROCHDALE BOROUGH COUNCIL,03/09/2020,NEIGHBOURHOODS AND ENVIRONMENT,DALE INDUSTRIAL HOSE & FITTINGS LIMITED,03/09/2020,5.00 ,VEHICLE MAINTENANCE,V001612134
ROCHDALE BOROUGH COUNCIL,03/09/2020,NEIGHBOURHOODS AND ENVIRONMENT,DALE INDUSTRIAL HOSE & FITTINGS LIMITED,03/09/2020,21.00 ,VEHICLE MAINTENANCE,V001612134
ROCHDALE BOROUGH COUNCIL,03/09/2020,NEIGHBOURHOODS AND ENVIRONMENT,DALE INDUSTRIAL HOSE & FITTINGS LIMITED,03/09/2020,21.00 ,VEHICLE MAINTENANCE,V001612134
ROCHDALE BOROUGH COUNCIL,03/09/2020,NEIGHBOURHOODS AND ENVIRONMENT,DALE INDUSTRIAL HOSE & FITTINGS LIMITED,03/09/2020,79.00 ,VEHICLE MAINTENANCE,V001612135
ROCHDALE BOROUGH COUNCIL,03/09/2020,NEIGHBOURHOODS AND ENVIRONMENT,DALE INDUSTRIAL HOSE & FITTINGS LIMITED,03/09/2020,79.00 ,VEHICLE MAINTENANCE,V001612135
ROCHDALE BOROUGH COUNCIL,03/09/2020,NEIGHBOURHOODS AND ENVIRONMENT,DALE INDUSTRIAL HOSE & FITTINGS LIMITED,03/09/2020,48.00 ,VEHICLE MAINTENANCE,V001612136
ROCHDALE BOROUGH COUNCIL,03/09/2020,NEIGHBOURHOODS AND ENVIRONMENT,DALE INDUSTRIAL HOSE & FITTINGS LIMITED,03/09/2020,48.00 ,VEHICLE MAINTENANCE,V001612136
ROCHDALE BOROUGH COUNCIL,03/09/2020,NEIGHBOURHOODS AND ENVIRONMENT,DALE INDUSTRIAL HOSE & FITTINGS LIMITED,03/09/2020,21.00 ,VEHICLE MAINTENANCE,V001612137
ROCHDALE BOROUGH COUNCIL,03/09/2020,NEIGHBOURHOODS AND ENVIRONMENT,DALE INDUSTRIAL HOSE & FITTINGS LIMITED,03/09/2020,21.00 ,VEHICLE MAINTENANCE,V001612137
ROCHDALE BOROUGH COUNCIL,03/09/2020,NEIGHBOURHOODS AND ENVIRONMENT,DALE INDUSTRIAL HOSE & FITTINGS LIMITED,03/09/2020,60.50 ,VEHICLE MAINTENANCE,V001612138
ROCHDALE BOROUGH COUNCIL,03/09/2020,NEIGHBOURHOODS AND ENVIRONMENT,DALE INDUSTRIAL HOSE & FITTINGS LIMITED,03/09/2020,60.50 ,VEHICLE MAINTENANCE,V001612138
ROCHDALE BOROUGH COUNCIL,03/09/2020,NEIGHBOURHOODS AND ENVIRONMENT,DALE INDUSTRIAL HOSE & FITTINGS LIMITED,03/09/2020,12.00 ,VEHICLE MAINTENANCE,V001612138
ROCHDALE BOROUGH COUNCIL,03/09/2020,NEIGHBOURHOODS AND ENVIRONMENT,DALE INDUSTRIAL HOSE & FITTINGS LIMITED,03/09/2020,12.00 ,VEHICLE MAINTENANCE,V001612138
ROCHDALE BOROUGH COUNCIL,03/09/2020,NEIGHBOURHOODS AND ENVIRONMENT,DALE INDUSTRIAL HOSE & FITTINGS LIMITED,03/09/2020,89.00 ,VEHICLE MAINTENANCE,V001612139
ROCHDALE BOROUGH COUNCIL,03/09/2020,NEIGHBOURHOODS AND ENVIRONMENT,DALE INDUSTRIAL HOSE & FITTINGS LIMITED,03/09/2020,89.00 ,VEHICLE MAINTENANCE,V001612139
ROCHDALE BOROUGH COUNCIL,03/09/2020,NEIGHBOURHOODS AND ENVIRONMENT,DALE INDUSTRIAL HOSE & FITTINGS LIMITED,03/09/2020,79.00 ,VEHICLE MAINTENANCE,V001612140
ROCHDALE BOROUGH COUNCIL,03/09/2020,NEIGHBOURHOODS AND ENVIRONMENT,DALE INDUSTRIAL HOSE & FITTINGS LIMITED,03/09/2020,79.00 ,VEHICLE MAINTENANCE,V001612140
ROCHDALE BOROUGH COUNCIL,03/09/2020,NEIGHBOURHOODS AND ENVIRONMENT,DALE INDUSTRIAL HOSE & FITTINGS LIMITED,03/09/2020,31.55 ,VEHICLE MAINTENANCE,V001612141
ROCHDALE BOROUGH COUNCIL,03/09/2020,NEIGHBOURHOODS AND ENVIRONMENT,DALE INDUSTRIAL HOSE & FITTINGS LIMITED,03/09/2020,31.55 ,VEHICLE MAINTENANCE,V001612141
ROCHDALE BOROUGH COUNCIL,03/09/2020,NEIGHBOURHOODS AND ENVIRONMENT,F R SHARROCK LIMITED,03/09/2020,62.28 ,TRANSACTIONS-EXPENDITURE,V001612142
ROCHDALE BOROUGH COUNCIL,03/09/2020,NEIGHBOURHOODS AND ENVIRONMENT,F R SHARROCK LIMITED,03/09/2020,9.00 ,TRANSACTIONS-EXPENDITURE,V001612142
ROCHDALE BOROUGH COUNCIL,03/09/2020,NEIGHBOURHOODS AND ENVIRONMENT,F R SHARROCK LIMITED,03/09/2020,166.98 ,TRANSACTIONS-EXPENDITURE,V001612143
ROCHDALE BOROUGH COUNCIL,03/09/2020,NEIGHBOURHOODS AND ENVIRONMENT,HI-WAY UNITS LIMITED,03/09/2020,47.28 ,VEHICLE MAINTENANCE,V001612144
ROCHDALE BOROUGH COUNCIL,03/09/2020,NEIGHBOURHOODS AND ENVIRONMENT,STANDARD FUEL OILS,03/09/2020,27882.00 ,TRANSACTIONS-EXPENDITURE,V001612145
ROCHDALE BOROUGH COUNCIL,03/09/2020,NEIGHBOURHOODS AND ENVIRONMENT,COMMERCIAL FILTERS LIMITED,03/09/2020,159.72 ,VEHICLE MAINTENANCE,V001612146
ROCHDALE BOROUGH COUNCIL,03/09/2020,NEIGHBOURHOODS AND ENVIRONMENT,COMMERCIAL FILTERS LIMITED,03/09/2020,93.85 ,VEHICLE MAINTENANCE,V001612146
ROCHDALE BOROUGH COUNCIL,03/09/2020,NEIGHBOURHOODS AND ENVIRONMENT,DENNIS EAGLE LTD,03/09/2020,383.60 ,VEHICLE MAINTENANCE,V001612147
ROCHDALE BOROUGH COUNCIL,03/09/2020,NEIGHBOURHOODS AND ENVIRONMENT,ROANZA TRUCK AND VAN EAST MANCHESTER,03/09/2020,265.65 ,VEHICLE MAINTENANCE,V001612148
ROCHDALE BOROUGH COUNCIL,03/09/2020,NEIGHBOURHOODS AND ENVIRONMENT,LANCASHIRE LOCK AND SAFE COMPANY LIMITED,03/09/2020,4.00 ,EQUIPMENT - GENERAL,V001612149
ROCHDALE BOROUGH COUNCIL,03/09/2020,NEIGHBOURHOODS AND ENVIRONMENT,FAUN ZOELLER UK LTD,03/09/2020,750.00 ,VEHICLE MAINTENANCE,V001612150
ROCHDALE BOROUGH COUNCIL,03/09/2020,NEIGHBOURHOODS AND ENVIRONMENT,ARCO GROUP LIMITED,03/09/2020,118.21 ,"CLOTHES, UNIFORM AND LAUNDRY",V001612151
ROCHDALE BOROUGH COUNCIL,03/09/2020,NEIGHBOURHOODS AND ENVIRONMENT,ARCO GROUP LIMITED,03/09/2020,118.21 ,"CLOTHES, UNIFORM AND LAUNDRY",V001612151
ROCHDALE BOROUGH COUNCIL,03/09/2020,NEIGHBOURHOODS AND ENVIRONMENT,ARCO GROUP LIMITED,03/09/2020,118.21 ,"CLOTHES, UNIFORM AND LAUNDRY",V001612151
ROCHDALE BOROUGH COUNCIL,03/09/2020,NEIGHBOURHOODS AND ENVIRONMENT,EURO CAR PARTS LTD,03/09/2020,39.77 ,VEHICLE MAINTENANCE,V001612152
ROCHDALE BOROUGH COUNCIL,03/09/2020,NEIGHBOURHOODS AND ENVIRONMENT,ROANZA TRUCK AND VAN EAST MANCHESTER,03/09/2020,27.45 ,VEHICLE MAINTENANCE,V001612153
ROCHDALE BOROUGH COUNCIL,03/09/2020,NEIGHBOURHOODS AND ENVIRONMENT,ROLAND BARNES MAINTENANCE,03/09/2020,20.28 ,VEHICLE MAINTENANCE,V001612154
ROCHDALE BOROUGH COUNCIL,03/09/2020,NEIGHBOURHOODS AND ENVIRONMENT,ROLAND BARNES MAINTENANCE,03/09/2020,44.70 ,VEHICLE MAINTENANCE,V001612154
ROCHDALE BOROUGH COUNCIL,03/09/2020,NEIGHBOURHOODS AND ENVIRONMENT,ROLAND BARNES MAINTENANCE,03/09/2020,10.80 ,VEHICLE MAINTENANCE,V001612155
ROCHDALE BOROUGH COUNCIL,03/09/2020,NEIGHBOURHOODS AND ENVIRONMENT,ROLAND BARNES MAINTENANCE,03/09/2020,22.10 ,VEHICLE MAINTENANCE,V001612155
ROCHDALE BOROUGH COUNCIL,03/09/2020,NEIGHBOURHOODS AND ENVIRONMENT,ROLAND BARNES MAINTENANCE,03/09/2020,23.85 ,VEHICLE MAINTENANCE,V001612155
ROCHDALE BOROUGH COUNCIL,03/09/2020,NEIGHBOURHOODS AND ENVIRONMENT,ROLAND BARNES MAINTENANCE,03/09/2020,59.40 ,VEHICLE MAINTENANCE,V001612155
ROCHDALE BOROUGH COUNCIL,03/09/2020,NEIGHBOURHOODS AND ENVIRONMENT,ROLAND BARNES MAINTENANCE,03/09/2020,18.75 ,VEHICLE MAINTENANCE,V001612155
ROCHDALE BOROUGH COUNCIL,03/09/2020,NEIGHBOURHOODS AND ENVIRONMENT,ROLAND BARNES MAINTENANCE,03/09/2020,18.75 ,VEHICLE MAINTENANCE,V001612155
